,Date ,TT,Transaction Number,Amount,Supplier No,Supplier Name,Period,Expense Area,Cipfa(T)
INSERTED DETAIL,05/03/2018,GI,2502596,"6,021.78",HC121175,Matrix SCM Ltd,201812,Adults Operations,Employees
INSERTED DETAIL,27/03/2018,GI,2502596,"2,244.42",HC121175,Matrix SCM Ltd,201812,Directors,Employees
INSERTED DETAIL,01/03/2018,GI,2502596,"6,520.34",HC121175,Matrix SCM Ltd,201812,Safeguarding and Family Support,Employees
INSERTED DETAIL,05/03/2018,GI,2502596,"4,987.52",HC121175,REDACTED,201812,Safeguarding and Family Support,Employees
INSERTED DETAIL,22/03/2018,GI,2502597,418,HC105005,Kes Nursery And Creche,201812,Dedicated Schools Grant,Transfer Payments
INSERTED DETAIL,08/03/2018,GI,2502599,453,HC118374,Colwall Pre School,201812,Dedicated Schools Grant,Transfer Payments
INSERTED DETAIL,06/03/2018,GI,2502704,"8,609.80",HC111380,Welsh Water,201812,Environment and Place,Premises-Related Expenditure
INSERTED DETAIL,06/03/2018,GI,2502705,"7,376.37",HC105275,Ledbury Primary School Imprest,201812,Schools,Supplies & Services
INSERTED DETAIL,06/03/2018,GI,2502938,613.79,HC108165,REDACTED,201812,Safeguarding and Family Support,Employees
INSERTED DETAIL,06/03/2018,GI,2502939,916.79,HC103627,H C Westfield School Imprest,201812,Schools,Supplies & Services
INSERTED DETAIL,20/03/2018,GI,2503656,"8,225.10",HC121175,Matrix SCM Ltd,201812,Adults Operations,Employees
INSERTED DETAIL,06/03/2018,GI,2503656,"5,915.45",HC121175,Matrix SCM Ltd,201812,Mental Health,Employees
INSERTED DETAIL,21/03/2018,GI,2503656,"9,460.34",HC121175,Matrix SCM Ltd,201812,Safeguarding and Family Support,Employees
INSERTED DETAIL,01/03/2018,GI,2503656,900,HC121175,Matrix SCM Ltd,201812,Transformation and Safeguarding,Employees
INSERTED DETAIL,20/03/2018,GI,2503656,"2,777.26",HC121175,REDACTED,201812,Safeguarding and Family Support,Employees
INSERTED DETAIL,21/03/2018,GI,2503660,"13,083.33",HC122443,Acorn Childrens Home Group Ltd,201812,Resources,Supplies & Services
INSERTED DETAIL,02/03/2018,GI,2503785,686.44,HC102068,Cradley Primary School Imprest,201812,Schools,Supplies & Services
INSERTED DETAIL,07/03/2018,GI,2503787,833.4,HC103506,Goodrich C E Primary Sch Imprest,201812,Schools,Premises-Related Expenditure
INSERTED DETAIL,07/03/2018,GI,2503787,548.25,HC103506,Goodrich C E Primary Sch Imprest,201812,Schools,Supplies & Services
INSERTED DETAIL,07/03/2018,GI,2503788,581.55,HC101182,Bridstow C.E. Primary School Imprest A/C,201812,Schools,Supplies & Services
INSERTED DETAIL,08/03/2018,GI,2503805,685.77,HC101182,Bridstow C.E. Primary School Imprest A/C,201812,Schools,Supplies & Services
INSERTED DETAIL,08/03/2018,GI,2503899,"1,394.62",HC111924,Bromyard Community Transport Ltd,201812,Environment and Place,Supplies & Services
INSERTED DETAIL,08/03/2018,GI,2503900,"1,768.13",HC112080,CVS Ledbury & District (Ledbury Ring & Ride)Standing Order,201812,Environment and Place,Supplies & Services
INSERTED DETAIL,08/03/2018,GI,2503901,"1,426.29",HC102478,Dore Community Transport,201812,Environment and Place,Supplies & Services
INSERTED DETAIL,08/03/2018,GI,2503902,684.47,HC101381,Hay & District Dial a Ride,201812,Environment and Place,Supplies & Services
INSERTED DETAIL,09/03/2018,GI,2503903,"3,092.60",HC103982,HVOSS,201812,Environment and Place,Supplies & Services
INSERTED DETAIL,09/03/2018,GI,2503904,792.96,HC101379,Ross Country Cars (Standing Order),201812,Environment and Place,Supplies & Services
INSERTED DETAIL,12/03/2018,GI,2503905,"115,806.29",HC107466,Worcestershire Health & Care NHS Trust,201812,Public Health,Third Party Payments
INSERTED DETAIL,13/03/2018,GI,2503906,"147,313.06",HC120328,Addaction,201812,Public Health,Third Party Payments
INSERTED DETAIL,13/03/2018,GI,2503908,"16,524.00",HC122767,"H3 (The Hub, Hospital & Home Teaching Team)",201812,Dedicated Schools Grant,Third Party Payments
INSERTED DETAIL,13/03/2018,GI,2503909,"60,000.00",HC120107,Hereford Integrated Behaviour Outreach Service,201812,Dedicated Schools Grant,Third Party Payments
INSERTED DETAIL,14/03/2018,GI,2503910,"30,875.00",HC120107,Hereford Integrated Behaviour Outreach Service,201812,Dedicated Schools Grant,Third Party Payments
INSERTED DETAIL,15/03/2018,GI,2503911,630,HC106870,REDACTED,201812,Adults Operations,Premises-Related Expenditure
INSERTED DETAIL,15/03/2018,GI,2503912,630,HC106870,REDACTED,201812,Adults Operations,Premises-Related Expenditure
INSERTED DETAIL,15/03/2018,GI,2503913,625,HC106831,REDACTED,201812,Adults Operations,Premises-Related Expenditure
INSERTED DETAIL,16/03/2018,GI,2503914,450,HC109865,REDACTED,201812,Adults Operations,Premises-Related Expenditure
INSERTED DETAIL,16/03/2018,GI,2503915,450,HC109865,REDACTED,201812,Adults Operations,Premises-Related Expenditure
INSERTED DETAIL,19/03/2018,GI,2503917,550,HC108221,REDACTED,201812,Adults Operations,Premises-Related Expenditure
INSERTED DETAIL,19/03/2018,GI,2503918,520,HC108905,REDACTED,201812,Adults Operations,Premises-Related Expenditure
INSERTED DETAIL,20/03/2018,GI,2503919,475,HC109338,REDACTED,201812,Adults Operations,Premises-Related Expenditure
INSERTED DETAIL,20/03/2018,GI,2503922,"4,333.33",HC106816,REDACTED,201812,Adults Operations,Premises-Related Expenditure
INSERTED DETAIL,23/03/2018,GI,2503923,650,HC110272,REDACTED,201812,Adults Operations,Premises-Related Expenditure
INSERTED DETAIL,26/03/2018,GI,2503924,420,HC106104,REDACTED,201812,Adults Operations,Premises-Related Expenditure
INSERTED DETAIL,21/03/2018,GI,2503925,600,HC115622,REDACTED,201812,Adults Operations,Premises-Related Expenditure
INSERTED DETAIL,19/03/2018,GI,2503926,625,HC119280,REDACTED,201812,Adults Operations,Premises-Related Expenditure
INSERTED DETAIL,09/03/2018,GI,2503927,587.43,HC121622,REDACTED,201812,Adults Operations,Premises-Related Expenditure
INSERTED DETAIL,05/03/2018,GI,2503928,600,HC121325,REDACTED,201812,Adults Operations,Premises-Related Expenditure
INSERTED DETAIL,05/03/2018,GI,2503929,525,HC116314,REDACTED,201812,Adults Operations,Premises-Related Expenditure
INSERTED DETAIL,05/03/2018,GI,2503930,550,HC121939,REDACTED,201812,Adults Operations,Premises-Related Expenditure
INSERTED DETAIL,05/03/2018,GI,2503931,650,HC122259,REDACTED,201812,Adults Operations,Premises-Related Expenditure
INSERTED DETAIL,05/03/2018,GI,2503932,550,HC122996,REDACTED,201812,Adults Operations,Premises-Related Expenditure
INSERTED DETAIL,05/03/2018,GI,2503933,530,HC106104,REDACTED,201812,Adults Operations,Premises-Related Expenditure
INSERTED DETAIL,05/03/2018,GI,2503934,550,HC124399,REDACTED,201812,Adults Operations,Premises-Related Expenditure
INSERTED DETAIL,05/03/2018,GI,2504039,433.82,HC111475,Whitchurch Ce Primary (Imprest),201812,Schools,Supplies & Services
INSERTED DETAIL,05/03/2018,GI,2504040,546.93,HC110093,St Peters C P School Imprest,201812,Schools,Supplies & Services
INSERTED DETAIL,05/03/2018,GI,2504096,495.3,HC101389,REDACTED,201812,Safeguarding and Family Support,Transport-Related Expenditure
INSERTED DETAIL,05/03/2018,GI,2504097,660.26,HC101143,Brampton Abbotts CE School Imprest,201812,Schools,Supplies & Services
INSERTED DETAIL,05/03/2018,GI,2504145,"2,040.00",HC107953,Natwest One Card (Direct Debit A/C),201812,Resources,Supplies & Services
INSERTED DETAIL,06/03/2018,GI,2504146,455,HC107953,REDACTED,201812,Adults Operations,Supplies & Services
INSERTED DETAIL,06/03/2018,GI,2505265,"4,593.68",HC108793,REDACTED,201812,Adults Operations,Supplies & Services
INSERTED DETAIL,06/03/2018,GI,2505267,"1,002.00",HC100786,Aylestone School Imprest A/C,201812,Schools,Employees
INSERTED DETAIL,07/03/2018,GI,2505267,"1,387.40",HC100786,Aylestone School Imprest A/C,201812,Schools,Supplies & Services
INSERTED DETAIL,12/03/2018,GI,2505267,640.75,HC100786,Aylestone School Imprest A/C,201812,Schools Devolved Capital,Capital Expenditure
INSERTED DETAIL,12/03/2018,GI,2505269,"6,519.25",HC121175,Matrix SCM Ltd,201812,Adults Operations,Employees
INSERTED DETAIL,09/03/2018,GI,2505269,"3,924.50",HC121175,Matrix SCM Ltd,201812,Safeguarding and Family Support,Employees
INSERTED DETAIL,28/03/2018,GI,2505269,"1,366.32",HC121175,Matrix SCM Ltd,201812,Transformation and Safeguarding,Employees
INSERTED DETAIL,15/03/2018,GI,2505269,"4,501.01",HC121175,REDACTED,201812,Safeguarding and Family Support,Employees
INSERTED DETAIL,21/03/2018,GI,2506718,"1,247.00",HC105091,Kington Primary School Imprest A/C,201812,Schools,Supplies & Services
INSERTED DETAIL,16/03/2018,GI,2506720,571.31,HC110073,St Josephs RC Primary School,201812,Schools,Supplies & Services
INSERTED DETAIL,14/03/2018,GI,2506889,"1,106.00",HC118940,Earl Mortimer College & Sixth Form HCC,201812,Children & Young People Capital,Capital Income
INSERTED DETAIL,15/03/2018,GI,2506895,423,HC107661,Little Dewchurch CE Primary School,201812,Children & Young People Capital,Capital Income
INSERTED DETAIL,15/03/2018,GI,2506901,812,HC105841,Marlbrook  Primary School,201812,Children & Young People Capital,Capital Income
INSERTED DETAIL,15/03/2018,GI,2506907,652,HC100677,Ashfield Park Primary School,201812,Children & Young People Capital,Capital Income
INSERTED DETAIL,22/03/2018,GI,2506913,433,HC116432,Ewyas Harold Primary School-A/C 63712842,201812,Children & Young People Capital,Capital Income
INSERTED DETAIL,01/03/2018,GI,2506919,835,HC118939,Riverside Primary School - HCC,201812,Children & Young People Capital,Capital Income
INSERTED DETAIL,12/03/2018,GI,2506924,487,HC121892,Colwall C of E Primary School,201812,Children & Young People Capital,Capital Income
INSERTED DETAIL,12/03/2018,GI,2506929,662,HC110078,St Martins Primary School,201812,Children & Young People Capital,Capital Income
INSERTED DETAIL,12/03/2018,WM,2507043,"1,395.96",HC108443,West Mercia Energy,201812,Environment and Place,Premises-Related Expenditure
INSERTED DETAIL,22/03/2018,WM,2507076,"1,836.78",HC108443,West Mercia Energy,201812,Environment and Place,Premises-Related Expenditure
INSERTED DETAIL,14/03/2018,WM,2507101,508.21,HC108443,West Mercia Energy,201812,Schools,Premises-Related Expenditure
INSERTED DETAIL,16/03/2018,WM,2507102,498.19,HC108443,West Mercia Energy,201812,Schools,Premises-Related Expenditure
INSERTED DETAIL,16/03/2018,WM,2507106,661.64,HC108443,West Mercia Energy,201812,Schools,Premises-Related Expenditure
INSERTED DETAIL,16/03/2018,WM,2507107,656.66,HC108443,West Mercia Energy,201812,Schools,Premises-Related Expenditure
INSERTED DETAIL,08/03/2018,WM,2507108,461.96,HC108443,West Mercia Energy,201812,Schools,Premises-Related Expenditure
INSERTED DETAIL,15/03/2018,WM,2507113,439.16,HC108443,West Mercia Energy,201812,Environment and Place,Premises-Related Expenditure
INSERTED DETAIL,15/03/2018,WM,2507114,480.76,HC108443,West Mercia Energy,201812,Schools,Premises-Related Expenditure
INSERTED DETAIL,15/03/2018,WM,2507118,493.1,HC108443,West Mercia Energy,201812,Schools,Premises-Related Expenditure
INSERTED DETAIL,15/03/2018,WM,2507125,821.51,HC108443,West Mercia Energy,201812,Schools,Premises-Related Expenditure
INSERTED DETAIL,15/03/2018,WM,2507128,571.63,HC108443,West Mercia Energy,201812,Schools,Premises-Related Expenditure
INSERTED DETAIL,15/03/2018,WM,2507130,756.21,HC108443,West Mercia Energy,201812,Environment and Place,Premises-Related Expenditure
INSERTED DETAIL,15/03/2018,WM,2507132,504.58,HC108443,West Mercia Energy,201812,Schools,Premises-Related Expenditure
INSERTED DETAIL,15/03/2018,WM,2507136,963.58,HC108443,West Mercia Energy,201812,Environment and Place,Premises-Related Expenditure
INSERTED DETAIL,15/03/2018,WM,2507142,887.23,HC108443,West Mercia Energy,201812,Environment and Place,Premises-Related Expenditure
INSERTED DETAIL,15/03/2018,WM,2507143,877.6,HC108443,West Mercia Energy,201812,Environment and Place,Premises-Related Expenditure
INSERTED DETAIL,15/03/2018,WM,2507144,453.05,HC108443,West Mercia Energy,201812,Environment and Place,Premises-Related Expenditure
INSERTED DETAIL,15/03/2018,WM,2507146,"1,545.46",HC108443,West Mercia Energy,201812,Environment and Place,Premises-Related Expenditure
INSERTED DETAIL,15/03/2018,WM,2507149,"1,090.75",HC108443,West Mercia Energy,201812,Environment and Place,Premises-Related Expenditure
INSERTED DETAIL,15/03/2018,WM,2507155,500.47,HC108443,West Mercia Energy,201812,Schools,Premises-Related Expenditure
INSERTED DETAIL,15/03/2018,WM,2507160,582.22,HC108443,West Mercia Energy,201812,Schools,Premises-Related Expenditure
INSERTED DETAIL,15/03/2018,WM,2507163,909.62,HC108443,West Mercia Energy,201812,Schools,Premises-Related Expenditure
INSERTED DETAIL,16/03/2018,WM,2507165,437.81,HC108443,West Mercia Energy,201812,Environment and Place,Premises-Related Expenditure
INSERTED DETAIL,16/03/2018,WM,2507174,"1,009.95",HC108443,West Mercia Energy,201812,Environment and Place,Premises-Related Expenditure
INSERTED DETAIL,16/03/2018,WM,2507178,612.02,HC108443,West Mercia Energy,201812,Environment and Place,Premises-Related Expenditure
INSERTED DETAIL,16/03/2018,WM,2507180,904.85,HC108443,West Mercia Energy,201812,Environment and Place,Premises-Related Expenditure
INSERTED DETAIL,16/03/2018,WM,2507184,477.48,HC108443,West Mercia Energy,201812,Schools,Premises-Related Expenditure
INSERTED DETAIL,16/03/2018,WM,2507186,469.16,HC108443,West Mercia Energy,201812,Schools,Premises-Related Expenditure
INSERTED DETAIL,19/03/2018,WM,2507187,803.51,HC108443,West Mercia Energy,201812,Environment and Place,Premises-Related Expenditure
INSERTED DETAIL,21/03/2018,WM,2507188,441.41,HC108443,West Mercia Energy,201812,Environment and Place,Premises-Related Expenditure
INSERTED DETAIL,08/03/2018,WM,2507198,461.47,HC108443,West Mercia Energy,201812,Environment and Place,Premises-Related Expenditure
INSERTED DETAIL,22/03/2018,WM,2507202,891.55,HC108443,West Mercia Energy,201812,Schools,Premises-Related Expenditure
INSERTED DETAIL,16/03/2018,WM,2507205,"1,083.35",HC108443,West Mercia Energy,201812,Environment and Place,Premises-Related Expenditure
INSERTED DETAIL,16/03/2018,WM,2507206,617.7,HC108443,West Mercia Energy,201812,Schools,Premises-Related Expenditure
INSERTED DETAIL,16/03/2018,WM,2507212,979.26,HC108443,West Mercia Energy,201812,Schools,Premises-Related Expenditure
INSERTED DETAIL,21/03/2018,WM,2507213,601.04,HC108443,West Mercia Energy,201812,Environment and Place,Premises-Related Expenditure
INSERTED DETAIL,14/03/2018,WM,2507224,569.57,HC108443,West Mercia Energy,201812,Schools,Premises-Related Expenditure
INSERTED DETAIL,12/03/2018,WM,2507232,621.71,HC108443,West Mercia Energy,201812,Schools,Premises-Related Expenditure
INSERTED DETAIL,13/03/2018,WM,2507235,536.94,HC108443,West Mercia Energy,201812,Schools,Premises-Related Expenditure
INSERTED DETAIL,09/03/2018,WM,2507241,795.55,HC108443,West Mercia Energy,201812,Schools,Premises-Related Expenditure
INSERTED DETAIL,09/03/2018,WM,2507247,"1,897.94",HC108443,West Mercia Energy,201812,Environment and Place,Premises-Related Expenditure
INSERTED DETAIL,26/03/2018,WM,2507248,"1,331.74",HC108443,West Mercia Energy,201812,Schools,Premises-Related Expenditure
INSERTED DETAIL,22/03/2018,WM,2507249,"1,394.22",HC108443,West Mercia Energy,201812,Schools,Premises-Related Expenditure
INSERTED DETAIL,21/03/2018,WM,2507250,"9,821.46",HC108443,West Mercia Energy,201812,Environment and Place,Premises-Related Expenditure
INSERTED DETAIL,21/03/2018,WM,2507251,990.51,HC108443,West Mercia Energy,201812,Environment and Place,Premises-Related Expenditure
INSERTED DETAIL,20/03/2018,WM,2507254,"1,077.74",HC108443,West Mercia Energy,201812,Environment and Place,Premises-Related Expenditure
INSERTED DETAIL,15/03/2018,WM,2507255,549.02,HC108443,West Mercia Energy,201812,Environment and Place,Premises-Related Expenditure
INSERTED DETAIL,05/03/2018,WM,2507256,634.46,HC108443,West Mercia Energy,201812,Environment and Place,Premises-Related Expenditure
INSERTED DETAIL,06/03/2018,WM,2507258,743.08,HC108443,West Mercia Energy,201812,Environment and Place,Premises-Related Expenditure
INSERTED DETAIL,21/03/2018,WM,2507259,"1,670.55",HC108443,West Mercia Energy,201812,Environment and Place,Premises-Related Expenditure
INSERTED DETAIL,06/03/2018,WM,2507260,455.82,HC108443,West Mercia Energy,201812,Schools,Premises-Related Expenditure
INSERTED DETAIL,06/03/2018,WM,2507262,974.87,HC108443,West Mercia Energy,201812,Environment and Place,Premises-Related Expenditure
INSERTED DETAIL,06/03/2018,WM,2507264,619.9,HC108443,West Mercia Energy,201812,Environment and Place,Premises-Related Expenditure
INSERTED DETAIL,06/03/2018,WM,2507265,"1,305.05",HC108443,West Mercia Energy,201812,Schools,Premises-Related Expenditure
INSERTED DETAIL,02/03/2018,WM,2507266,668.48,HC108443,West Mercia Energy,201812,Environment and Place,Premises-Related Expenditure
INSERTED DETAIL,06/03/2018,WM,2507267,"1,888.68",HC108443,West Mercia Energy,201812,Environment and Place,Premises-Related Expenditure
INSERTED DETAIL,12/03/2018,WM,2507268,789.29,HC108443,West Mercia Energy,201812,Environment and Place,Premises-Related Expenditure
INSERTED DETAIL,12/03/2018,WM,2507272,593.88,HC108443,West Mercia Energy,201812,Schools,Premises-Related Expenditure
INSERTED DETAIL,02/03/2018,WM,2507288,866.66,HC108443,West Mercia Energy,201812,Schools,Premises-Related Expenditure
INSERTED DETAIL,16/03/2018,WM,2507289,458.06,HC108443,West Mercia Energy,201812,Environment and Place,Premises-Related Expenditure
INSERTED DETAIL,20/03/2018,WM,2507290,434.74,HC108443,West Mercia Energy,201812,Schools,Premises-Related Expenditure
INSERTED DETAIL,20/03/2018,WM,2507292,956.86,HC108443,West Mercia Energy,201812,Environment and Place,Premises-Related Expenditure
INSERTED DETAIL,01/03/2018,WM,2507296,"1,757.66",HC108443,West Mercia Energy,201812,Schools,Premises-Related Expenditure
INSERTED DETAIL,01/03/2018,WM,2507299,941.59,HC108443,West Mercia Energy,201812,Schools,Premises-Related Expenditure
INSERTED DETAIL,09/03/2018,WM,2507301,737.95,HC108443,West Mercia Energy,201812,Environment and Place,Premises-Related Expenditure
INSERTED DETAIL,16/03/2018,WM,2507303,468.99,HC108443,West Mercia Energy,201812,Environment and Place,Premises-Related Expenditure
INSERTED DETAIL,20/03/2018,WM,2507304,543.23,HC108443,West Mercia Energy,201812,Environment and Place,Premises-Related Expenditure
INSERTED DETAIL,23/03/2018,WM,2507307,508.02,HC108443,West Mercia Energy,201812,Environment and Place,Premises-Related Expenditure
INSERTED DETAIL,05/03/2018,WM,2507308,"2,552.11",HC108443,West Mercia Energy,201812,Environment and Place,Premises-Related Expenditure
INSERTED DETAIL,14/03/2018,WM,2507310,"3,278.25",HC108443,West Mercia Energy,201812,Environment and Place,Premises-Related Expenditure
INSERTED DETAIL,20/03/2018,WM,2507313,851.66,HC108443,West Mercia Energy,201812,Schools,Premises-Related Expenditure
INSERTED DETAIL,02/03/2018,WM,2507314,547.68,HC108443,West Mercia Energy,201812,Environment and Place,Premises-Related Expenditure
INSERTED DETAIL,02/03/2018,WM,2507316,852.24,HC108443,West Mercia Energy,201812,Schools,Premises-Related Expenditure
INSERTED DETAIL,16/03/2018,WM,2507318,"1,086.98",HC108443,West Mercia Energy,201812,Environment and Place,Premises-Related Expenditure
INSERTED DETAIL,26/03/2018,WM,2507319,"1,227.82",HC108443,West Mercia Energy,201812,Environment and Place,Premises-Related Expenditure
INSERTED DETAIL,20/03/2018,WM,2507332,712.3,HC108443,West Mercia Energy,201812,Environment and Place,Premises-Related Expenditure
INSERTED DETAIL,20/03/2018,GI,2507366,521.84,HC108165,NYS Corporate,201812,Safeguarding and Family Support,Employees
INSERTED DETAIL,19/03/2018,GI,2507366,420.05,HC108165,NYS Corporate,201812,Safeguarding and Family Support,Transport-Related Expenditure
INSERTED DETAIL,19/03/2018,GI,2507536,615,HC105434,Little Leintwardine Nursery CIC,201812,Dedicated Schools Grant,Transfer Payments
INSERTED DETAIL,22/03/2018,GI,2507537,615,HC110807,The Townsend Nursery,201812,Dedicated Schools Grant,Transfer Payments
INSERTED DETAIL,21/03/2018,GI,2507542,"23,412.00",HC100109,HM Revenue & Customs,201812,Holding Codes,Holding Codes
INSERTED DETAIL,08/03/2018,GI,2507609,730.38,HC102369,Madley Primary School Imprest A/C,201812,Schools,Supplies & Services
INSERTED DETAIL,09/03/2018,GI,2507610,808.75,HC108278,Orleton C.E. Primary School Imprest,201812,Schools,Premises-Related Expenditure
INSERTED DETAIL,20/03/2018,GI,2507610,"2,476.34",HC108278,Orleton C.E. Primary School Imprest,201812,Schools,Supplies & Services
INSERTED DETAIL,14/03/2018,GI,2507611,"1,884.53",HC105573,Luston C P School Imprest,201812,Schools,Premises-Related Expenditure
INSERTED DETAIL,06/03/2018,GI,2507611,"1,076.68",HC105573,Luston C P School Imprest,201812,Schools,Supplies & Services
INSERTED DETAIL,06/03/2018,GI,2507616,475,HC106103,Holmer C of E Academy,201812,Dedicated Schools Grant,Support Services
INSERTED DETAIL,19/03/2018,GI,2507617,475,HC115716,Mordiford Church of England Primary School,201812,Dedicated Schools Grant,Support Services
INSERTED DETAIL,21/03/2018,GI,2507618,475,HC107656,St Pauls Church of England Primary School,201812,Dedicated Schools Grant,Support Services
INSERTED DETAIL,19/03/2018,GI,2507625,475,HC110794,The Steiner Academy Hereford,201812,Dedicated Schools Grant,Support Services
INSERTED DETAIL,22/03/2018,GI,2507626,"1,079.13",HC113960,Barrs Court Academy,201812,Dedicated Schools Grant,Support Services
INSERTED DETAIL,23/03/2018,GI,2507627,"1,079.13",HC113960,Barrs Court Academy,201812,Dedicated Schools Grant,Support Services
INSERTED DETAIL,27/03/2018,GI,2507628,"1,079.13",HC113960,Barrs Court Academy,201812,Dedicated Schools Grant,Support Services
INSERTED DETAIL,15/03/2018,GI,2507629,475,HC113960,Barrs Court Academy,201812,Dedicated Schools Grant,Support Services
INSERTED DETAIL,15/03/2018,GI,2507630,764.13,HC113960,Barrs Court Academy,201812,Dedicated Schools Grant,Support Services
INSERTED DETAIL,15/03/2018,GI,2507631,764.13,HC113960,Barrs Court Academy,201812,Dedicated Schools Grant,Support Services
INSERTED DETAIL,16/03/2018,GI,2507632,475,HC113960,Barrs Court Academy,201812,Dedicated Schools Grant,Support Services
INSERTED DETAIL,09/03/2018,GI,2507633,764.13,HC113960,Barrs Court Academy,201812,Dedicated Schools Grant,Support Services
INSERTED DETAIL,20/03/2018,GI,2507634,"1,079.13",HC113960,Barrs Court Academy,201812,Dedicated Schools Grant,Support Services
INSERTED DETAIL,20/03/2018,GI,2507635,"1,079.13",HC113960,Barrs Court Academy,201812,Dedicated Schools Grant,Support Services
INSERTED DETAIL,20/03/2018,GI,2507636,764.13,HC113960,Barrs Court Academy,201812,Dedicated Schools Grant,Support Services
INSERTED DETAIL,23/03/2018,GI,2507637,"1,079.13",HC113960,Barrs Court Academy,201812,Dedicated Schools Grant,Support Services
INSERTED DETAIL,20/03/2018,GI,2507638,475,HC113960,Barrs Court Academy,201812,Dedicated Schools Grant,Support Services
INSERTED DETAIL,20/03/2018,GI,2507639,"1,438.37",HC113960,Barrs Court Academy,201812,Dedicated Schools Grant,Support Services
INSERTED DETAIL,21/03/2018,GI,2507640,764.13,HC113960,Barrs Court Academy,201812,Dedicated Schools Grant,Support Services
INSERTED DETAIL,21/03/2018,GI,2507641,764.13,HC113960,Barrs Court Academy,201812,Dedicated Schools Grant,Support Services
INSERTED DETAIL,21/03/2018,GI,2507642,"1,079.13",HC113960,Barrs Court Academy,201812,Dedicated Schools Grant,Support Services
INSERTED DETAIL,21/03/2018,GI,2507643,764.13,HC113960,Barrs Court Academy,201812,Dedicated Schools Grant,Support Services
INSERTED DETAIL,21/03/2018,GI,2507644,764.13,HC113960,Barrs Court Academy,201812,Dedicated Schools Grant,Support Services
INSERTED DETAIL,21/03/2018,GI,2507645,475,HC113960,Barrs Court Academy,201812,Dedicated Schools Grant,Support Services
INSERTED DETAIL,20/03/2018,GI,2507646,"1,079.13",HC113960,Barrs Court Academy,201812,Dedicated Schools Grant,Support Services
INSERTED DETAIL,20/03/2018,GI,2507647,764.13,HC113960,Barrs Court Academy,201812,Dedicated Schools Grant,Support Services
INSERTED DETAIL,20/03/2018,GI,2507648,764.13,HC113960,Barrs Court Academy,201812,Dedicated Schools Grant,Support Services
INSERTED DETAIL,20/03/2018,GI,2507649,"1,079.13",HC113960,Barrs Court Academy,201812,Dedicated Schools Grant,Support Services
INSERTED DETAIL,22/03/2018,GI,2507650,"1,079.13",HC113960,Barrs Court Academy,201812,Dedicated Schools Grant,Support Services
INSERTED DETAIL,02/03/2018,GI,2507651,"1,079.13",HC113960,Barrs Court Academy,201812,Dedicated Schools Grant,Support Services
INSERTED DETAIL,22/03/2018,GI,2507652,764.13,HC113960,Barrs Court Academy,201812,Dedicated Schools Grant,Support Services
INSERTED DETAIL,02/03/2018,GI,2507653,764.13,HC113960,Barrs Court Academy,201812,Dedicated Schools Grant,Support Services
INSERTED DETAIL,12/03/2018,GI,2507654,764.13,HC113960,Barrs Court Academy,201812,Dedicated Schools Grant,Support Services
INSERTED DETAIL,13/03/2018,GI,2507655,"1,079.13",HC113960,Barrs Court Academy,201812,Dedicated Schools Grant,Support Services
INSERTED DETAIL,19/03/2018,GI,2507656,"1,079.13",HC113960,Barrs Court Academy,201812,Dedicated Schools Grant,Support Services
INSERTED DETAIL,09/03/2018,GI,2507657,"1,079.13",HC113960,Barrs Court Academy,201812,Dedicated Schools Grant,Support Services
INSERTED DETAIL,12/03/2018,GI,2507658,"1,079.13",HC113960,Barrs Court Academy,201812,Dedicated Schools Grant,Support Services
INSERTED DETAIL,13/03/2018,GI,2507659,"1,438.37",HC113960,Barrs Court Academy,201812,Dedicated Schools Grant,Support Services
INSERTED DETAIL,15/03/2018,GI,2507660,"1,079.13",HC113960,Barrs Court Academy,201812,Dedicated Schools Grant,Support Services
INSERTED DETAIL,05/03/2018,GI,2507661,"1,079.13",HC113960,Barrs Court Academy,201812,Dedicated Schools Grant,Support Services
INSERTED DETAIL,05/03/2018,GI,2507662,"1,438.37",HC113960,Barrs Court Academy,201812,Dedicated Schools Grant,Support Services
INSERTED DETAIL,15/03/2018,GI,2507663,764.13,HC113960,Barrs Court Academy,201812,Dedicated Schools Grant,Support Services
INSERTED DETAIL,06/03/2018,GI,2507664,764.13,HC113960,Barrs Court Academy,201812,Dedicated Schools Grant,Support Services
INSERTED DETAIL,02/03/2018,GI,2507665,764.13,HC113960,Barrs Court Academy,201812,Dedicated Schools Grant,Support Services
INSERTED DETAIL,22/03/2018,GI,2507666,764.13,HC113960,Barrs Court Academy,201812,Dedicated Schools Grant,Support Services
INSERTED DETAIL,20/03/2018,GI,2507667,764.13,HC117835,The Brookfield School (Academy),201812,Dedicated Schools Grant,Support Services
INSERTED DETAIL,20/03/2018,GI,2507668,764.13,HC117835,The Brookfield School (Academy),201812,Dedicated Schools Grant,Support Services
INSERTED DETAIL,21/03/2018,GI,2507669,475,HC117835,The Brookfield School (Academy),201812,Dedicated Schools Grant,Support Services
INSERTED DETAIL,12/03/2018,GI,2507670,475,HC117835,The Brookfield School (Academy),201812,Dedicated Schools Grant,Support Services
INSERTED DETAIL,27/03/2018,GI,2507671,764.13,HC117835,The Brookfield School (Academy),201812,Dedicated Schools Grant,Support Services
INSERTED DETAIL,20/03/2018,GI,2507672,764.13,HC117835,The Brookfield School (Academy),201812,Dedicated Schools Grant,Support Services
INSERTED DETAIL,08/03/2018,GI,2507673,475,HC117835,The Brookfield School (Academy),201812,Dedicated Schools Grant,Support Services
INSERTED DETAIL,26/03/2018,GI,2507674,764.13,HC117835,The Brookfield School (Academy),201812,Dedicated Schools Grant,Support Services
INSERTED DETAIL,14/03/2018,GI,2507675,475,HC111701,Whitecross Hereford Academy,201812,Dedicated Schools Grant,Support Services
INSERTED DETAIL,13/03/2018,GI,2507681,475,HC110648,BAE Trust T/A The Hereford Academy,201812,Dedicated Schools Grant,Support Services
INSERTED DETAIL,02/03/2018,GI,2507682,764.13,HC117835,The Brookfield School (Academy),201812,Dedicated Schools Grant,Support Services
INSERTED DETAIL,08/03/2018,GI,2507683,764.13,HC117835,The Brookfield School (Academy),201812,Dedicated Schools Grant,Support Services
INSERTED DETAIL,20/03/2018,GI,2507684,475,HC113960,Barrs Court Academy,201812,Dedicated Schools Grant,Support Services
INSERTED DETAIL,01/03/2018,GI,2507685,"1,079.13",HC113960,Barrs Court Academy,201812,Dedicated Schools Grant,Support Services
INSERTED DETAIL,12/03/2018,GI,2507686,"1,438.37",HC113960,Barrs Court Academy,201812,Dedicated Schools Grant,Support Services
INSERTED DETAIL,19/03/2018,GI,2507687,"1,079.13",HC113960,Barrs Court Academy,201812,Dedicated Schools Grant,Support Services
INSERTED DETAIL,08/03/2018,GI,2507688,764.13,HC113960,Barrs Court Academy,201812,Dedicated Schools Grant,Support Services
INSERTED DETAIL,15/03/2018,GI,2507689,764.13,HC113960,Barrs Court Academy,201812,Dedicated Schools Grant,Support Services
INSERTED DETAIL,13/03/2018,GI,2507690,"1,079.13",HC113960,Barrs Court Academy,201812,Dedicated Schools Grant,Support Services
INSERTED DETAIL,16/03/2018,GI,2507691,475,HC113960,Barrs Court Academy,201812,Dedicated Schools Grant,Support Services
INSERTED DETAIL,20/03/2018,GI,2507692,475,HC113960,Barrs Court Academy,201812,Dedicated Schools Grant,Support Services
INSERTED DETAIL,13/03/2018,GI,2507693,"1,079.13",HC113960,Barrs Court Academy,201812,Dedicated Schools Grant,Support Services
INSERTED DETAIL,15/03/2018,GI,2507694,"1,079.13",HC113960,Barrs Court Academy,201812,Dedicated Schools Grant,Support Services
INSERTED DETAIL,13/03/2018,GI,2507695,"1,433.37",HC117835,The Brookfield School (Academy),201812,Dedicated Schools Grant,Support Services
INSERTED DETAIL,15/03/2018,GI,2507697,475,HC117835,The Brookfield School (Academy),201812,Dedicated Schools Grant,Support Services
INSERTED DETAIL,19/03/2018,GI,2507698,475,HC113960,Barrs Court Academy,201812,Dedicated Schools Grant,Support Services
INSERTED DETAIL,19/03/2018,GI,2507699,764.13,HC113960,Barrs Court Academy,201812,Dedicated Schools Grant,Support Services
INSERTED DETAIL,05/03/2018,GI,2507700,764.13,HC113960,Barrs Court Academy,201812,Dedicated Schools Grant,Support Services
INSERTED DETAIL,05/03/2018,GI,2507701,475,HC102152,Ashperton Primary Academy,201812,Dedicated Schools Grant,Support Services
INSERTED DETAIL,16/03/2018,GI,2507704,475,HC104761,Herefordshire Marches Federation-Lord Scudamore,201812,Dedicated Schools Grant,Support Services
INSERTED DETAIL,15/03/2018,GI,2507705,475,HC105572,Lady Hawkins School (Academy),201812,Dedicated Schools Grant,Support Services
INSERTED DETAIL,05/03/2018,GI,2507706,475,HC113960,Barrs Court Academy,201812,Dedicated Schools Grant,Support Services
INSERTED DETAIL,05/03/2018,GI,2507708,764.13,HC117835,The Brookfield School (Academy),201812,Dedicated Schools Grant,Support Services
INSERTED DETAIL,05/03/2018,GI,2507709,475,HC117835,The Brookfield School (Academy),201812,Dedicated Schools Grant,Support Services
INSERTED DETAIL,14/03/2018,GI,2507710,475,HC117835,The Brookfield School (Academy),201812,Dedicated Schools Grant,Support Services
INSERTED DETAIL,05/03/2018,GI,2507711,475,HC117835,The Brookfield School (Academy),201812,Dedicated Schools Grant,Support Services
INSERTED DETAIL,08/03/2018,GI,2507712,764.13,HC117835,The Brookfield School (Academy),201812,Dedicated Schools Grant,Support Services
INSERTED DETAIL,14/03/2018,GI,2507713,475,HC110794,The Steiner Academy Hereford,201812,Dedicated Schools Grant,Support Services
INSERTED DETAIL,14/03/2018,GI,2507714,"1,079.13",HC113960,Barrs Court Academy,201812,Dedicated Schools Grant,Support Services
INSERTED DETAIL,22/03/2018,GI,2507717,475,HC115884,St Thomas Cantilupe CE Academy,201812,Dedicated Schools Grant,Support Services
INSERTED DETAIL,22/03/2018,GI,2507723,475,HC113960,Barrs Court Academy,201812,Dedicated Schools Grant,Support Services
INSERTED DETAIL,22/03/2018,GI,2507724,475,HC113960,Barrs Court Academy,201812,Dedicated Schools Grant,Support Services
INSERTED DETAIL,22/03/2018,GI,2507725,475,HC113960,Barrs Court Academy,201812,Dedicated Schools Grant,Support Services
INSERTED DETAIL,06/03/2018,GI,2507726,"1,079.13",HC113960,Barrs Court Academy,201812,Dedicated Schools Grant,Support Services
INSERTED DETAIL,21/03/2018,GI,2507728,475,HC117835,The Brookfield School (Academy),201812,Dedicated Schools Grant,Support Services
INSERTED DETAIL,22/03/2018,GI,2507731,475,HC113960,Barrs Court Academy,201812,Dedicated Schools Grant,Support Services
INSERTED DETAIL,15/03/2018,GI,2507733,"1,079.13",HC113960,Barrs Court Academy,201812,Dedicated Schools Grant,Support Services
INSERTED DETAIL,02/03/2018,GI,2507734,475,HC113960,Barrs Court Academy,201812,Dedicated Schools Grant,Support Services
INSERTED DETAIL,09/03/2018,GI,2507735,475,HC113960,Barrs Court Academy,201812,Dedicated Schools Grant,Support Services
INSERTED DETAIL,09/03/2018,GI,2507736,475,HC117835,The Brookfield School (Academy),201812,Dedicated Schools Grant,Support Services
INSERTED DETAIL,13/03/2018,GI,2507737,475,HC117835,The Brookfield School (Academy),201812,Dedicated Schools Grant,Support Services
INSERTED DETAIL,09/03/2018,GI,2507740,475,HC104739,John Masefield High School (Academy),201812,Dedicated Schools Grant,Support Services
INSERTED DETAIL,09/03/2018,GI,2507741,475,HC113960,Barrs Court Academy,201812,Dedicated Schools Grant,Support Services
INSERTED DETAIL,19/03/2018,GI,2507742,475,HC113960,Barrs Court Academy,201812,Dedicated Schools Grant,Support Services
INSERTED DETAIL,19/03/2018,GI,2507743,475,HC113960,Barrs Court Academy,201812,Dedicated Schools Grant,Support Services
INSERTED DETAIL,19/03/2018,GI,2507745,475,HC111701,Whitecross Hereford Academy,201812,Dedicated Schools Grant,Support Services
INSERTED DETAIL,19/03/2018,GI,2507746,475,HC117835,The Brookfield School (Academy),201812,Dedicated Schools Grant,Support Services
INSERTED DETAIL,23/03/2018,GI,2507747,475,HC102152,Ashperton Primary Academy,201812,Dedicated Schools Grant,Support Services
INSERTED DETAIL,06/03/2018,GI,2507748,475,HC108716,Stretton Sugwas CE Academy,201812,Dedicated Schools Grant,Support Services
INSERTED DETAIL,27/03/2018,GI,2507749,475,HC115716,Mordiford Church of England Primary School,201812,Dedicated Schools Grant,Support Services
INSERTED DETAIL,22/03/2018,GI,2507751,475,HC117835,The Brookfield School (Academy),201812,Dedicated Schools Grant,Support Services
INSERTED DETAIL,07/03/2018,GI,2507752,475,HC117835,The Brookfield School (Academy),201812,Dedicated Schools Grant,Support Services
INSERTED DETAIL,07/03/2018,GI,2507754,475,HC102524,Brockhampton Primary School (Academy),201812,Dedicated Schools Grant,Support Services
INSERTED DETAIL,09/03/2018,GI,2507755,475,HC117835,The Brookfield School (Academy),201812,Dedicated Schools Grant,Support Services
INSERTED DETAIL,13/03/2018,GI,2507756,475,HC117835,The Brookfield School (Academy),201812,Dedicated Schools Grant,Support Services
INSERTED DETAIL,21/03/2018,GI,2507757,"1,079.13",HC117835,The Brookfield School (Academy),201812,Dedicated Schools Grant,Support Services
INSERTED DETAIL,21/03/2018,GI,2507758,764.13,HC117835,The Brookfield School (Academy),201812,Dedicated Schools Grant,Support Services
INSERTED DETAIL,21/03/2018,GI,2507759,764.13,HC117835,The Brookfield School (Academy),201812,Dedicated Schools Grant,Support Services
INSERTED DETAIL,01/03/2018,GI,2507760,764.13,HC117835,The Brookfield School (Academy),201812,Dedicated Schools Grant,Support Services
INSERTED DETAIL,20/03/2018,GI,2507761,764.13,HC117835,The Brookfield School (Academy),201812,Dedicated Schools Grant,Support Services
INSERTED DETAIL,21/03/2018,GI,2507762,764.13,HC117835,The Brookfield School (Academy),201812,Dedicated Schools Grant,Support Services
INSERTED DETAIL,19/03/2018,GI,2507763,475,HC113733,Canon Pyon CE Academy,201812,Dedicated Schools Grant,Support Services
INSERTED DETAIL,22/03/2018,GI,2507764,475,HC113960,Barrs Court Academy,201812,Dedicated Schools Grant,Support Services
INSERTED DETAIL,14/03/2018,GI,2507765,475,HC117835,The Brookfield School (Academy),201812,Dedicated Schools Grant,Support Services
INSERTED DETAIL,19/03/2018,GI,2507767,475,HC104739,John Masefield High School (Academy),201812,Dedicated Schools Grant,Support Services
INSERTED DETAIL,20/03/2018,GI,2507768,475,HC117835,The Brookfield School (Academy),201812,Dedicated Schools Grant,Support Services
INSERTED DETAIL,20/03/2018,GI,2507769,475,HC117835,The Brookfield School (Academy),201812,Dedicated Schools Grant,Support Services
INSERTED DETAIL,20/03/2018,GI,2507770,475,HC117835,The Brookfield School (Academy),201812,Dedicated Schools Grant,Support Services
INSERTED DETAIL,13/03/2018,GI,2507771,475,HC117835,The Brookfield School (Academy),201812,Dedicated Schools Grant,Support Services
INSERTED DETAIL,19/03/2018,GI,2507772,475,HC113960,Barrs Court Academy,201812,Dedicated Schools Grant,Support Services
INSERTED DETAIL,19/03/2018,GI,2507773,"1,079.13",HC113960,Barrs Court Academy,201812,Dedicated Schools Grant,Support Services
INSERTED DETAIL,19/03/2018,GI,2507774,764.13,HC113960,Barrs Court Academy,201812,Dedicated Schools Grant,Support Services
INSERTED DETAIL,14/03/2018,GI,2507776,475,HC116854,Fairfield High School (Academy),201812,Dedicated Schools Grant,Support Services
INSERTED DETAIL,05/03/2018,GI,2507779,475,HC102152,Ashperton Primary Academy,201812,Dedicated Schools Grant,Support Services
INSERTED DETAIL,05/03/2018,GI,2507781,475,HC117835,The Brookfield School (Academy),201812,Dedicated Schools Grant,Support Services
INSERTED DETAIL,07/03/2018,GI,2507782,475,HC106103,Holmer C of E Academy,201812,Dedicated Schools Grant,Support Services
INSERTED DETAIL,07/03/2018,GI,2507783,475,HC115884,St Thomas Cantilupe CE Academy,201812,Dedicated Schools Grant,Support Services
INSERTED DETAIL,06/03/2018,GI,2507786,764.13,HC110648,BAE Trust T/A The Hereford Academy,201812,Dedicated Schools Grant,Support Services
INSERTED DETAIL,27/03/2018,GI,2507787,764.13,HC117835,The Brookfield School (Academy),201812,Dedicated Schools Grant,Support Services
INSERTED DETAIL,19/03/2018,GI,2507788,764.13,HC111508,Wigmore High School (Academy),201812,Dedicated Schools Grant,Support Services
INSERTED DETAIL,09/03/2018,GI,2507789,475,HC113960,Barrs Court Academy,201812,Dedicated Schools Grant,Support Services
INSERTED DETAIL,26/03/2018,GI,2507790,475,HC117835,The Brookfield School (Academy),201812,Dedicated Schools Grant,Support Services
INSERTED DETAIL,21/03/2018,GI,2507792,475,HC117835,The Brookfield School (Academy),201812,Dedicated Schools Grant,Support Services
INSERTED DETAIL,20/03/2018,GI,2507794,475,HC110648,BAE Trust T/A The Hereford Academy,201812,Dedicated Schools Grant,Support Services
INSERTED DETAIL,20/03/2018,GI,2507795,764.13,HC117835,The Brookfield School (Academy),201812,Dedicated Schools Grant,Support Services
INSERTED DETAIL,20/03/2018,GI,2507796,"1,438.37",HC113960,Barrs Court Academy,201812,Dedicated Schools Grant,Support Services
INSERTED DETAIL,20/03/2018,GI,2507797,475,HC113960,Barrs Court Academy,201812,Dedicated Schools Grant,Support Services
INSERTED DETAIL,20/03/2018,GI,2507800,475,HC117215,Robert Owen Academey,201812,Dedicated Schools Grant,Support Services
INSERTED DETAIL,20/03/2018,GI,2507801,475,HC102076,Herefordshire Marches Federation Sutton Primary Academy,201812,Dedicated Schools Grant,Support Services
INSERTED DETAIL,20/03/2018,GI,2507803,764.13,HC105571,Wigmore Primary School (Academy),201812,Dedicated Schools Grant,Support Services
INSERTED DETAIL,20/03/2018,GI,2507804,475,HC117835,The Brookfield School (Academy),201812,Dedicated Schools Grant,Support Services
INSERTED DETAIL,20/03/2018,GI,2507806,764.13,HC117835,The Brookfield School (Academy),201812,Dedicated Schools Grant,Support Services
INSERTED DETAIL,20/03/2018,GI,2507807,764.13,HC117835,The Brookfield School (Academy),201812,Dedicated Schools Grant,Support Services
INSERTED DETAIL,20/03/2018,GI,2507808,475,HC104739,John Masefield High School (Academy),201812,Dedicated Schools Grant,Support Services
INSERTED DETAIL,20/03/2018,GI,2507809,764.13,HC117835,The Brookfield School (Academy),201812,Dedicated Schools Grant,Support Services
INSERTED DETAIL,20/03/2018,GI,2507813,764.13,HC113960,Barrs Court Academy,201812,Dedicated Schools Grant,Support Services
INSERTED DETAIL,20/03/2018,GI,2507814,475,HC105572,Lady Hawkins School (Academy),201812,Dedicated Schools Grant,Support Services
INSERTED DETAIL,20/03/2018,GI,2507817,764.13,HC106103,Holmer C of E Academy,201812,Dedicated Schools Grant,Support Services
INSERTED DETAIL,20/03/2018,GI,2507818,475,HC117835,The Brookfield School (Academy),201812,Dedicated Schools Grant,Support Services
INSERTED DETAIL,20/03/2018,GI,2507819,475,HC117835,The Brookfield School (Academy),201812,Dedicated Schools Grant,Support Services
INSERTED DETAIL,20/03/2018,GI,2507820,"1,079.13",HC113960,Barrs Court Academy,201812,Dedicated Schools Grant,Support Services
INSERTED DETAIL,20/03/2018,GI,2507821,475,HC111508,Wigmore High School (Academy),201812,Dedicated Schools Grant,Support Services
INSERTED DETAIL,20/03/2018,GI,2507822,475,HC117835,The Brookfield School (Academy),201812,Dedicated Schools Grant,Support Services
INSERTED DETAIL,16/03/2018,GI,2507823,764.13,HC113960,Barrs Court Academy,201812,Dedicated Schools Grant,Support Services
INSERTED DETAIL,15/03/2018,GI,2507824,764.13,HC113960,Barrs Court Academy,201812,Dedicated Schools Grant,Support Services
INSERTED DETAIL,15/03/2018,GI,2507825,"1,079.13",HC113960,Barrs Court Academy,201812,Dedicated Schools Grant,Support Services
INSERTED DETAIL,05/03/2018,GI,2507826,764.13,HC113960,Barrs Court Academy,201812,Dedicated Schools Grant,Support Services
INSERTED DETAIL,09/03/2018,GI,2507827,"1,079.13",HC113960,Barrs Court Academy,201812,Dedicated Schools Grant,Support Services
INSERTED DETAIL,19/03/2018,GI,2507828,"1,079.13",HC113960,Barrs Court Academy,201812,Dedicated Schools Grant,Support Services
INSERTED DETAIL,19/03/2018,GI,2507829,"1,079.13",HC113960,Barrs Court Academy,201812,Dedicated Schools Grant,Support Services
INSERTED DETAIL,12/03/2018,GI,2507830,764.13,HC113960,Barrs Court Academy,201812,Dedicated Schools Grant,Support Services
INSERTED DETAIL,15/03/2018,GI,2507832,475,HC117835,The Brookfield School (Academy),201812,Dedicated Schools Grant,Support Services
INSERTED DETAIL,15/03/2018,GI,2507833,475,HC117835,The Brookfield School (Academy),201812,Dedicated Schools Grant,Support Services
INSERTED DETAIL,16/03/2018,GI,2507834,475,HC115884,St Thomas Cantilupe CE Academy,201812,Dedicated Schools Grant,Support Services
INSERTED DETAIL,09/03/2018,GI,2507838,764.13,HC110794,The Steiner Academy Hereford,201812,Dedicated Schools Grant,Support Services
INSERTED DETAIL,12/03/2018,GI,2507840,475,HC107656,St Pauls Church of England Primary School,201812,Dedicated Schools Grant,Support Services
INSERTED DETAIL,19/03/2018,GI,2507842,475,HC117835,The Brookfield School (Academy),201812,Dedicated Schools Grant,Support Services
INSERTED DETAIL,19/03/2018,GI,2507843,"1,079.13",HC117835,The Brookfield School (Academy),201812,Dedicated Schools Grant,Support Services
INSERTED DETAIL,23/03/2018,GI,2507844,475,HC117835,The Brookfield School (Academy),201812,Dedicated Schools Grant,Support Services
INSERTED DETAIL,23/03/2018,GI,2507845,764.13,HC117835,The Brookfield School (Academy),201812,Dedicated Schools Grant,Support Services
INSERTED DETAIL,19/03/2018,GI,2507847,475,HC102076,Herefordshire Marches Federation Sutton Primary Academy,201812,Dedicated Schools Grant,Support Services
INSERTED DETAIL,21/03/2018,GI,2507848,475,HC117835,The Brookfield School (Academy),201812,Dedicated Schools Grant,Support Services
INSERTED DETAIL,06/03/2018,GI,2507850,764.13,HC117835,The Brookfield School (Academy),201812,Dedicated Schools Grant,Support Services
INSERTED DETAIL,06/03/2018,GI,2507851,475,HC113961,Burghill Community Academy,201812,Dedicated Schools Grant,Support Services
INSERTED DETAIL,06/03/2018,GI,2507852,475,HC116854,Fairfield High School (Academy),201812,Dedicated Schools Grant,Support Services
INSERTED DETAIL,28/03/2018,GI,2507853,475,HC104727,John Kyrle High School,201812,Dedicated Schools Grant,Support Services
INSERTED DETAIL,12/03/2018,GI,2507855,475,HC117835,The Brookfield School (Academy),201812,Dedicated Schools Grant,Support Services
INSERTED DETAIL,01/03/2018,GI,2507856,"1,438.37",HC113960,Barrs Court Academy,201812,Dedicated Schools Grant,Support Services
INSERTED DETAIL,09/03/2018,GI,2507860,475,HC115716,Mordiford Church of England Primary School,201812,Dedicated Schools Grant,Support Services
INSERTED DETAIL,14/03/2018,GI,2507861,764.17,HC113960,Barrs Court Academy,201812,Dedicated Schools Grant,Support Services
INSERTED DETAIL,20/03/2018,GI,2507862,475,HC105571,Wigmore Primary School (Academy),201812,Dedicated Schools Grant,Support Services
INSERTED DETAIL,21/03/2018,GI,2507863,764.13,HC104727,John Kyrle High School,201812,Dedicated Schools Grant,Support Services
INSERTED DETAIL,28/03/2018,GI,2507864,"1,079.13",HC104739,John Masefield High School (Academy),201812,Dedicated Schools Grant,Support Services
INSERTED DETAIL,22/03/2018,GI,2507865,475,HC111701,Whitecross Hereford Academy,201812,Dedicated Schools Grant,Support Services
INSERTED DETAIL,05/03/2018,GI,2507867,475,HC117835,The Brookfield School (Academy),201812,Dedicated Schools Grant,Support Services
INSERTED DETAIL,05/03/2018,GI,2507868,475,HC105571,Wigmore Primary School (Academy),201812,Dedicated Schools Grant,Support Services
INSERTED DETAIL,13/03/2018,GI,2507869,764.13,HC113960,Barrs Court Academy,201812,Dedicated Schools Grant,Support Services
INSERTED DETAIL,22/03/2018,GI,2507872,475,HC113733,Canon Pyon CE Academy,201812,Dedicated Schools Grant,Support Services
INSERTED DETAIL,20/03/2018,GI,2507877,475,HC113960,Barrs Court Academy,201812,Dedicated Schools Grant,Support Services
INSERTED DETAIL,20/03/2018,GI,2507878,475,HC122135,BAET T/A Bodenham St Michael's CE Primary School,201812,Dedicated Schools Grant,Support Services
INSERTED DETAIL,20/03/2018,GI,2507879,764.17,HC113960,Barrs Court Academy,201812,Dedicated Schools Grant,Support Services
INSERTED DETAIL,22/03/2018,GI,2507881,"1,079.17",HC113960,Barrs Court Academy,201812,Dedicated Schools Grant,Support Services
INSERTED DETAIL,20/03/2018,GI,2507882,"1,079.17",HC113960,Barrs Court Academy,201812,Dedicated Schools Grant,Support Services
INSERTED DETAIL,20/03/2018,GI,2507883,764.17,HC117835,The Brookfield School (Academy),201812,Dedicated Schools Grant,Support Services
INSERTED DETAIL,20/03/2018,GI,2507884,475,HC117835,The Brookfield School (Academy),201812,Dedicated Schools Grant,Support Services
INSERTED DETAIL,20/03/2018,GI,2507886,764.17,HC105714,QEHC Academy Trust T/A Queen Elizabeth Humanities College,201812,Dedicated Schools Grant,Support Services
INSERTED DETAIL,20/03/2018,GI,2507889,764.17,HC104739,John Masefield High School (Academy),201812,Dedicated Schools Grant,Support Services
INSERTED DETAIL,20/03/2018,GI,2507890,475,HC105571,Wigmore Primary School (Academy),201812,Dedicated Schools Grant,Support Services
INSERTED DETAIL,20/03/2018,GI,2507892,"1,079.17",HC113960,Barrs Court Academy,201812,Dedicated Schools Grant,Support Services
INSERTED DETAIL,20/03/2018,GI,2507893,475,HC113961,Burghill Community Academy,201812,Dedicated Schools Grant,Support Services
INSERTED DETAIL,20/03/2018,GI,2507894,475,HC115716,Mordiford Church of England Primary School,201812,Dedicated Schools Grant,Support Services
INSERTED DETAIL,20/03/2018,GI,2507895,475,HC111701,Whitecross Hereford Academy,201812,Dedicated Schools Grant,Support Services
INSERTED DETAIL,20/03/2018,GI,2507896,475,HC116854,Fairfield High School (Academy),201812,Dedicated Schools Grant,Support Services
INSERTED DETAIL,20/03/2018,GI,2507897,475,HC113960,Barrs Court Academy,201812,Dedicated Schools Grant,Support Services
INSERTED DETAIL,20/03/2018,GI,2507898,764.17,HC117835,The Brookfield School (Academy),201812,Dedicated Schools Grant,Support Services
INSERTED DETAIL,20/03/2018,GI,2507899,764.17,HC115884,St Thomas Cantilupe CE Academy,201812,Dedicated Schools Grant,Support Services
INSERTED DETAIL,20/03/2018,GI,2507904,475,HC104739,John Masefield High School (Academy),201812,Dedicated Schools Grant,Support Services
INSERTED DETAIL,20/03/2018,GI,2507905,475,HC110648,BAE Trust T/A The Hereford Academy,201812,Dedicated Schools Grant,Support Services
INSERTED DETAIL,20/03/2018,GI,2507906,475,HC113960,Barrs Court Academy,201812,Dedicated Schools Grant,Support Services
INSERTED DETAIL,23/03/2018,GI,2507907,475,HC104761,Herefordshire Marches Federation-Lord Scudamore,201812,Dedicated Schools Grant,Support Services
INSERTED DETAIL,02/03/2018,GI,2507910,475,HC110648,BAE Trust T/A The Hereford Academy,201812,Dedicated Schools Grant,Support Services
INSERTED DETAIL,27/03/2018,GI,2507912,475,HC104739,John Masefield High School (Academy),201812,Dedicated Schools Grant,Support Services
INSERTED DETAIL,16/03/2018,GI,2507913,475,HC104739,John Masefield High School (Academy),201812,Dedicated Schools Grant,Support Services
INSERTED DETAIL,21/03/2018,GI,2507914,475,HC104739,John Masefield High School (Academy),201812,Dedicated Schools Grant,Support Services
INSERTED DETAIL,21/03/2018,GI,2507917,475,HC113960,Barrs Court Academy,201812,Dedicated Schools Grant,Support Services
INSERTED DETAIL,14/03/2018,GI,2507918,475,HC113960,Barrs Court Academy,201812,Dedicated Schools Grant,Support Services
INSERTED DETAIL,14/03/2018,GI,2507919,475,HC113960,Barrs Court Academy,201812,Dedicated Schools Grant,Support Services
INSERTED DETAIL,20/03/2018,GI,2507920,"1,079.17",HC113960,Barrs Court Academy,201812,Dedicated Schools Grant,Support Services
INSERTED DETAIL,20/03/2018,GI,2507921,"1,079.17",HC113960,Barrs Court Academy,201812,Dedicated Schools Grant,Support Services
INSERTED DETAIL,06/03/2018,GI,2507922,"1,079.17",HC113960,Barrs Court Academy,201812,Dedicated Schools Grant,Support Services
INSERTED DETAIL,01/03/2018,GI,2507923,475,HC113960,Barrs Court Academy,201812,Dedicated Schools Grant,Support Services
INSERTED DETAIL,28/03/2018,GI,2507924,764.17,HC113960,Barrs Court Academy,201812,Dedicated Schools Grant,Support Services
INSERTED DETAIL,20/03/2018,GI,2507925,764.17,HC113960,Barrs Court Academy,201812,Dedicated Schools Grant,Support Services
INSERTED DETAIL,20/03/2018,GI,2507926,475,HC108716,Stretton Sugwas CE Academy,201812,Dedicated Schools Grant,Support Services
INSERTED DETAIL,15/03/2018,GI,2507927,475,HC122135,BAET T/A Bodenham St Michael's CE Primary School,201812,Dedicated Schools Grant,Support Services
INSERTED DETAIL,12/03/2018,GI,2507929,475,HC105714,QEHC Academy Trust T/A Queen Elizabeth Humanities College,201812,Dedicated Schools Grant,Support Services
INSERTED DETAIL,15/03/2018,GI,2507931,475,HC117835,The Brookfield School (Academy),201812,Dedicated Schools Grant,Support Services
INSERTED DETAIL,14/03/2018,GI,2507932,475,HC117835,The Brookfield School (Academy),201812,Dedicated Schools Grant,Support Services
INSERTED DETAIL,12/03/2018,GI,2507933,475,HC117835,The Brookfield School (Academy),201812,Dedicated Schools Grant,Support Services
INSERTED DETAIL,15/03/2018,GI,2507934,475,HC110794,The Steiner Academy Hereford,201812,Dedicated Schools Grant,Support Services
INSERTED DETAIL,15/03/2018,GI,2507935,475,HC117835,The Brookfield School (Academy),201812,Dedicated Schools Grant,Support Services
INSERTED DETAIL,02/03/2018,GI,2507936,475,HC117835,The Brookfield School (Academy),201812,Dedicated Schools Grant,Support Services
INSERTED DETAIL,28/03/2018,GI,2507937,475,HC105073,Kingstone & Thruxton Primary School (Academy),201812,Dedicated Schools Grant,Support Services
INSERTED DETAIL,08/03/2018,GI,2507938,475,HC102076,Herefordshire Marches Federation Sutton Primary Academy,201812,Dedicated Schools Grant,Support Services
INSERTED DETAIL,06/03/2018,GI,2507939,764.17,HC110648,BAE Trust T/A The Hereford Academy,201812,Dedicated Schools Grant,Support Services
INSERTED DETAIL,06/03/2018,GI,2507941,475,HC113960,Barrs Court Academy,201812,Dedicated Schools Grant,Support Services
INSERTED DETAIL,26/03/2018,GI,2507942,475,HC105073,Kingstone & Thruxton Primary School (Academy),201812,Dedicated Schools Grant,Support Services
INSERTED DETAIL,26/03/2018,GI,2507944,764.17,HC104727,John Kyrle High School,201812,Dedicated Schools Grant,Support Services
INSERTED DETAIL,20/03/2018,GI,2507945,475,HC110648,BAE Trust T/A The Hereford Academy,201812,Dedicated Schools Grant,Support Services
INSERTED DETAIL,14/03/2018,GI,2507946,764.17,HC117835,The Brookfield School (Academy),201812,Dedicated Schools Grant,Support Services
INSERTED DETAIL,21/03/2018,GI,2507947,475,HC117835,The Brookfield School (Academy),201812,Dedicated Schools Grant,Support Services
INSERTED DETAIL,23/03/2018,GI,2507948,764.17,HC117215,Robert Owen Academey,201812,Dedicated Schools Grant,Support Services
INSERTED DETAIL,23/03/2018,GI,2507950,764.17,HC107656,St Pauls Church of England Primary School,201812,Dedicated Schools Grant,Support Services
INSERTED DETAIL,19/03/2018,GI,2507951,764.17,HC117835,The Brookfield School (Academy),201812,Dedicated Schools Grant,Support Services
INSERTED DETAIL,19/03/2018,GI,2507953,475,HC117835,The Brookfield School (Academy),201812,Dedicated Schools Grant,Support Services
INSERTED DETAIL,20/03/2018,GI,2507954,475,HC117835,The Brookfield School (Academy),201812,Dedicated Schools Grant,Support Services
INSERTED DETAIL,20/03/2018,GI,2507955,764.13,HC117835,The Brookfield School (Academy),201812,Dedicated Schools Grant,Support Services
INSERTED DETAIL,14/03/2018,GI,2507957,764.13,HC104739,John Masefield High School (Academy),201812,Dedicated Schools Grant,Support Services
INSERTED DETAIL,16/03/2018,GI,2507958,764.17,HC107656,St Pauls Church of England Primary School,201812,Dedicated Schools Grant,Support Services
INSERTED DETAIL,16/03/2018,GI,2507961,475,HC103935,Herefordshire & Ludlow College,201812,Dedicated Schools Grant,Support Services
INSERTED DETAIL,19/03/2018,GI,2507966,764.17,HC103935,Herefordshire & Ludlow College,201812,Dedicated Schools Grant,Support Services
INSERTED DETAIL,19/03/2018,GI,2507967,475,HC103935,Herefordshire & Ludlow College,201812,Dedicated Schools Grant,Support Services
INSERTED DETAIL,06/03/2018,GI,2507968,475,HC103935,Herefordshire & Ludlow College,201812,Dedicated Schools Grant,Support Services
INSERTED DETAIL,19/03/2018,GI,2507969,475,HC103935,Herefordshire & Ludlow College,201812,Dedicated Schools Grant,Support Services
INSERTED DETAIL,09/03/2018,GI,2507971,475,HC103935,Herefordshire & Ludlow College,201812,Dedicated Schools Grant,Support Services
INSERTED DETAIL,20/03/2018,GI,2507972,613.33,HC103935,Herefordshire & Ludlow College,201812,Dedicated Schools Grant,Support Services
INSERTED DETAIL,20/03/2018,GI,2507973,975,HC103935,Herefordshire & Ludlow College,201812,Dedicated Schools Grant,Support Services
INSERTED DETAIL,20/03/2018,GI,2507974,975,HC103935,Herefordshire & Ludlow College,201812,Dedicated Schools Grant,Support Services
INSERTED DETAIL,20/03/2018,GI,2507975,975,HC103935,Herefordshire & Ludlow College,201812,Dedicated Schools Grant,Support Services
INSERTED DETAIL,23/03/2018,GI,2507976,613.33,HC103935,Herefordshire & Ludlow College,201812,Dedicated Schools Grant,Support Services
INSERTED DETAIL,20/03/2018,GI,2507977,975,HC103935,Herefordshire & Ludlow College,201812,Dedicated Schools Grant,Support Services
INSERTED DETAIL,20/03/2018,GI,2507978,613.33,HC103935,Herefordshire & Ludlow College,201812,Dedicated Schools Grant,Support Services
INSERTED DETAIL,23/03/2018,GI,2507979,975,HC103935,Herefordshire & Ludlow College,201812,Dedicated Schools Grant,Support Services
INSERTED DETAIL,08/03/2018,GI,2507980,975,HC103935,Herefordshire & Ludlow College,201812,Dedicated Schools Grant,Support Services
INSERTED DETAIL,20/03/2018,GI,2507981,613.33,HC103935,Herefordshire & Ludlow College,201812,Dedicated Schools Grant,Support Services
INSERTED DETAIL,20/03/2018,GI,2507982,778.33,HC103935,Herefordshire & Ludlow College,201812,Dedicated Schools Grant,Support Services
INSERTED DETAIL,16/03/2018,GI,2507983,778.33,HC103935,Herefordshire & Ludlow College,201812,Dedicated Schools Grant,Support Services
INSERTED DETAIL,06/03/2018,GI,2507984,975,HC103935,Herefordshire & Ludlow College,201812,Dedicated Schools Grant,Support Services
INSERTED DETAIL,06/03/2018,GI,2507985,975,HC103935,Herefordshire & Ludlow College,201812,Dedicated Schools Grant,Support Services
INSERTED DETAIL,06/03/2018,GI,2507986,"1,079.17",HC106975,Hoople Ltd,201812,Dedicated Schools Grant,Support Services
INSERTED DETAIL,06/03/2018,GI,2507988,"1,264.17",HC106975,Hoople Ltd,201812,Dedicated Schools Grant,Support Services
INSERTED DETAIL,06/03/2018,GI,2507990,"1,264.17",HC106975,Hoople Ltd,201812,Dedicated Schools Grant,Support Services
INSERTED DETAIL,07/03/2018,GI,2507991,"1,264.17",HC106975,Hoople Ltd,201812,Dedicated Schools Grant,Support Services
INSERTED DETAIL,20/03/2018,GI,2507992,"1,264.17",HC106975,Hoople Ltd,201812,Dedicated Schools Grant,Support Services
INSERTED DETAIL,20/03/2018,GI,2507993,975,HC106975,Hoople Ltd,201812,Dedicated Schools Grant,Support Services
INSERTED DETAIL,22/03/2018,GI,2507994,475,HC106975,Hoople Ltd,201812,Dedicated Schools Grant,Support Services
INSERTED DETAIL,20/03/2018,GI,2507995,475,HC106975,Hoople Ltd,201812,Dedicated Schools Grant,Support Services
INSERTED DETAIL,12/03/2018,GI,2507996,"1,264.17",HC120103,The Plynlimon Trust-Horizon Training,201812,Dedicated Schools Grant,Support Services
INSERTED DETAIL,16/03/2018,GI,2507997,778.33,HC120103,The Plynlimon Trust-Horizon Training,201812,Dedicated Schools Grant,Support Services
INSERTED DETAIL,02/03/2018,GI,2507998,778.33,HC120103,The Plynlimon Trust-Horizon Training,201812,Dedicated Schools Grant,Support Services
INSERTED DETAIL,01/03/2018,GI,2507999,975,HC120103,The Plynlimon Trust-Horizon Training,201812,Dedicated Schools Grant,Support Services
INSERTED DETAIL,02/03/2018,GI,2508000,975,HC120103,The Plynlimon Trust-Horizon Training,201812,Dedicated Schools Grant,Support Services
INSERTED DETAIL,07/03/2018,GI,2508003,"1,264.17",HC122375,Warwickshire College Group,201812,Dedicated Schools Grant,Support Services
INSERTED DETAIL,13/03/2018,GI,2508004,461.24,HC114613,National Star College,201812,Dedicated Schools Grant,Support Services
INSERTED DETAIL,13/03/2018,GI,2508005,554.24,HC114613,National Star College,201812,Dedicated Schools Grant,Support Services
INSERTED DETAIL,13/03/2018,GI,2508007,724.74,HC114613,National Star College,201812,Dedicated Schools Grant,Support Services
INSERTED DETAIL,13/03/2018,GI,2508008,724.69,HC114613,National Star College,201812,Dedicated Schools Grant,Support Services
INSERTED DETAIL,13/03/2018,GI,2508009,801.8,HC114613,National Star College,201812,Dedicated Schools Grant,Support Services
INSERTED DETAIL,14/03/2018,GI,2508013,883.83,HC112582,Royal National College,201812,Dedicated Schools Grant,Support Services
INSERTED DETAIL,14/03/2018,GI,2508014,"1,650.33",HC112582,Royal National College,201812,Dedicated Schools Grant,Support Services
INSERTED DETAIL,15/03/2018,GI,2508015,961.25,HC112582,Royal National College,201812,Dedicated Schools Grant,Support Services
INSERTED DETAIL,15/03/2018,GI,2508016,"1,992.25",HC112582,Royal National College,201812,Dedicated Schools Grant,Support Services
INSERTED DETAIL,15/03/2018,GI,2508017,"3,095.92",HC114613,National Star College,201812,Dedicated Schools Grant,Support Services
INSERTED DETAIL,19/03/2018,GI,2508018,803.46,HC114613,National Star College,201812,Dedicated Schools Grant,Support Services
INSERTED DETAIL,20/03/2018,GI,2508019,"1,113.27",HC114613,National Star College,201812,Dedicated Schools Grant,Support Services
INSERTED DETAIL,21/03/2018,GI,2508021,"1,264.17",HC116830,Nova Training,201812,Dedicated Schools Grant,Support Services
INSERTED DETAIL,22/03/2018,GI,2508022,975,HC116830,Nova Training,201812,Dedicated Schools Grant,Support Services
INSERTED DETAIL,23/03/2018,GI,2508023,975,HC116830,Nova Training,201812,Dedicated Schools Grant,Support Services
INSERTED DETAIL,22/03/2018,GI,2508024,576.75,HC114595,Derwen College,201812,Dedicated Schools Grant,Support Services
INSERTED DETAIL,06/03/2018,GI,2508025,629.49,HC114595,Derwen College,201812,Dedicated Schools Grant,Support Services
INSERTED DETAIL,13/03/2018,GI,2508026,"1,240.92",HC114595,Derwen College,201812,Dedicated Schools Grant,Support Services
INSERTED DETAIL,15/03/2018,GI,2508027,"1,470.58",HC114595,Derwen College,201812,Dedicated Schools Grant,Support Services
INSERTED DETAIL,15/03/2018,GI,2508029,629.49,HC114595,Derwen College,201812,Dedicated Schools Grant,Support Services
INSERTED DETAIL,09/03/2018,GI,2508030,629.49,HC114595,Derwen College,201812,Dedicated Schools Grant,Support Services
INSERTED DETAIL,21/03/2018,GI,2508031,629.49,HC114595,Derwen College,201812,Dedicated Schools Grant,Support Services
INSERTED DETAIL,15/03/2018,GI,2508032,"1,015.83",HC114595,Derwen College,201812,Dedicated Schools Grant,Support Services
INSERTED DETAIL,20/03/2018,GI,2508033,629.49,HC114595,Derwen College,201812,Dedicated Schools Grant,Support Services
INSERTED DETAIL,20/03/2018,GI,2508034,"1,911.68",HC114596,William Morris Camphill Community,201812,Dedicated Schools Grant,Support Services
INSERTED DETAIL,20/03/2018,GI,2508036,475,HC116854,Fairfield High School (Academy),201812,Dedicated Schools Grant,Support Services
INSERTED DETAIL,20/03/2018,GI,2508037,475,HC110648,BAE Trust T/A The Hereford Academy,201812,Dedicated Schools Grant,Support Services
INSERTED DETAIL,23/03/2018,GI,2508038,475,HC113960,Barrs Court Academy,201812,Dedicated Schools Grant,Support Services
INSERTED DETAIL,19/03/2018,GI,2508039,475,HC107656,St Pauls Church of England Primary School,201812,Dedicated Schools Grant,Support Services
INSERTED DETAIL,19/03/2018,GI,2508042,475,HC104761,Herefordshire Marches Federation-Lord Scudamore,201812,Dedicated Schools Grant,Support Services
INSERTED DETAIL,19/03/2018,GI,2508044,"1,079.17",HC113960,Barrs Court Academy,201812,Dedicated Schools Grant,Support Services
INSERTED DETAIL,13/03/2018,GI,2508045,"2,885.54",HC114611,Farleigh Further Education College Frome,201812,Dedicated Schools Grant,Support Services
INSERTED DETAIL,01/03/2018,GI,2508046,"1,118.84",HC114613,National Star College,201812,Dedicated Schools Grant,Support Services
INSERTED DETAIL,14/03/2018,GI,2508048,"1,330.04",HC114613,National Star College,201812,Dedicated Schools Grant,Support Services
INSERTED DETAIL,13/03/2018,GI,2508049,613.33,HC103854,Hereford College Of Arts,201812,Dedicated Schools Grant,Support Services
INSERTED DETAIL,15/03/2018,GI,2508050,764.17,HC104739,John Masefield High School (Academy),201812,Dedicated Schools Grant,Support Services
INSERTED DETAIL,06/03/2018,GI,2508051,975,HC121748,The Bridge Education Centre - Malvern Hills,201812,Dedicated Schools Grant,Support Services
INSERTED DETAIL,22/03/2018,GI,2508052,475,HC104870,Kingstone High School (Academy),201812,Dedicated Schools Grant,Support Services
INSERTED DETAIL,15/03/2018,GI,2508057,475,HC102152,Ashperton Primary Academy,201812,Dedicated Schools Grant,Support Services
INSERTED DETAIL,08/03/2018,GI,2508058,"4,035.37",HC123957,St John's School & College,201812,Dedicated Schools Grant,Support Services
INSERTED DETAIL,09/03/2018,GI,2508059,475,HC117835,The Brookfield School (Academy),201812,Dedicated Schools Grant,Support Services
INSERTED DETAIL,13/03/2018,GI,2508060,475,HC104870,Kingstone High School (Academy),201812,Dedicated Schools Grant,Support Services
INSERTED DETAIL,13/03/2018,GI,2508062,475,HC110648,BAE Trust T/A The Hereford Academy,201812,Dedicated Schools Grant,Support Services
INSERTED DETAIL,13/03/2018,GI,2508063,475,HC104739,John Masefield High School (Academy),201812,Dedicated Schools Grant,Support Services
INSERTED DETAIL,07/03/2018,GI,2508064,"1,079.17",HC113960,Barrs Court Academy,201812,Dedicated Schools Grant,Support Services
INSERTED DETAIL,08/03/2018,GI,2508065,"1,079.17",HC113960,Barrs Court Academy,201812,Dedicated Schools Grant,Support Services
INSERTED DETAIL,19/03/2018,GI,2508066,"1,438.33",HC113960,Barrs Court Academy,201812,Dedicated Schools Grant,Support Services
INSERTED DETAIL,19/03/2018,GI,2508067,475,HC113960,Barrs Court Academy,201812,Dedicated Schools Grant,Support Services
INSERTED DETAIL,19/03/2018,GI,2508068,764.17,HC117835,The Brookfield School (Academy),201812,Dedicated Schools Grant,Support Services
INSERTED DETAIL,20/03/2018,GI,2508070,475,HC117835,The Brookfield School (Academy),201812,Dedicated Schools Grant,Support Services
INSERTED DETAIL,20/03/2018,GI,2508073,475,HC106103,Holmer C of E Academy,201812,Dedicated Schools Grant,Support Services
INSERTED DETAIL,20/03/2018,GI,2508076,846.05,HC113960,Barrs Court Academy,201812,Dedicated Schools Grant,Support Services
INSERTED DETAIL,20/03/2018,GI,2508077,"9,170.00",HC113960,Barrs Court Academy,201812,Dedicated Schools Grant,Support Services
INSERTED DETAIL,20/03/2018,GI,2508184,703.92,HC109809,Shobdon CP School Imprest A/C,201812,Schools,Premises-Related Expenditure
INSERTED DETAIL,20/03/2018,GI,2508184,"1,190.14",HC109809,Shobdon CP School Imprest A/C,201812,Schools,Supplies & Services
INSERTED DETAIL,20/03/2018,GI,2508185,615,HC124660,REDACTED,201812,Safeguarding and Family Support,Third Party Payments
INSERTED DETAIL,20/03/2018,GI,2508228,"1,238.63",HC111402,Weobley High School Petty Cash,201812,Schools,Supplies & Services
INSERTED DETAIL,20/03/2018,GI,2508391,"3,524.88",HC121175,Matrix SCM Ltd,201812,Adults Operations,Employees
INSERTED DETAIL,09/03/2018,GI,2508391,"5,496.16",HC121175,Matrix SCM Ltd,201812,Safeguarding and Family Support,Employees
INSERTED DETAIL,09/03/2018,GI,2508391,910.88,HC121175,Matrix SCM Ltd,201812,Transformation and Safeguarding,Employees
INSERTED DETAIL,20/03/2018,GI,2508391,"4,554.49",HC121175,REDACTED,201812,Safeguarding and Family Support,Employees
INSERTED DETAIL,19/03/2018,GI,2508703,"1,074.51",HC110058,St Francis Xavier School Imprest,201812,Schools,Supplies & Services
INSERTED DETAIL,19/03/2018,WM,2508790,"1,040.33",HC108443,West Mercia Energy,201812,Environment and Place,Premises-Related Expenditure
INSERTED DETAIL,13/03/2018,WM,2508791,590.92,HC108443,West Mercia Energy,201812,Environment and Place,Premises-Related Expenditure
INSERTED DETAIL,06/03/2018,WM,2508792,754.54,HC108443,West Mercia Energy,201812,Environment and Place,Premises-Related Expenditure
INSERTED DETAIL,12/03/2018,WM,2508794,"2,041.82",HC108443,West Mercia Energy,201812,Environment and Place,Premises-Related Expenditure
INSERTED DETAIL,12/03/2018,WM,2508818,746.01,HC108443,West Mercia Energy,201812,Environment and Place,Premises-Related Expenditure
INSERTED DETAIL,12/03/2018,WM,2508821,"2,215.67",HC108443,West Mercia Energy,201812,Environment and Place,Premises-Related Expenditure
INSERTED DETAIL,22/03/2018,WM,2508822,"1,554.85",HC108443,West Mercia Energy,201812,Environment and Place,Premises-Related Expenditure
INSERTED DETAIL,22/03/2018,WM,2508823,"1,752.41",HC108443,West Mercia Energy,201812,Environment and Place,Premises-Related Expenditure
INSERTED DETAIL,19/03/2018,WM,2508824,"19,285.75",HC108443,West Mercia Energy,201812,Environment and Place,Premises-Related Expenditure
INSERTED DETAIL,21/03/2018,WM,2508825,589.4,HC108443,West Mercia Energy,201812,Schools,Premises-Related Expenditure
INSERTED DETAIL,21/03/2018,GI,2509948,"2,101.00",HC101182,Bridstow C.E. Primary School Imprest A/C,201812,Schools,Supplies & Services
INSERTED DETAIL,22/03/2018,GI,2509949,516.65,HC103911,Hereford Trading Standards Imprest,201812,Environment and Place,Supplies & Services
INSERTED DETAIL,28/03/2018,GI,2509950,466.46,HC110101,St Weonards CP School Imprest,201812,Schools,Supplies & Services
INSERTED DETAIL,08/03/2018,GI,2510668,425,HC123294,REDACTED,201812,Safeguarding and Family Support,Supplies & Services
INSERTED DETAIL,08/03/2018,GI,2510669,433.33,HC121017,REDACTED,201812,Safeguarding and Family Support,Supplies & Services
INSERTED DETAIL,08/03/2018,GI,2510670,433.33,HC103959,REDACTED,201812,Safeguarding and Family Support,Supplies & Services
INSERTED DETAIL,05/03/2018,GI,2510671,433.33,HC123323,REDACTED,201812,Safeguarding and Family Support,Supplies & Services
INSERTED DETAIL,12/03/2018,GI,2510672,"1,108.32",HC123873,REDACTED,201812,Safeguarding and Family Support,Supplies & Services
INSERTED DETAIL,22/03/2018,GI,2510674,712,HC109651,REDACTED,201812,Safeguarding and Family Support,Supplies & Services
INSERTED DETAIL,22/03/2018,GI,2510675,671.58,HC200069,REDACTED,201812,Safeguarding and Family Support,Third Party Payments
INSERTED DETAIL,26/03/2018,GI,2510676,463.58,HC200069,REDACTED,201812,Safeguarding and Family Support,Third Party Payments
INSERTED DETAIL,16/03/2018,GI,2510677,463.58,HC200069,REDACTED,201812,Safeguarding and Family Support,Third Party Payments
INSERTED DETAIL,20/03/2018,GI,2511539,615,HC102505,Down On The Farm,201812,Dedicated Schools Grant,Transfer Payments
INSERTED DETAIL,20/03/2018,GI,2511540,615,HC115884,St Thomas Cantilupe CE Academy,201812,Dedicated Schools Grant,Transfer Payments
INSERTED DETAIL,22/03/2018,GI,2511836,"7,500.46",HC103627,H C Westfield School Imprest,201812,Schools,Supplies & Services
INSERTED DETAIL,22/03/2018,GI,2511840,"4,087.36",HC110287,Support Services - Legal,201812,Communities,Supplies & Services
INSERTED DETAIL,22/03/2018,GI,2511910,"13,038.45",HC105275,Ledbury Primary School Imprest,201812,Schools,Supplies & Services
INSERTED DETAIL,15/03/2018,GI,2511924,943.2,HC117000,REDACTED,201812,Safeguarding and Family Support,Third Party Payments
INSERTED DETAIL,20/03/2018,GI,2511934,419.4,HC115040,REDACTED,201812,Safeguarding and Family Support,Third Party Payments
INSERTED DETAIL,20/03/2018,GI,2512215,"21,555.00",HC119137,REDACTED,201812,Education and Commissioning,Employees
INSERTED DETAIL,20/03/2018,GI,2512216,"1,834.10",HC119378,REDACTED,201812,Safeguarding and Family Support,Third Party Payments
INSERTED DETAIL,20/03/2018,GI,2512308,"7,520.99",HC121175,Matrix SCM Ltd,201812,Adults Operations,Employees
INSERTED DETAIL,20/03/2018,GI,2512308,"6,772.22",HC121175,Matrix SCM Ltd,201812,Safeguarding and Family Support,Employees
INSERTED DETAIL,16/03/2018,GI,2512308,"1,366.32",HC121175,Matrix SCM Ltd,201812,Transformation and Safeguarding,Employees
INSERTED DETAIL,23/03/2018,GI,2512308,"3,709.01",HC121175,REDACTED,201812,Safeguarding and Family Support,Employees
INSERTED DETAIL,15/03/2018,GI,2512309,"1,075.14",HC105069,Kingsland School Imprest,201812,Schools,Supplies & Services
INSERTED DETAIL,06/03/2018,GI,2512412,829.4,HC111399,Weobley County Primary School Imprest,201812,Schools,Supplies & Services
INSERTED DETAIL,26/03/2018,GI,2512413,"1,044.33",HC111312,Walford Primary School Imprest Account,201812,Schools,Supplies & Services
INSERTED DETAIL,05/03/2018,GI,2512419,"614,206.79",HC123886,Gigaclear PLC,201812,Communities Capital,Capital Income
INSERTED DETAIL,13/03/2018,GI,2512420,"868,508.29",HC123886,Gigaclear PLC,201812,Communities Capital,Capital Income
INSERTED DETAIL,22/03/2018,GI,2512427,"1,027.05",HC107953,Natwest One Card (Direct Debit A/C),201812,Growth,Supplies & Services
INSERTED DETAIL,20/03/2018,GI,2512427,890.35,HC107953,Natwest One Card (Direct Debit A/C),201812,Safeguarding and Family Support,Premises-Related Expenditure
INSERTED DETAIL,02/03/2018,II,3898890,"1,355.00",HC122664,Systra Ltd,201812,Environment and Place,Third Party Payments
INSERTED DETAIL,05/03/2018,II,3900507,"3,040.20",HC108307,Owen Pell Ltd,201812,Growth Capital,Capital Expenditure
INSERTED DETAIL,06/03/2018,II,3901509,787.5,HC109622,Sargeants Brothers Ltd,201812,Environment and Place,Third Party Payments
INSERTED DETAIL,06/03/2018,II,3902344,"3,033.70",HC120703,Black Pepper (Ledbury) Ltd,201812,Schools,Supplies & Services
INSERTED DETAIL,06/03/2018,II,3902663,"1,302.00",112553,REDACTED,201812,Schools,Supplies & Services
INSERTED DETAIL,06/03/2018,II,3902958,"1,000.00",112397,REDACTED,201812,Schools,Supplies & Services
INSERTED DETAIL,06/03/2018,II,3903265,"17,150.00",HC120741,CAE Technology Services Ltd,201812,Resources Capital,Capital Expenditure
INSERTED DETAIL,20/03/2018,II,3903268,558.03,HC103526,Gough Bailey Wright,201812,Environment and Place,Supplies & Services
INSERTED DETAIL,29/03/2018,II,3903269,875.54,HC103526,Gough Bailey Wright,201812,Environment and Place,Supplies & Services
INSERTED DETAIL,13/03/2018,II,3903280,"46,036.00",HC120741,CAE Technology Services Ltd,201812,Resources Capital,Capital Expenditure
INSERTED DETAIL,29/03/2018,II,3903483,807.3,HC104352,J P Catering,201812,Schools,Supplies & Services
INSERTED DETAIL,22/03/2018,II,3903513,501.5,HC105278,ILX Group Plc,201812,Adults Operations,Supplies & Services
INSERTED DETAIL,20/03/2018,II,3903533,480,HC110289,All Safety Matters Ltd,201812,Schools,Employees
INSERTED DETAIL,09/03/2018,II,3903553,"150,407.06",HC104323,Integral UK Ltd,201812,Holding Codes,Holding Codes
INSERTED DETAIL,09/03/2018,II,3903554,"54,752.01",HC117423,Interserve FS (UK) Ltd,201812,Holding Codes,Holding Codes
INSERTED DETAIL,15/03/2018,II,3903556,"4,438.03",HC102543,Dr M Hayes &  Dr E Wessels,201812,Communities,Supplies & Services
INSERTED DETAIL,07/03/2018,II,3903576,"8,100.70",HC106384,Western Power Distribution,201812,Children & Young People Capital,Capital Expenditure
INSERTED DETAIL,16/03/2018,II,3903628,"13,186.77",HC103268,G B Electrical And Building Services Ltd,201812,Integrated Commissioning,Capital Expenditure
INSERTED DETAIL,16/03/2018,II,3903710,440,HC102749,Edutech Solutions Ltd,201812,Schools,Supplies & Services
INSERTED DETAIL,15/03/2018,II,3903713,"4,576.14",HC111060,TTS Group Ltd,201812,Schools,Supplies & Services
INSERTED DETAIL,19/03/2018,II,3903721,"1,121.63",HC110998,REDACTED,201812,Adults Operations,Supplies & Services
INSERTED DETAIL,19/03/2018,II,3903737,"50,202.90",HC109769,Shaw Healthcare (Herefordshire) Ltd,201812,Physical Disabilities,Third Party Payments
INSERTED DETAIL,16/03/2018,II,3903738,"3,566.20",HC109769,Shaw Healthcare (Herefordshire) Ltd,201812,Physical Disabilities,Third Party Payments
INSERTED DETAIL,09/03/2018,II,3903739,"262,325.10",HC109769,Shaw Healthcare (Herefordshire) Ltd,201812,Physical Disabilities,Third Party Payments
INSERTED DETAIL,12/03/2018,II,3903740,935.79,HC100270,REDACTED,201812,Commissioning Adults,Premises-Related Expenditure
INSERTED DETAIL,21/03/2018,II,3903741,"1,060.50",HC100691,Aspire Living Ltd,201812,Commissioning Adults,Employees
INSERTED DETAIL,06/03/2018,II,3903742,"1,645.39",HC108807,Primecare,201812,Transformation and Safeguarding,Third Party Payments
INSERTED DETAIL,22/03/2018,II,3903743,"32,272.00",HC124534,Imosphere Ltd,201812,Integrated Commissioning,Capital Expenditure
INSERTED DETAIL,20/03/2018,II,3903744,"1,392.68",HC124130,Mills Mobility Aids,201812,Housing & Independent Living Capital,Capital Expenditure
INSERTED DETAIL,20/03/2018,II,3903755,"1,000.00",HC124572,Courtfield Estate,201812,Environment and Place,Premises-Related Expenditure
INSERTED DETAIL,07/03/2018,II,3903758,"4,506.91",HC113960,Barrs Court Academy,201812,Dedicated Schools Grant,Support Services
INSERTED DETAIL,20/03/2018,II,3903760,578.75,HC108505,Pearson Education Ltd,201812,Education and Commissioning,Supplies & Services
INSERTED DETAIL,20/03/2018,II,3903767,"9,180.00",HC123656,Farm Plastics Recycled Ltd,201812,Resources,Premises-Related Expenditure
INSERTED DETAIL,23/03/2018,II,3903769,"7,642.50",HC104591,Robert West Consulting Ltd,201812,Growth,Supplies & Services
INSERTED DETAIL,01/03/2018,II,3903770,"4,237.50",HC104591,Robert West Consulting Ltd,201812,Growth,Supplies & Services
INSERTED DETAIL,05/03/2018,II,3903784,"14,025.00",HC110717,The NST Travel Group Plc,201812,Schools,Supplies & Services
INSERTED DETAIL,12/03/2018,II,3903788,"4,805.00",HC124573,Hereford Community Land Trust Ltd,201812,Adults Operations,Transfer Payments
INSERTED DETAIL,19/03/2018,II,3903790,"1,785.00",HC120941,Hulse Yazdi Professional Services,201812,Communities,Supplies & Services
INSERTED DETAIL,23/03/2018,II,3903797,925,HC103165,Alere  Forensics,201812,Communities,Supplies & Services
INSERTED DETAIL,06/03/2018,II,3903800,"39,602.00",HC121433,Elizabeth Fitzroy Support,201812,Learning Disabilities,Third Party Payments
INSERTED DETAIL,06/03/2018,II,3903801,"39,602.00",HC121433,Elizabeth Fitzroy Support,201812,Learning Disabilities,Third Party Payments
INSERTED DETAIL,07/03/2018,II,3903802,"26,751.00",HC121433,Elizabeth Fitzroy Support,201812,Learning Disabilities,Third Party Payments
INSERTED DETAIL,07/03/2018,II,3903803,"41,809.60",HC100213,REDACTED,201812,Safeguarding and Family Support,Supplies & Services
INSERTED DETAIL,07/03/2018,II,3903804,"1,000.00",HC100898,Bathfields Distribution,201812,Environment and Place,Supplies & Services
INSERTED DETAIL,19/03/2018,II,3903805,"4,500.00",HC111599,Life Cycle UK,201812,Environment and Place,Supplies & Services
INSERTED DETAIL,14/03/2018,II,3903810,"1,561.00",HC121246,REDACTED,201812,Adults Operations,Supplies & Services
INSERTED DETAIL,14/03/2018,II,3903815,"1,129.26",HC111380,Welsh Water,201812,Environment and Place,Premises-Related Expenditure
INSERTED DETAIL,14/03/2018,II,3903819,"2,250.00",HC120236,Planning and Management Ltd,201812,Growth,Third Party Payments
INSERTED DETAIL,14/03/2018,II,3903820,"16,659.00",HC117351,Ategi Ltd,201812,Commissioning Adults,Third Party Payments
INSERTED DETAIL,14/03/2018,II,3903823,"1,424.00",HC109849,Signs & Labels Hereford,201812,Environment and Place,Supplies & Services
INSERTED DETAIL,14/03/2018,II,3903834,480,HC116511,Inform CPI Ltd,201812,Corporate,Supplies & Services
INSERTED DETAIL,14/03/2018,II,3903839,486.75,HC110215,Storm Technologies Ltd,201812,Communities,Supplies & Services
INSERTED DETAIL,14/03/2018,II,3903844,"1,416.00",HC115657,Powys County Council,201812,Schools,Supplies & Services
INSERTED DETAIL,14/03/2018,II,3903848,505,HC101444,Calor Gas Ltd,201812,Schools,Premises-Related Expenditure
INSERTED DETAIL,14/03/2018,II,3903849,514.76,HC101444,Calor Gas Ltd,201812,Schools,Premises-Related Expenditure
INSERTED DETAIL,14/03/2018,II,3903855,"1,584.00",HC124120,Bobby's Domestic Services,201812,Schools,Premises-Related Expenditure
INSERTED DETAIL,14/03/2018,II,3903857,"10,174.26",HC102156,D & D Network Services Ltd,201812,Schools Devolved Capital,Capital Expenditure
INSERTED DETAIL,14/03/2018,II,3903858,"3,124.50",HC110528,Mark Price (MWP Services),201812,Schools Devolved Capital,Capital Expenditure
INSERTED DETAIL,21/03/2018,II,3903867,717.49,HC101382,G4S Cash Service (Direct Debit),201812,Resources,Third Party Payments
INSERTED DETAIL,12/03/2018,II,3903869,"6,473.55",HC101473,Capita Business Services Ltd (Direct Debit),201812,Resources,Supplies & Services
INSERTED DETAIL,05/03/2018,II,3903872,465.56,HC114240,Allstar Business Solutions (Direct Debit only),201812,Environment and Place,Transport-Related Expenditure
INSERTED DETAIL,19/03/2018,II,3903881,"3,407.31",HC101473,Capita Business Services Ltd (Direct Debit),201812,Resources,Supplies & Services
INSERTED DETAIL,19/03/2018,II,3903889,556,HC110034,Superstars School Services Ltd,201812,Schools,Supplies & Services
INSERTED DETAIL,19/03/2018,II,3903916,450,HC103698,Harpercollins Publishers,201812,Schools,Supplies & Services
INSERTED DETAIL,19/03/2018,II,3903920,"1,022.16",HC111426,West Mercia Supplies (The Consortium),201812,Schools,Supplies & Services
INSERTED DETAIL,19/03/2018,II,3903923,897.21,HC105926,Mavis Russell Cleaning Ltd,201812,Schools,Premises-Related Expenditure
INSERTED DETAIL,19/03/2018,II,3903927,990,HC111347,Watson Petroleum Limited,201812,Schools,Premises-Related Expenditure
INSERTED DETAIL,19/03/2018,II,3903930,"4,520.00",HC110717,The NST Travel Group Plc,201812,Schools,Supplies & Services
INSERTED DETAIL,19/03/2018,II,3903932,"1,125.00",HC100385,Alliance In Partnership,201812,Schools,Supplies & Services
INSERTED DETAIL,19/03/2018,II,3903933,"3,557.25",HC100385,Alliance In Partnership,201812,Schools,Supplies & Services
INSERTED DETAIL,19/03/2018,II,3903943,"1,534.10",HC109826,Shropshire Council,201812,Schools,Supplies & Services
INSERTED DETAIL,19/03/2018,II,3903948,523.8,HC107869,REDACTED,201812,Schools,Premises-Related Expenditure
INSERTED DETAIL,19/03/2018,II,3903956,"3,475.00",HC108402,Parallel Lines (Marking),201812,Schools Devolved Capital,Capital Expenditure
INSERTED DETAIL,19/03/2018,II,3903957,"2,811.69",HC115267,Sensory Technology Ltd,201812,Schools,Premises-Related Expenditure
INSERTED DETAIL,19/03/2018,II,3903963,425.1,HC111426,West Mercia Supplies (The Consortium),201812,Schools,Premises-Related Expenditure
INSERTED DETAIL,19/03/2018,II,3903965,"17,334.00",HC124579,Orleton Rise Park Ltd,201812,Communities Capital,Capital Expenditure
INSERTED DETAIL,19/03/2018,II,3903966,"6,000.00",HC105850,Marsh Ltd,201812,Resources,Supplies & Services
INSERTED DETAIL,19/03/2018,II,3903970,"1,053.33",HC105926,Mavis Russell Cleaning Ltd,201812,Schools,Premises-Related Expenditure
INSERTED DETAIL,19/03/2018,II,3903988,"5,492.39",HC108260,Orange PLC (Airtime),201812,Communities,Supplies & Services
INSERTED DETAIL,19/03/2018,II,3903989,"1,768.49",HC120340,Adept Telecom PLC,201812,Communities,Supplies & Services
INSERTED DETAIL,19/03/2018,II,3903990,"4,557.07",HC120340,Adept Telecom PLC,201812,Communities,Supplies & Services
INSERTED DETAIL,19/03/2018,II,3904002,787.4,HC109152,Relion Heating Services Ltd,201812,Schools,Premises-Related Expenditure
INSERTED DETAIL,19/03/2018,II,3904004,703.41,HC102156,D & D Network Services Ltd,201812,Schools,Supplies & Services
INSERTED DETAIL,19/03/2018,II,3904009,"1,471.44",HC103869,Wye Valley NHS Trust,201812,Schools,Supplies & Services
INSERTED DETAIL,19/03/2018,II,3904014,"1,342.42",HC102362,Dell Corporation Ltd,201812,Schools Devolved Capital,Capital Expenditure
INSERTED DETAIL,19/03/2018,II,3904016,500,HC109425,Ruth Miskin Literacy Ltd,201812,Schools,Employees
INSERTED DETAIL,19/03/2018,II,3904019,"1,251.20",HC111508,Wigmore High School (Academy),201812,Schools,Supplies & Services
INSERTED DETAIL,19/03/2018,II,3904024,"8,325.25",HC102156,D & D Network Services Ltd,201812,Schools Devolved Capital,Capital Expenditure
INSERTED DETAIL,19/03/2018,II,3904025,900,HC122777,REDACTED,201812,Schools,Supplies & Services
INSERTED DETAIL,19/03/2018,II,3904027,855,HC124108,REDACTED,201812,Schools,Supplies & Services
INSERTED DETAIL,19/03/2018,II,3904028,"10,007.70",HC108505,Pearson Education Ltd,201812,Schools,Supplies & Services
INSERTED DETAIL,19/03/2018,II,3904031,"2,159.91",HC102659,E.On,201812,Schools,Premises-Related Expenditure
INSERTED DETAIL,19/03/2018,II,3904034,458.18,HC123841,Bedrock Learning Ltd,201812,Schools,Supplies & Services
INSERTED DETAIL,19/03/2018,II,3904040,"3,008.35",HC100385,Alliance In Partnership,201812,Schools,Supplies & Services
INSERTED DETAIL,19/03/2018,II,3904043,"2,457.87",HC103869,Wye Valley NHS Trust,201812,Schools,Supplies & Services
INSERTED DETAIL,19/03/2018,II,3904046,"4,000.02",HC103158,Marlowe Child & Family Services Ltd,201812,Dedicated Schools Grant,Supplies & Services
INSERTED DETAIL,19/03/2018,II,3904047,"2,400.03",HC103158,Marlowe Child & Family Services Ltd,201812,Dedicated Schools Grant,Supplies & Services
INSERTED DETAIL,19/03/2018,II,3904048,"2,400.03",HC103158,Marlowe Child & Family Services Ltd,201812,Dedicated Schools Grant,Supplies & Services
INSERTED DETAIL,19/03/2018,II,3904054,"28,022.75",HC101363,Bytes Software Services Ltd,201812,Communities,Supplies & Services
INSERTED DETAIL,19/03/2018,II,3904056,"26,972.00",HC103125,Fisher German Llp,201812,Resources Capital,Capital Expenditure
INSERTED DETAIL,19/03/2018,II,3904057,"51,311.68",HC103125,Fisher German Llp,201812,Resources Capital,Capital Expenditure
INSERTED DETAIL,19/03/2018,II,3904062,"1,250.00",HC104870,Kingstone High School (Academy),201812,Education and Commissioning,Premises-Related Expenditure
INSERTED DETAIL,19/03/2018,II,3904066,"14,338.03",HC124417,REDACTED,201812,Dedicated Schools Grant,Supplies & Services
INSERTED DETAIL,19/03/2018,II,3904067,"1,024.00",HC117989,Orbis Education & Care,201812,Dedicated Schools Grant,Supplies & Services
INSERTED DETAIL,19/03/2018,II,3904070,"42,780.00",HC103869,Wye Valley NHS Trust,201812,Public Health,Third Party Payments
INSERTED DETAIL,23/03/2018,II,3904073,"14,688.00",HC114610,New College Worcester,201812,Dedicated Schools Grant,Supplies & Services
INSERTED DETAIL,23/03/2018,II,3904074,"9,021.00",HC114610,New College Worcester,201812,Dedicated Schools Grant,Supplies & Services
INSERTED DETAIL,23/03/2018,II,3904076,"2,447.00",HC124151,Bedstone Educational Ltd,201812,Dedicated Schools Grant,Supplies & Services
INSERTED DETAIL,23/03/2018,II,3904077,"5,500.00",HC103461,Gloucestershire County Council,201812,Dedicated Schools Grant,Supplies & Services
INSERTED DETAIL,23/03/2018,II,3904080,"5,527.09",HC117989,Orbis Education & Care,201812,Dedicated Schools Grant,Supplies & Services
INSERTED DETAIL,23/03/2018,II,3904084,"17,575.00",HC111135,University Of  Worcester,201812,Adults Operations,Supplies & Services
INSERTED DETAIL,23/03/2018,II,3904085,889.73,HC104140,"Humber, Ford & Stoke Prior G.P.C.",201812,Environment and Place,Third Party Payments
INSERTED DETAIL,23/03/2018,II,3904087,"181,833.00",HC103869,Wye Valley NHS Trust,201812,Public Health,Third Party Payments
INSERTED DETAIL,23/03/2018,II,3904089,780,HC104930,REDACTED,201812,Education and Commissioning,Supplies & Services
INSERTED DETAIL,06/03/2018,II,3904091,600,HC124117,REDACTED,201812,Education and Commissioning,Supplies & Services
INSERTED DETAIL,06/03/2018,II,3904095,900,HC121303,Servelec Synergy Ltd,201812,Education and Commissioning,Supplies & Services
INSERTED DETAIL,06/03/2018,II,3904117,"2,000.00",111308,REDACTED,201812,Schools,Supplies & Services
INSERTED DETAIL,06/03/2018,II,3904141,522.5,HC112412,Forward Products,201812,Schools,Supplies & Services
INSERTED DETAIL,06/03/2018,II,3904148,"4,153.00",HC113877,Albion Computers PLC,201812,Schools,Supplies & Services
INSERTED DETAIL,07/03/2018,II,3904157,"3,000.00",HC107858,MVF Builders Ltd,201812,Housing & Independent Living Capital,Capital Expenditure
INSERTED DETAIL,19/03/2018,II,3904163,625,HC108319,Oxford University Press,201812,Schools,Supplies & Services
INSERTED DETAIL,19/03/2018,II,3904170,"8,683.00",HC123606,HM Courts & Tribunals Service (Direct Debit),201812,Communities,Supplies & Services
INSERTED DETAIL,19/03/2018,II,3904171,550,HC102283,Pupil Tracking Ltd,201812,Schools,Supplies & Services
INSERTED DETAIL,19/03/2018,II,3904173,"1,995.00",HC101472,Capita Business Services Ltd,201812,Schools,Supplies & Services
INSERTED DETAIL,19/03/2018,II,3904184,"1,251.20",HC122846,LMH Social Work Services,201812,Safeguarding and Family Support,Supplies & Services
INSERTED DETAIL,19/03/2018,II,3904186,630.81,HC123644,ALS Environmental Ltd,201812,Environment and Place,Supplies & Services
INSERTED DETAIL,19/03/2018,II,3904194,"2,070.01",HC101309,Buchanans Coaches,201812,Environment and Place,Transport-Related Expenditure
INSERTED DETAIL,19/03/2018,II,3904201,515,HC107466,Worcestershire Health & Care NHS Trust,201812,Public Health,Third Party Payments
INSERTED DETAIL,19/03/2018,II,3904203,"2,415.00",HC110658,The Houghton Project,201812,Education and Commissioning,Supplies & Services
INSERTED DETAIL,19/03/2018,II,3904204,802,HC117095,Simon's Taxis,201812,Learning Disabilities,Transport-Related Expenditure
INSERTED DETAIL,19/03/2018,II,3904207,"17,409.25",HC108651,National Youth Advocacy Service (nyas),201812,Education and Commissioning,Third Party Payments
INSERTED DETAIL,19/03/2018,II,3904208,"6,121.00",HC108651,National Youth Advocacy Service (nyas),201812,Education and Commissioning,Third Party Payments
INSERTED DETAIL,19/03/2018,II,3904209,"2,025.00",HC100495,C M Davies,201812,Environment and Place,Transport-Related Expenditure
INSERTED DETAIL,19/03/2018,II,3904210,"2,175.00",HC100495,C M Davies,201812,Environment and Place,Transport-Related Expenditure
INSERTED DETAIL,19/03/2018,II,3904211,899.99,HC100495,C M Davies,201812,Environment and Place,Transport-Related Expenditure
INSERTED DETAIL,19/03/2018,II,3904212,"2,250.00",HC100495,C M Davies,201812,Environment and Place,Transport-Related Expenditure
INSERTED DETAIL,19/03/2018,II,3904213,"2,175.00",HC100495,C M Davies,201812,Environment and Place,Transport-Related Expenditure
INSERTED DETAIL,19/03/2018,II,3904214,"2,250.00",HC100495,C M Davies,201812,Environment and Place,Transport-Related Expenditure
INSERTED DETAIL,19/03/2018,II,3904215,"2,100.00",HC100495,C M Davies,201812,Environment and Place,Transport-Related Expenditure
INSERTED DETAIL,19/03/2018,II,3904216,"1,125.00",HC100495,C M Davies,201812,Environment and Place,Transport-Related Expenditure
INSERTED DETAIL,19/03/2018,II,3904217,"1,500.00",HC100495,C M Davies,201812,Environment and Place,Transport-Related Expenditure
INSERTED DETAIL,19/03/2018,II,3904218,"1,650.00",HC123910,Leominster Travel Ltd,201812,Environment and Place,Transport-Related Expenditure
INSERTED DETAIL,19/03/2018,II,3904219,"2,745.00",HC123910,Leominster Travel Ltd,201812,Environment and Place,Transport-Related Expenditure
INSERTED DETAIL,19/03/2018,II,3904220,"1,710.00",HC117095,Simon's Taxis,201812,Environment and Place,Transport-Related Expenditure
INSERTED DETAIL,19/03/2018,II,3904222,"2,250.00",HC100495,C M Davies,201812,Environment and Place,Transport-Related Expenditure
INSERTED DETAIL,19/03/2018,II,3904223,"1,650.00",HC100495,C M Davies,201812,Environment and Place,Transport-Related Expenditure
INSERTED DETAIL,19/03/2018,II,3904224,"1,770.00",HC100495,C M Davies,201812,Environment and Place,Transport-Related Expenditure
INSERTED DETAIL,19/03/2018,II,3904225,640,HC117095,Simon's Taxis,201812,Environment and Place,Transport-Related Expenditure
INSERTED DETAIL,19/03/2018,II,3904226,"1,174.00",HC117095,Simon's Taxis,201812,Environment and Place,Transport-Related Expenditure
INSERTED DETAIL,19/03/2018,II,3904227,"1,050.00",HC117095,Simon's Taxis,201812,Environment and Place,Transport-Related Expenditure
INSERTED DETAIL,19/03/2018,II,3904228,"2,025.00",HC107876,Nick Maddy Coaches,201812,Environment and Place,Transport-Related Expenditure
INSERTED DETAIL,19/03/2018,II,3904230,441,HC106417,PAMS Assessments Ltd,201812,Safeguarding and Family Support,Employees
INSERTED DETAIL,19/03/2018,II,3904231,"5,970.00",HC113890,REDACTED,201812,Safeguarding and Family Support,Supplies & Services
INSERTED DETAIL,23/03/2018,II,3904232,"2,706.48",HC110431,Business Angel Ltd,201812,Commissioning Adults,Supplies & Services
INSERTED DETAIL,14/03/2018,II,3904233,"1,721.65",HC121663,REDACTED,201812,Commissioning Adults,Premises-Related Expenditure
INSERTED DETAIL,02/03/2018,II,3904235,"3,465.80",HC103959,Herefordshire Housing Ltd,201812,Transformation and Safeguarding,Supplies & Services
INSERTED DETAIL,02/03/2018,II,3904236,"4,250.00",HC102219,Daisy Communications Limited,201812,Integrated Commissioning,Capital Expenditure
INSERTED DETAIL,09/03/2018,II,3904237,600,HC117095,Simon's Taxis,201812,Learning Disabilities,Transport-Related Expenditure
INSERTED DETAIL,20/03/2018,II,3904238,640,HC123910,Leominster Travel Ltd,201812,Learning Disabilities,Transport-Related Expenditure
INSERTED DETAIL,20/03/2018,II,3904240,484.78,HC103871,Hfd Industrial Supply Co Ltd / Hfd Tool Hire,201812,Environment and Place,Supplies & Services
INSERTED DETAIL,13/03/2018,II,3904245,"3,434.70",HC111685,Yeomans Travel Ltd,201812,Environment and Place,Transport-Related Expenditure
INSERTED DETAIL,13/03/2018,II,3904248,"2,749.50",HC111195,HMRC on behalf of Valuation Office Agency,201812,Environment and Place,Supplies & Services
INSERTED DETAIL,19/03/2018,II,3904249,"7,050.00",HC121975,Penna Plc,201812,Education and Commissioning,Supplies & Services
INSERTED DETAIL,20/03/2018,II,3904250,"12,540.00",HC121975,Penna Plc,201812,Education and Commissioning,Employees
INSERTED DETAIL,13/03/2018,II,3904251,"10,875.00",HC121975,Penna Plc,201812,Education and Commissioning,Employees
INSERTED DETAIL,14/03/2018,II,3904259,"6,866.50",HC109769,Shaw Healthcare (Herefordshire) Ltd,201812,Physical Disabilities,Supplies & Services
INSERTED DETAIL,19/03/2018,II,3904261,"31,194.50",HC106003,Metric Group Ltd,201812,Commissioning Capital,Capital Expenditure
INSERTED DETAIL,06/03/2018,II,3904266,"2,250.00",HC100495,C M Davies,201812,Environment and Place,Transport-Related Expenditure
INSERTED DETAIL,06/03/2018,II,3904268,"5,413.92",HC111685,Yeomans Travel Ltd,201812,Growth,Supplies & Services
INSERTED DETAIL,13/03/2018,II,3904270,"2,640.30",HC108443,West Mercia Energy,201812,Schools,Premises-Related Expenditure
INSERTED DETAIL,20/03/2018,II,3904271,"1,123.52",HC108443,West Mercia Energy,201812,Schools,Premises-Related Expenditure
INSERTED DETAIL,20/03/2018,II,3904272,473.85,HC108443,West Mercia Energy,201812,Schools,Premises-Related Expenditure
INSERTED DETAIL,23/03/2018,II,3904273,"1,150.66",HC108443,West Mercia Energy,201812,Schools,Premises-Related Expenditure
INSERTED DETAIL,20/03/2018,II,3904276,651.3,HC108443,West Mercia Energy,201812,Schools,Premises-Related Expenditure
INSERTED DETAIL,08/03/2018,II,3904279,500,HC111508,Wigmore High School (Academy),201812,Schools,Employees
INSERTED DETAIL,23/03/2018,II,3904283,570,HC106975,Hoople Ltd,201812,Schools,Supplies & Services
INSERTED DETAIL,01/03/2018,II,3904288,"9,500.00",HC113045,Schools Advisory Service,201812,Schools,Employees
INSERTED DETAIL,15/03/2018,II,3904289,750,HC114202,Outstanding Education Sols Ltd -   Factor A/C,201812,Schools,Supplies & Services
INSERTED DETAIL,16/03/2018,II,3904290,890,HC114202,Outstanding Education Sols Ltd -   Factor A/C,201812,Schools,Supplies & Services
INSERTED DETAIL,21/03/2018,II,3904299,946.89,HC111426,West Mercia Supplies (The Consortium),201812,Schools,Supplies & Services
INSERTED DETAIL,16/03/2018,II,3904315,"1,347.45",HC108134,Northgate Public Services (UK) Ltd,201812,Communities,Supplies & Services
INSERTED DETAIL,23/03/2018,II,3904316,435,HC122189,Access Independent Ltd,201812,Communities,Supplies & Services
INSERTED DETAIL,06/03/2018,II,3904317,"1,042.50",HC105329,Leominster Taxis & Travel,201812,Environment and Place,Transport-Related Expenditure
INSERTED DETAIL,06/03/2018,II,3904318,975.79,HC101861,Clearview Cleaning Services,201812,Schools,Premises-Related Expenditure
INSERTED DETAIL,12/03/2018,II,3904325,800,HC101369,REDACTED,201812,Education and Commissioning,Supplies & Services
INSERTED DETAIL,20/03/2018,II,3904346,"2,400.00",HC102362,Dell Corporation Ltd,201812,Schools,Supplies & Services
INSERTED DETAIL,02/03/2018,II,3904350,"1,050.00",HC121757,3C Payment (UK) Ltd,201812,Commissioning Capital,Capital Expenditure
INSERTED DETAIL,15/03/2018,II,3904351,"2,000.00",HC123197,Prepaid Financial Services Ltd,201812,Integrated Commissioning,Capital Expenditure
INSERTED DETAIL,20/03/2018,II,3904352,"16,100.00",HC107758,Onside Independent Advocacy,201812,Commissioning Adults,Third Party Payments
INSERTED DETAIL,20/03/2018,II,3904357,"2,025.00",HC107876,Nick Maddy Coaches,201812,Environment and Place,Transport-Related Expenditure
INSERTED DETAIL,16/03/2018,II,3904358,825,HC107876,Nick Maddy Coaches,201812,Environment and Place,Transport-Related Expenditure
INSERTED DETAIL,26/03/2018,II,3904360,"2,513.25",HC108361,Jones Coaches Ltd,201812,Environment and Place,Transport-Related Expenditure
INSERTED DETAIL,05/03/2018,II,3904361,435,HC122600,Costello Occupational Therapy Ltd,201812,Schools,Supplies & Services
INSERTED DETAIL,06/03/2018,II,3904364,"1,076.70",HC124379,REDACTED,201812,Safeguarding and Family Support,Employees
INSERTED DETAIL,07/03/2018,II,3904367,"2,250.00",HC100495,C M Davies,201812,Environment and Place,Transport-Related Expenditure
INSERTED DETAIL,13/03/2018,II,3904368,"1,260.00",HC101343,Enterprise Rent A Car UK T/A Flex E Rent,201812,Environment and Place,Transport-Related Expenditure
INSERTED DETAIL,15/03/2018,II,3904369,"1,580.00",HC101343,Enterprise Rent A Car UK T/A Flex E Rent,201812,Environment and Place,Transport-Related Expenditure
INSERTED DETAIL,14/03/2018,II,3904370,"1,950.00",HC100495,C M Davies,201812,Environment and Place,Transport-Related Expenditure
INSERTED DETAIL,14/03/2018,II,3904371,"1,237.50",HC108361,Jones Coaches Ltd,201812,Environment and Place,Transport-Related Expenditure
INSERTED DETAIL,15/03/2018,II,3904372,"2,542.50",HC108361,Jones Coaches Ltd,201812,Environment and Place,Transport-Related Expenditure
INSERTED DETAIL,19/03/2018,II,3904373,"1,060.00",HC101343,Enterprise Rent A Car UK T/A Flex E Rent,201812,Environment and Place,Transport-Related Expenditure
INSERTED DETAIL,15/03/2018,II,3904374,"2,850.00",HC100090,A J Watkins,201812,Environment and Place,Transport-Related Expenditure
INSERTED DETAIL,13/03/2018,II,3904375,"1,371.30",HC100090,A J Watkins,201812,Environment and Place,Transport-Related Expenditure
INSERTED DETAIL,16/03/2018,II,3904376,"3,150.00",HC108361,Jones Coaches Ltd,201812,Environment and Place,Transport-Related Expenditure
INSERTED DETAIL,19/03/2018,II,3904377,"1,051.20",HC100090,A J Watkins,201812,Environment and Place,Transport-Related Expenditure
INSERTED DETAIL,22/03/2018,II,3904378,"1,771.80",HC100090,A J Watkins,201812,Environment and Place,Transport-Related Expenditure
INSERTED DETAIL,22/03/2018,II,3904379,"3,000.00",HC101309,Buchanans Coaches,201812,Environment and Place,Transport-Related Expenditure
INSERTED DETAIL,14/03/2018,II,3904380,"1,725.00",HC100495,C M Davies,201812,Environment and Place,Transport-Related Expenditure
INSERTED DETAIL,14/03/2018,II,3904382,"1,020.00",HC105329,Leominster Taxis & Travel,201812,Environment and Place,Transport-Related Expenditure
INSERTED DETAIL,14/03/2018,II,3904383,"23,782.35",HC105563,Lugg Valley Primrose Travel Ltd,201812,Environment and Place,Transport-Related Expenditure
INSERTED DETAIL,21/03/2018,II,3904385,"2,250.00",HC105676,M&S Coaches Of Hereford Limited,201812,Environment and Place,Transport-Related Expenditure
INSERTED DETAIL,23/03/2018,II,3904386,"2,070.00",HC105676,M&S Coaches Of Hereford Limited,201812,Environment and Place,Transport-Related Expenditure
INSERTED DETAIL,13/03/2018,II,3904387,"2,647.50",HC105676,M&S Coaches Of Hereford Limited,201812,Environment and Place,Transport-Related Expenditure
INSERTED DETAIL,08/03/2018,II,3904388,"2,227.50",HC105676,M&S Coaches Of Hereford Limited,201812,Environment and Place,Transport-Related Expenditure
INSERTED DETAIL,19/03/2018,II,3904389,"2,250.00",HC105676,M&S Coaches Of Hereford Limited,201812,Environment and Place,Transport-Related Expenditure
INSERTED DETAIL,22/03/2018,II,3904390,"2,070.00",HC105676,M&S Coaches Of Hereford Limited,201812,Environment and Place,Transport-Related Expenditure
INSERTED DETAIL,13/03/2018,II,3904391,"1,875.00",HC107876,Nick Maddy Coaches,201812,Environment and Place,Transport-Related Expenditure
INSERTED DETAIL,06/03/2018,II,3904392,"1,875.00",HC107876,Nick Maddy Coaches,201812,Environment and Place,Transport-Related Expenditure
INSERTED DETAIL,01/03/2018,II,3904393,"3,600.00",HC107876,Nick Maddy Coaches,201812,Environment and Place,Transport-Related Expenditure
INSERTED DETAIL,01/03/2018,II,3904394,"1,523.85",HC108990,R J Maddy,201812,Environment and Place,Transport-Related Expenditure
INSERTED DETAIL,01/03/2018,II,3904395,"1,354.50",HC108990,R J Maddy,201812,Environment and Place,Transport-Related Expenditure
INSERTED DETAIL,12/03/2018,II,3904396,"2,992.50",HC116150,Roy Browns Coaches,201812,Environment and Place,Transport-Related Expenditure
INSERTED DETAIL,21/03/2018,II,3904397,"2,992.50",HC116150,Roy Browns Coaches,201812,Environment and Place,Transport-Related Expenditure
INSERTED DETAIL,21/03/2018,II,3904398,"2,017.51",HC109436,REDACTED,201812,Environment and Place,Transport-Related Expenditure
INSERTED DETAIL,02/03/2018,II,3904399,"1,267.50",HC109436,REDACTED,201812,Environment and Place,Transport-Related Expenditure
INSERTED DETAIL,19/03/2018,II,3904400,600,HC117095,Simon's Taxis,201812,Environment and Place,Transport-Related Expenditure
INSERTED DETAIL,21/03/2018,II,3904401,"19,765.00",HC101312,Buddi Ltd,201812,Integrated Commissioning,Capital Expenditure
INSERTED DETAIL,20/03/2018,II,3904403,689.7,HC100385,Alliance In Partnership,201812,Schools,Supplies & Services
INSERTED DETAIL,21/03/2018,II,3904408,"1,620.00",HC124619,REDACTED,201812,Dedicated Schools Grant,Support Services
INSERTED DETAIL,21/03/2018,II,3904412,"1,200.00",HC111950,Stem Learning Limited,201812,Schools,Employees
INSERTED DETAIL,06/03/2018,II,3904435,648,HC111685,Yeomans Travel Ltd,201812,Schools,Transport-Related Expenditure
INSERTED DETAIL,21/03/2018,II,3904442,"1,141.60",HC101861,Clearview Cleaning Services,201812,Schools,Premises-Related Expenditure
INSERTED DETAIL,14/03/2018,II,3904445,752,HC110034,Superstars School Services Ltd,201812,Schools,Supplies & Services
INSERTED DETAIL,23/03/2018,II,3904454,"2,340.00",HC124186,H & H Coaches Ltd,201812,Environment and Place,Transport-Related Expenditure
INSERTED DETAIL,05/03/2018,II,3904455,"1,946.00",HC124186,H & H Coaches Ltd,201812,Environment and Place,Transport-Related Expenditure
INSERTED DETAIL,06/03/2018,II,3904456,"2,175.00",HC124186,H & H Coaches Ltd,201812,Environment and Place,Transport-Related Expenditure
INSERTED DETAIL,14/03/2018,II,3904457,"2,400.00",HC104165,I & S Coaches,201812,Environment and Place,Transport-Related Expenditure
INSERTED DETAIL,20/03/2018,II,3904458,"1,573.50",HC100192,Ace Coaches & Travel,201812,Environment and Place,Transport-Related Expenditure
INSERTED DETAIL,20/03/2018,II,3904459,"2,289.75",HC104165,I & S Coaches,201812,Environment and Place,Transport-Related Expenditure
INSERTED DETAIL,22/03/2018,II,3904460,"2,013.66",HC111685,Yeomans Travel Ltd,201812,Environment and Place,Transport-Related Expenditure
INSERTED DETAIL,22/03/2018,II,3904470,"2,918.20",HC115217,NHS Herefordshire CCG,201812,Mental Health,Third Party Payments
INSERTED DETAIL,14/03/2018,II,3904489,"1,125.00",HC106975,Hoople Ltd,201812,Communities,Supplies & Services
INSERTED DETAIL,15/03/2018,II,3904490,486.42,HC103660,Halo Leisure Services Ltd,201812,Schools,Premises-Related Expenditure
INSERTED DETAIL,16/03/2018,II,3904494,930,HC124533,Ascent Sports Coaching,201812,Schools,Supplies & Services
INSERTED DETAIL,14/03/2018,II,3904495,930,HC124533,Ascent Sports Coaching,201812,Schools,Supplies & Services
INSERTED DETAIL,13/03/2018,II,3904499,725.82,HC108443,West Mercia Energy,201812,Schools,Premises-Related Expenditure
INSERTED DETAIL,26/03/2018,II,3904504,608.46,HC111426,West Mercia Supplies (The Consortium),201812,Schools,Supplies & Services
INSERTED DETAIL,15/03/2018,II,3904512,"1,040.00",HC123950,Paces,201812,Schools,Supplies & Services
INSERTED DETAIL,16/03/2018,II,3904514,"1,500.00",HC122910,PR Associates Ltd,201812,Schools,Supplies & Services
INSERTED DETAIL,19/03/2018,II,3904521,442.2,HC103660,Halo Leisure Services Ltd,201812,Schools,Premises-Related Expenditure
INSERTED DETAIL,19/03/2018,II,3904532,"4,000.00",HC123953,Encraft Limited,201812,Environment and Place,Supplies & Services
INSERTED DETAIL,01/03/2018,II,3904533,"2,973.90",HC111508,Wigmore High School (Academy),201812,Schools,Supplies & Services
INSERTED DETAIL,20/03/2018,II,3904539,"1,675.00",HC112891,Sports Plus Scheme Ltd,201812,Schools,Supplies & Services
INSERTED DETAIL,27/03/2018,II,3904543,525.6,HC105926,Mavis Russell Cleaning Ltd,201812,Schools,Premises-Related Expenditure
INSERTED DETAIL,01/03/2018,II,3904547,"3,377.60",HC108283,Orleton School Meals,201812,Schools,Supplies & Services
INSERTED DETAIL,21/03/2018,II,3904548,"1,125.00",HC111203,Venture Taxi Services Ltd,201812,Environment and Place,Transport-Related Expenditure
INSERTED DETAIL,20/03/2018,II,3904550,"10,000.00",HC124128,Leominster Meeting Centre,201812,Transformation and Safeguarding,Transfer Payments
INSERTED DETAIL,14/03/2018,II,3904552,442.9,HC111426,West Mercia Supplies (The Consortium),201812,Schools,Premises-Related Expenditure
INSERTED DETAIL,09/03/2018,II,3904556,"1,746.00",HC100385,Alliance In Partnership,201812,Schools,Supplies & Services
INSERTED DETAIL,14/03/2018,II,3904557,"3,559.50",HC108361,Jones Coaches Ltd,201812,Environment and Place,Transport-Related Expenditure
INSERTED DETAIL,05/03/2018,II,3904559,"5,000.00",HC102778,Zurich Municipal,201812,Resources,Supplies & Services
INSERTED DETAIL,14/03/2018,II,3904566,500,HC124097,REDACTED,201812,Environment and Place,Supplies & Services
INSERTED DETAIL,23/03/2018,II,3904567,549.4,HC124097,REDACTED,201812,Environment and Place,Supplies & Services
INSERTED DETAIL,06/03/2018,II,3904568,640,HC122807,Freeths LLP,201812,Communities,Supplies & Services
INSERTED DETAIL,21/03/2018,II,3904569,"2,761.20",HC118604,Cobalt Telephone Technologies Ltd,201812,Environment and Place,Premises-Related Expenditure
INSERTED DETAIL,14/03/2018,II,3904578,"2,679.50",HC100385,Alliance In Partnership,201812,Schools,Supplies & Services
INSERTED DETAIL,13/03/2018,II,3904580,"6,000.00",HC124419,Donald Insall Associates Ltd,201812,Growth,Supplies & Services
INSERTED DETAIL,20/03/2018,II,3904581,"2,385.00",HC124186,H & H Coaches Ltd,201812,Environment and Place,Transport-Related Expenditure
INSERTED DETAIL,20/03/2018,II,3904582,"6,910.83",HC115532,Enigma CCTV Ltd,201812,Environment and Place,Supplies & Services
INSERTED DETAIL,20/03/2018,II,3904583,"4,591.67",HC107190,Cycle Heaven Ltd,201812,Environment and Place,Supplies & Services
INSERTED DETAIL,20/03/2018,II,3904584,"1,625.00",HC111053,Trustees Of Great Western Railway,201812,Resources,Premises-Related Expenditure
INSERTED DETAIL,20/03/2018,II,3904585,"1,625.00",HC111053,Trustees Of Great Western Railway,201812,Resources,Premises-Related Expenditure
INSERTED DETAIL,20/03/2018,II,3904600,"3,357.20",HC100060,Footprint Solutions Ltd,201812,Communities,Supplies & Services
INSERTED DETAIL,20/03/2018,II,3904601,"1,120.00",HC102707,ECHO,201812,Education and Commissioning,Supplies & Services
INSERTED DETAIL,20/03/2018,II,3904603,439,HC108803,PrimarySite Ltd,201812,Schools,Supplies & Services
INSERTED DETAIL,20/03/2018,II,3904616,"7,799.90",HC119723,Pavement Testing Services Ltd,201812,Environment and Place,Supplies & Services
INSERTED DETAIL,05/03/2018,II,3904617,"3,560.00",HC116854,Fairfield High School (Academy),201812,Education and Commissioning,Supplies & Services
INSERTED DETAIL,01/03/2018,II,3904625,"2,915.00",HC106975,Hoople Ltd,201812,Education and Commissioning,Supplies & Services
INSERTED DETAIL,01/03/2018,II,3904627,"3,250.00",HC106975,Hoople Ltd,201812,Communities,Supplies & Services
INSERTED DETAIL,13/03/2018,II,3904628,"3,500.00",HC106975,Hoople Ltd,201812,Dedicated Schools Grant,Third Party Payments
INSERTED DETAIL,19/03/2018,II,3904629,960,HC103243,Frome Private Hire Cars,201812,Environment and Place,Transport-Related Expenditure
INSERTED DETAIL,22/03/2018,II,3904630,"1,354.50",HC107382,REDACTED,201812,Environment and Place,Transport-Related Expenditure
INSERTED DETAIL,16/03/2018,II,3904631,"1,290.00",HC107382,REDACTED,201812,Environment and Place,Transport-Related Expenditure
INSERTED DETAIL,16/03/2018,II,3904632,"1,399.80",HC107382,REDACTED,201812,Environment and Place,Transport-Related Expenditure
INSERTED DETAIL,16/03/2018,II,3904633,"50,000.00",HC117835,The Brookfield School (Academy),201812,Dedicated Schools Grant,Support Services
INSERTED DETAIL,20/03/2018,II,3904634,"2,670.00",HC106960,Hopton Building Services Ltd,201812,Housing & Independent Living Capital,Capital Expenditure
INSERTED DETAIL,20/03/2018,II,3904641,"1,651.50",HC100385,Alliance In Partnership,201812,Schools,Supplies & Services
INSERTED DETAIL,20/03/2018,II,3904642,750,HC101792,CIEH Wales Directorate,201812,Environment and Place,Supplies & Services
INSERTED DETAIL,20/03/2018,II,3904643,645.64,HC123218,Miranda's Cleaning & Ironing Service,201812,Schools,Premises-Related Expenditure
INSERTED DETAIL,20/03/2018,II,3904654,"6,197.46",HC111070,Tunstall Healthcare (UK) Ltd,201812,Integrated Commissioning,Capital Expenditure
INSERTED DETAIL,20/03/2018,II,3904655,597.5,HC111070,Tunstall Healthcare (UK) Ltd,201812,Integrated Commissioning,Capital Expenditure
INSERTED DETAIL,20/03/2018,II,3904656,"18,626.81",HC111070,Tunstall Healthcare (UK) Ltd,201812,Integrated Commissioning,Capital Expenditure
INSERTED DETAIL,23/03/2018,II,3904657,"6,217.27",HC111070,Tunstall Healthcare (UK) Ltd,201812,Integrated Commissioning,Capital Expenditure
INSERTED DETAIL,26/03/2018,II,3904660,"1,158.60",HC100385,Alliance In Partnership,201812,Schools,Supplies & Services
INSERTED DETAIL,09/03/2018,II,3904663,476,HC100542,Orange PLC (Equipment),201812,Environment and Place,Supplies & Services
INSERTED DETAIL,21/03/2018,II,3904673,"5,000.00",HC111508,Wigmore High School (Academy),201812,Education and Commissioning,Transfer Payments
INSERTED DETAIL,22/03/2018,II,3904674,"1,200.00",HC115884,St Thomas Cantilupe CE Academy,201812,Education and Commissioning,Transfer Payments
INSERTED DETAIL,22/03/2018,II,3904675,"2,500.00",HC116854,Fairfield High School (Academy),201812,Education and Commissioning,Transfer Payments
INSERTED DETAIL,22/03/2018,II,3904676,"1,400.00",HC101027,Bishop Of Herefords Bluecoat School,201812,Education and Commissioning,Transfer Payments
INSERTED DETAIL,22/03/2018,II,3904677,"3,000.00",HC105572,Lady Hawkins School (Academy),201812,Education and Commissioning,Transfer Payments
INSERTED DETAIL,22/03/2018,II,3904687,"1,090.00",HC101123,Boss,201812,Resources,Premises-Related Expenditure
INSERTED DETAIL,22/03/2018,II,3904697,"5,413.95",HC111685,Yeomans Travel Ltd,201812,Growth,Supplies & Services
INSERTED DETAIL,19/03/2018,II,3904698,500,HC120537,Herefordshire Means Business,201812,Growth,Supplies & Services
INSERTED DETAIL,08/03/2018,II,3904706,"4,075.44",HC109737,Severn Waste Services Ltd,201812,Environment and Place,Premises-Related Expenditure
INSERTED DETAIL,08/03/2018,II,3904712,"2,580.00",HC123432,Rapid Vision Systems Ltd,201812,Growth,Supplies & Services
INSERTED DETAIL,01/03/2018,II,3904714,576,HC103888,Hereford Pedicabs Ltd,201812,Growth,Supplies & Services
INSERTED DETAIL,16/03/2018,II,3904715,471,HC122189,Access Independent Ltd,201812,Communities,Supplies & Services
INSERTED DETAIL,16/03/2018,II,3904718,"4,017.49",HC107981,Neopost Ltd,201812,Resources,Supplies & Services
INSERTED DETAIL,16/03/2018,II,3904719,"1,000.00",HC107981,Neopost Ltd,201812,Resources,Supplies & Services
INSERTED DETAIL,16/03/2018,II,3904726,500,HC124056,Richard Weaver Photography,201812,Schools,Supplies & Services
INSERTED DETAIL,06/03/2018,II,3904727,"1,100.00",HC116854,Fairfield High School (Academy),201812,Schools,Support Services
INSERTED DETAIL,15/03/2018,II,3904732,"3,233.90",HC100385,Alliance In Partnership,201812,Schools,Supplies & Services
INSERTED DETAIL,07/03/2018,II,3904742,500,HC200030,Wye Water Services,201812,Schools,Premises-Related Expenditure
INSERTED DETAIL,16/03/2018,II,3904750,"1,600.00",HC102184,REDACTED,201812,Education and Commissioning,Supplies & Services
INSERTED DETAIL,16/03/2018,II,3904755,"1,734.00",HC124345,Voodoochilli Design Limited,201812,Schools,Support Services
INSERTED DETAIL,16/03/2018,II,3904757,"3,960.00",HC108191,OCR,201812,Schools,Supplies & Services
INSERTED DETAIL,07/03/2018,II,3904760,550,HC106960,Hopton Building Services Ltd,201812,Housing & Independent Living Capital,Capital Expenditure
INSERTED DETAIL,21/03/2018,II,3904761,"1,551.00",HC110958,TPG Disable Aids Ltd,201812,Housing & Independent Living Capital,Capital Expenditure
INSERTED DETAIL,29/03/2018,II,3904771,968.98,HC104018,Highground Maintenance Limited,201812,Schools,Premises-Related Expenditure
INSERTED DETAIL,20/03/2018,II,3904774,"10,634.80",HC108505,Pearson Education Ltd,201812,Schools,Supplies & Services
INSERTED DETAIL,13/03/2018,II,3904776,632.28,HC103660,Halo Leisure Services Ltd,201812,Schools,Premises-Related Expenditure
INSERTED DETAIL,19/03/2018,II,3904783,656.57,HC101444,Calor Gas Ltd,201812,Schools,Premises-Related Expenditure
INSERTED DETAIL,20/03/2018,II,3904785,700,HC106052,Viney Hill Christian Adventure Centre,201812,Schools,Supplies & Services
INSERTED DETAIL,01/03/2018,II,3904794,426.88,HC110424,Teachers2parents Ltd,201812,Schools,Supplies & Services
INSERTED DETAIL,09/03/2018,II,3904796,"1,180.00",HC119899,Team Bees Ltd,201812,Schools,Supplies & Services
INSERTED DETAIL,16/03/2018,II,3904806,"19,331.60",HC100493,George Youngs Coaches Ltd,201812,Environment and Place,Transport-Related Expenditure
INSERTED DETAIL,19/03/2018,II,3904807,570,HC103975,Herefordshire Riding For The Disabled,201812,Schools,Supplies & Services
INSERTED DETAIL,20/03/2018,II,3904809,690.1,HC101806,PEAC (UK) Ltd,201812,Schools,Supplies & Services
INSERTED DETAIL,15/03/2018,II,3904812,"1,277.29",HC121757,3C Payment (UK) Ltd,201812,Environment and Place,Premises-Related Expenditure
INSERTED DETAIL,14/03/2018,II,3904816,780.64,HC111373,Wellington Parish Council,201812,Environment and Place,Third Party Payments
INSERTED DETAIL,15/03/2018,II,3904818,646.8,HC104352,J P Catering,201812,Schools,Supplies & Services
INSERTED DETAIL,21/03/2018,II,3904821,"1,600.00",HC115994,Marden Primary Academy,201812,Dedicated Schools Grant,Support Services
INSERTED DETAIL,12/03/2018,II,3904822,"1,114.99",HC111347,Watson Petroleum Limited,201812,Schools,Premises-Related Expenditure
INSERTED DETAIL,02/03/2018,II,3904826,490,HC105563,Lugg Valley Primrose Travel Ltd,201812,Schools,Transport-Related Expenditure
INSERTED DETAIL,02/03/2018,II,3904831,586.66,HC107865,The Contact People,201812,Communities,Supplies & Services
INSERTED DETAIL,29/03/2018,II,3904837,990,HC100385,Alliance In Partnership,201812,Schools,Supplies & Services
INSERTED DETAIL,21/03/2018,II,3904838,658,HC100385,Alliance In Partnership,201812,Schools,Supplies & Services
INSERTED DETAIL,19/03/2018,II,3904851,418.28,HC105099,Kinnersley & District Gpc,201812,Environment and Place,Third Party Payments
INSERTED DETAIL,19/03/2018,II,3904853,"1,500.00",HC120941,Hulse Yazdi Professional Services,201812,Communities,Supplies & Services
INSERTED DETAIL,14/03/2018,II,3904854,420,HC120941,Hulse Yazdi Professional Services,201812,Communities,Supplies & Services
INSERTED DETAIL,14/03/2018,II,3904855,706.15,HC120924,Euclid Limited,201812,Environment and Place,Supplies & Services
INSERTED DETAIL,02/03/2018,II,3904858,"27,652.05",HC111685,Yeomans Travel Ltd,201812,Environment and Place,Transport-Related Expenditure
INSERTED DETAIL,07/03/2018,II,3904861,508.53,HC116277,Chelsea & Westminster Hosp NHS FT,201812,Public Health,Third Party Payments
INSERTED DETAIL,06/03/2018,II,3904862,950,HC100528,B & H Cars,201812,Learning Disabilities,Transport-Related Expenditure
INSERTED DETAIL,07/03/2018,II,3904871,689.92,HC116828,Gloucestershire Care Services NHST,201812,Public Health,Third Party Payments
INSERTED DETAIL,07/03/2018,II,3904872,"1,500.00",HC101126,Bowyer's Coaches,201812,Environment and Place,Transport-Related Expenditure
INSERTED DETAIL,12/03/2018,II,3904873,"11,907.45",HC103827,Herdman Coaches Ltd,201812,Environment and Place,Transport-Related Expenditure
INSERTED DETAIL,14/03/2018,II,3904876,"13,501.39",HC106384,Western Power Distribution,201812,Commissioning Capital,Capital Expenditure
INSERTED DETAIL,15/03/2018,II,3904877,538,HC105182,Land Registry ## Direct Debit Account ##,201812,Communities,Supplies & Services
INSERTED DETAIL,16/03/2018,II,3904883,511.21,HC111426,West Mercia Supplies (The Consortium),201812,Schools,Supplies & Services
INSERTED DETAIL,20/03/2018,II,3904892,"1,200.00",HC102184,REDACTED,201812,Education and Commissioning,Supplies & Services
INSERTED DETAIL,12/03/2018,II,3904895,600,HC106975,Hoople Ltd,201812,Schools,Supplies & Services
INSERTED DETAIL,13/03/2018,II,3904898,"2,100.00",HC111438,Tara Loughran (Total Maths Ltd),201812,Schools,Employees
INSERTED DETAIL,13/03/2018,II,3904899,"1,200.00",HC106975,Hoople Ltd,201812,Schools,Supplies & Services
INSERTED DETAIL,20/03/2018,II,3904900,"1,272.48",HC106975,Hoople Ltd,201812,Schools,Supplies & Services
INSERTED DETAIL,20/03/2018,II,3904911,511.38,HC104018,Highground Maintenance Limited,201812,Schools,Premises-Related Expenditure
INSERTED DETAIL,22/03/2018,II,3904916,683.72,HC108208,ESPO,201812,Schools,Supplies & Services
INSERTED DETAIL,08/03/2018,II,3904918,"1,878.85",HC108319,Oxford University Press,201812,Schools,Supplies & Services
INSERTED DETAIL,06/03/2018,II,3904922,580.8,HC109084,CF Corporate Finance Ltd,201812,Schools,Supplies & Services
INSERTED DETAIL,02/03/2018,II,3904923,"1,083.00",HC105779,Continental Sports Ltd,201812,Schools,Supplies & Services
INSERTED DETAIL,07/03/2018,II,3904928,"1,778,861.54",HC114724,Balfour Beatty Living Places Ltd,201812,Holding Codes,Holding Codes
INSERTED DETAIL,19/03/2018,II,3904931,521.42,HC108646,PHS Group Plc,201812,Environment and Place,Third Party Payments
INSERTED DETAIL,20/03/2018,II,3904937,"3,325.00",HC106003,Metric Group Ltd,201812,Commissioning Capital,Capital Expenditure
INSERTED DETAIL,22/03/2018,II,3904942,"1,710.00",HC100528,B & H Cars,201812,Learning Disabilities,Transport-Related Expenditure
INSERTED DETAIL,27/03/2018,II,3904944,591.96,HC100969,Bertram Trading Ltd,201812,Communities,Supplies & Services
INSERTED DETAIL,27/03/2018,II,3904946,759.32,HC100969,Bertram Trading Ltd,201812,Communities,Supplies & Services
INSERTED DETAIL,14/03/2018,II,3904949,"3,301.77",HC100969,Bertram Trading Ltd,201812,Communities,Supplies & Services
INSERTED DETAIL,14/03/2018,II,3904953,728.75,HC120005,REDACTED,201812,Safeguarding and Family Support,Supplies & Services
INSERTED DETAIL,01/03/2018,II,3904963,"6,541.00",HC102219,Daisy Communications Limited,201812,Communities,Supplies & Services
INSERTED DETAIL,15/03/2018,II,3904967,"2,205.00",HC111685,Yeomans Travel Ltd,201812,Schools,Supplies & Services
INSERTED DETAIL,14/03/2018,II,3904970,512.47,HC111426,West Mercia Supplies (The Consortium),201812,Schools,Supplies & Services
INSERTED DETAIL,14/03/2018,II,3904975,"3,210.00",HC111332,Warwickshire County Council,201812,Environment and Place,Supplies & Services
INSERTED DETAIL,19/03/2018,II,3904981,"1,596.30",HC123864,Family Action,201812,Safeguarding and Family Support,Employees
INSERTED DETAIL,23/03/2018,II,3904982,775,HC112806,Digicard Systems Ltd,201812,Environment and Place,Supplies & Services
INSERTED DETAIL,15/03/2018,II,3904987,562.95,HC119899,Team Bees Ltd,201812,Schools,Supplies & Services
INSERTED DETAIL,15/03/2018,II,3904988,520,HC117586,Vince Mantle Flooring Ltd,201812,Schools,Premises-Related Expenditure
INSERTED DETAIL,19/03/2018,II,3904990,"2,376.85",HC100385,Alliance In Partnership,201812,Schools,Supplies & Services
INSERTED DETAIL,19/03/2018,II,3904995,437.25,HC105512,Lord Combustion Services Ltd,201812,Schools,Premises-Related Expenditure
INSERTED DETAIL,22/03/2018,II,3904997,470,HC108402,Parallel Lines (Marking),201812,Schools,Premises-Related Expenditure
INSERTED DETAIL,22/03/2018,II,3905015,590,HC102749,Edutech Solutions Ltd,201812,Schools,Support Services
INSERTED DETAIL,05/03/2018,II,3905026,959.1,HC120703,Black Pepper (Ledbury) Ltd,201812,Schools,Supplies & Services
INSERTED DETAIL,06/03/2018,II,3905034,"3,279.54",HC108396,HAS Technology Limited,201812,Transformation and Safeguarding,Supplies & Services
INSERTED DETAIL,13/03/2018,II,3905035,"3,000.00",HC108396,HAS Technology Limited,201812,Transformation and Safeguarding,Supplies & Services
INSERTED DETAIL,19/03/2018,II,3905036,"3,000.00",HC108396,HAS Technology Limited,201812,Transformation and Safeguarding,Supplies & Services
INSERTED DETAIL,06/03/2018,II,3905037,"9,958.36",HC123624,Marches Centre of Manufacturing & Technology CIC,201812,Growth Capital,Capital Expenditure
INSERTED DETAIL,12/03/2018,II,3905038,466.88,HC101444,Calor Gas Ltd,201812,Schools,Premises-Related Expenditure
INSERTED DETAIL,14/03/2018,II,3905045,"3,886.39",HC108396,HAS Technology Limited,201812,Transformation and Safeguarding,Supplies & Services
INSERTED DETAIL,14/03/2018,II,3905046,"3,000.00",HC108396,HAS Technology Limited,201812,Transformation and Safeguarding,Supplies & Services
INSERTED DETAIL,06/03/2018,II,3905047,"3,579.88",HC108396,HAS Technology Limited,201812,Transformation and Safeguarding,Supplies & Services
INSERTED DETAIL,19/03/2018,II,3905061,"2,475.00",HC116149,M & J Travel,201812,Environment and Place,Transport-Related Expenditure
INSERTED DETAIL,21/03/2018,II,3905064,"6,274.00",HC109775,Shaw Healthcare Ltd,201812,Physical Disabilities,Employees
INSERTED DETAIL,20/03/2018,II,3905069,440,HC103869,Wye Valley NHS Trust,201812,Environment and Place,Supplies & Services
INSERTED DETAIL,20/03/2018,II,3905071,"3,569.60",HC103869,Wye Valley NHS Trust,201812,Communities,Supplies & Services
INSERTED DETAIL,20/03/2018,II,3905073,700,HC109547,REDACTED,201812,Schools,Employees
INSERTED DETAIL,20/03/2018,II,3905074,"3,148.09",HC115722,The Nationwide Community Learning Partnership (NCLP),201812,Education and Commissioning,Supplies & Services
INSERTED DETAIL,20/03/2018,II,3905080,563.08,HC112352,Shredpro,201812,Resources,Supplies & Services
INSERTED DETAIL,16/03/2018,II,3905084,461.97,HC108663,PIP Printing Hereford,201812,Environment and Place,Supplies & Services
INSERTED DETAIL,16/03/2018,II,3905089,"2,710.00",HC122664,Systra Ltd,201812,Environment and Place,Third Party Payments
INSERTED DETAIL,12/03/2018,II,3905092,"9,359.24",HC100385,Alliance In Partnership,201812,Schools,Supplies & Services
INSERTED DETAIL,14/03/2018,II,3905095,"1,000.00",HC114181,Calon Solutions Limited,201812,Schools,Employees
INSERTED DETAIL,14/03/2018,II,3905105,617.77,HC110583,Apogee Corporation Ltd,201812,Schools,Supplies & Services
INSERTED DETAIL,14/03/2018,II,3905117,545.37,HC122340,Zero Point Eight (Dudley) Ltd,201812,Communities Capital,Capital Expenditure
INSERTED DETAIL,16/03/2018,II,3905118,"3,160.00",HC124424,Media Friendly Ltd,201812,Communities,Supplies & Services
INSERTED DETAIL,21/03/2018,II,3905120,"3,016.49",HC118714,Restore plc,201812,Communities,Supplies & Services
INSERTED DETAIL,06/03/2018,II,3905121,"10,551.03",HC122526,MISL Ltd,201812,Communities,Supplies & Services
INSERTED DETAIL,22/03/2018,II,3905122,"1,455.00",HC111538,Semaphore Psychology & Consultancy,201812,Dedicated Schools Grant,Third Party Payments
INSERTED DETAIL,29/03/2018,II,3905130,970,HC111538,Semaphore Psychology & Consultancy,201812,Dedicated Schools Grant,Third Party Payments
INSERTED DETAIL,12/03/2018,II,3905132,500,HC102164,D Bedford T/A Crop Spraying Services,201812,Resources,Transfer Payments
INSERTED DETAIL,16/03/2018,II,3905133,784.5,112331,REDACTED,201812,Dedicated Schools Grant,Supplies & Services
INSERTED DETAIL,15/03/2018,II,3905142,"49,368.75",HC111421,West Mercia Police & Crime Commissioner,201812,Central Childrens Directorate Costs,Third Party Payments
INSERTED DETAIL,14/03/2018,II,3905143,"4,146.49",HC108396,HAS Technology Limited,201812,Transformation and Safeguarding,Supplies & Services
INSERTED DETAIL,13/03/2018,II,3905144,"3,977.33",HC108396,HAS Technology Limited,201812,Transformation and Safeguarding,Supplies & Services
INSERTED DETAIL,05/03/2018,II,3905145,"4,892.50",HC108396,HAS Technology Limited,201812,Transformation and Safeguarding,Supplies & Services
INSERTED DETAIL,16/03/2018,II,3905146,"3,000.00",HC108396,HAS Technology Limited,201812,Transformation and Safeguarding,Supplies & Services
INSERTED DETAIL,14/03/2018,II,3905147,"3,000.00",HC108396,HAS Technology Limited,201812,Transformation and Safeguarding,Supplies & Services
INSERTED DETAIL,19/03/2018,II,3905168,496.95,HC106975,Hoople Ltd,201812,Schools,Premises-Related Expenditure
INSERTED DETAIL,20/03/2018,II,3905172,"13,695.56",HC106975,Hoople Ltd,201812,Commissioning Adults,Employees
INSERTED DETAIL,20/03/2018,II,3905173,"14,025.88",HC106975,Hoople Ltd,201812,Commissioning Adults,Employees
INSERTED DETAIL,20/03/2018,II,3905180,"4,636.64",HC108396,HAS Technology Limited,201812,Transformation and Safeguarding,Supplies & Services
INSERTED DETAIL,20/03/2018,II,3905181,"4,466.08",HC108396,HAS Technology Limited,201812,Transformation and Safeguarding,Supplies & Services
INSERTED DETAIL,14/03/2018,II,3905186,"2,248.90",HC106387,Plumbing & Heating Services,201812,Housing & Independent Living Capital,Capital Expenditure
INSERTED DETAIL,13/03/2018,II,3905187,"3,110.58",HC102639,E C Joseph & Sons Ltd,201812,Housing & Independent Living Capital,Capital Expenditure
INSERTED DETAIL,15/03/2018,II,3905188,"4,073.10",HC106960,Hopton Building Services Ltd,201812,Housing & Independent Living Capital,Capital Expenditure
INSERTED DETAIL,07/03/2018,II,3905199,"3,300.00",HC116149,M & J Travel,201812,Environment and Place,Transport-Related Expenditure
INSERTED DETAIL,15/03/2018,II,3905200,"2,145.00",HC116149,M & J Travel,201812,Environment and Place,Transport-Related Expenditure
INSERTED DETAIL,06/03/2018,II,3905201,"2,860.00",HC116149,M & J Travel,201812,Environment and Place,Transport-Related Expenditure
INSERTED DETAIL,19/03/2018,II,3905214,"1,836.00",HC100385,Alliance In Partnership,201812,Schools,Supplies & Services
INSERTED DETAIL,20/03/2018,II,3905216,"3,093.50",HC100385,Alliance In Partnership,201812,Schools,Supplies & Services
INSERTED DETAIL,13/03/2018,II,3905218,840,HC110767,REDACTED,201812,Adults Operations,Supplies & Services
INSERTED DETAIL,15/03/2018,II,3905219,840,HC110767,REDACTED,201812,Adults Operations,Supplies & Services
INSERTED DETAIL,23/03/2018,II,3905227,884.38,HC105926,Mavis Russell Cleaning Ltd,201812,Schools,Premises-Related Expenditure
INSERTED DETAIL,20/03/2018,II,3905229,897.21,HC105926,Mavis Russell Cleaning Ltd,201812,Schools,Premises-Related Expenditure
INSERTED DETAIL,20/03/2018,II,3905246,"3,389.67",HC124635,TG Escapes Ltd,201812,Schools,Premises-Related Expenditure
INSERTED DETAIL,23/03/2018,II,3905251,"14,418.00",HC114833,Bloom Procurement Services Ltd,201812,Education and Commissioning,Supplies & Services
INSERTED DETAIL,05/03/2018,II,3905256,544.05,HC121130,The Wilderness Centre,201812,Schools,Supplies & Services
INSERTED DETAIL,14/03/2018,II,3905257,816.25,HC105926,Mavis Russell Cleaning Ltd,201812,Schools,Premises-Related Expenditure
INSERTED DETAIL,19/03/2018,II,3905258,521.4,HC122739,Elite Catering,201812,Schools,Supplies & Services
INSERTED DETAIL,26/03/2018,II,3905263,844.22,HC113150,Edge Renewables Ltd,201812,Schools,Premises-Related Expenditure
INSERTED DETAIL,01/03/2018,II,3905264,"12,000.00",HC111363,Weightmans LLP,201812,Resources Capital,Capital Expenditure
INSERTED DETAIL,20/03/2018,II,3905265,"1,853.50",HC111363,Weightmans LLP,201812,Resources Capital,Capital Expenditure
INSERTED DETAIL,20/03/2018,II,3905271,560,HC110573,The Courtyard Trust,201812,Schools,Supplies & Services
INSERTED DETAIL,20/03/2018,II,3905272,723.85,HC108473,REDACTED,201812,Schools,Transport-Related Expenditure
INSERTED DETAIL,20/03/2018,II,3905273,"1,087.50",HC105926,Mavis Russell Cleaning Ltd,201812,Schools,Premises-Related Expenditure
INSERTED DETAIL,20/03/2018,II,3905274,462.75,HC109458,S C Joseph Ltd,201812,Schools,Premises-Related Expenditure
INSERTED DETAIL,20/03/2018,II,3905275,525,HC102982,REDACTED,201812,Schools,Supplies & Services
INSERTED DETAIL,20/03/2018,II,3905276,750,HC110717,The NST Travel Group Plc,201812,Schools,Supplies & Services
INSERTED DETAIL,20/03/2018,II,3905277,"6,095.00",HC102816,The National Trust,201812,Schools,Supplies & Services
INSERTED DETAIL,20/03/2018,II,3905285,"4,833.37",HC103069,Fortis Living Ltd,201812,Physical Disabilities,Third Party Payments
INSERTED DETAIL,20/03/2018,II,3905300,910,HC108604,PGL Travel Ltd,201812,Schools,Supplies & Services
INSERTED DETAIL,20/03/2018,II,3905301,"2,332.00",HC108604,PGL Travel Ltd,201812,Schools,Supplies & Services
INSERTED DETAIL,20/03/2018,II,3905303,"4,000.02",HC103158,Marlowe Child & Family Services Ltd,201812,Dedicated Schools Grant,Supplies & Services
INSERTED DETAIL,20/03/2018,II,3905310,"1,600.00",HC102184,REDACTED,201812,Education and Commissioning,Supplies & Services
INSERTED DETAIL,20/03/2018,II,3905311,"1,026.00",HC122598,Chroma Therapies Ltd,201812,Schools,Support Services
INSERTED DETAIL,20/03/2018,II,3905312,"3,491.30",HC104726,J & W Kostorz Ltd,201812,Housing & Independent Living Capital,Capital Expenditure
INSERTED DETAIL,20/03/2018,II,3905313,483,HC109458,S C Joseph Ltd,201812,Schools,Premises-Related Expenditure
INSERTED DETAIL,20/03/2018,II,3905316,492.83,HC109736,Severn Valley Window & Door Ltd,201812,Schools,Premises-Related Expenditure
INSERTED DETAIL,20/03/2018,II,3905320,"3,845.60",HC106310,Moorfield House Surgery,201812,Environment and Place,Supplies & Services
INSERTED DETAIL,20/03/2018,II,3905322,"1,500.00",HC116652,REDACTED,201812,Communities,Supplies & Services
INSERTED DETAIL,20/03/2018,II,3905327,"11,040.26",HC118449,V1 Ltd,201812,Communities,Supplies & Services
INSERTED DETAIL,20/03/2018,II,3905330,"3,000.00",HC107858,MVF Builders Ltd,201812,Housing & Independent Living Capital,Capital Expenditure
INSERTED DETAIL,20/03/2018,II,3905342,"4,098.10",HC103508,Goodrich School Meals Ass.,201812,Schools,Supplies & Services
INSERTED DETAIL,20/03/2018,II,3905344,"4,895.00",HC116854,Fairfield High School (Academy),201812,Education and Commissioning,Supplies & Services
INSERTED DETAIL,20/03/2018,II,3905346,"92,679.50",HC115217,NHS Herefordshire CCG,201812,Physical Disabilities,Third Party Payments
INSERTED DETAIL,20/03/2018,II,3905347,"92,679.50",HC115217,NHS Herefordshire CCG,201812,Physical Disabilities,Third Party Payments
INSERTED DETAIL,20/03/2018,II,3905348,"92,679.50",HC115217,NHS Herefordshire CCG,201812,Physical Disabilities,Third Party Payments
INSERTED DETAIL,20/03/2018,II,3905349,"61,786.33",HC115217,NHS Herefordshire CCG,201812,Physical Disabilities,Third Party Payments
INSERTED DETAIL,20/03/2018,II,3905350,"11,599.41",HC105563,Lugg Valley Primrose Travel Ltd,201812,Environment and Place,Third Party Payments
INSERTED DETAIL,20/03/2018,II,3905351,720,HC109443,S & R Taxis,201812,Environment and Place,Transport-Related Expenditure
INSERTED DETAIL,20/03/2018,II,3905352,556.52,HC111420,REDACTED,201812,Safeguarding and Family Support,Supplies & Services
INSERTED DETAIL,20/03/2018,II,3905353,"242,297.58",HC111489,Whitecross@Stepnell Ltd,201812,Education and Commissioning,Premises-Related Expenditure
INSERTED DETAIL,20/03/2018,II,3905354,593.4,HC111420,REDACTED,201812,Safeguarding and Family Support,Supplies & Services
INSERTED DETAIL,20/03/2018,II,3905355,"1,409.64",HC111420,REDACTED,201812,Safeguarding and Family Support,Supplies & Services
INSERTED DETAIL,20/03/2018,II,3905358,"1,083.00",HC114625,O B & K D Roberts,201812,Environment and Place,Supplies & Services
INSERTED DETAIL,20/03/2018,II,3905360,583.3,HC118096,Twinkl Educational Publishing Ltd,201812,Schools,Supplies & Services
INSERTED DETAIL,20/03/2018,II,3905361,956.75,HC105926,Mavis Russell Cleaning Ltd,201812,Schools,Premises-Related Expenditure
INSERTED DETAIL,20/03/2018,II,3905363,"1,338.16",HC122677,Oral Health Foundation,201812,Education and Commissioning,Supplies & Services
INSERTED DETAIL,20/03/2018,II,3905366,632.28,HC103660,Halo Leisure Services Ltd,201812,Schools,Premises-Related Expenditure
INSERTED DETAIL,20/03/2018,II,3905378,974.23,HC109769,Shaw Healthcare (Herefordshire) Ltd,201812,Physical Disabilities,Employees
INSERTED DETAIL,20/03/2018,II,3905380,"2,643.00",HC107632,Lee Bolton Monier-Williams Solicitors,201812,Education and Commissioning,Supplies & Services
INSERTED DETAIL,20/03/2018,II,3905385,"1,296,088.00",HC111421,West Mercia Police & Crime Commissioner,201812,Collection Fund,Collection Fund Accounts
INSERTED DETAIL,20/03/2018,II,3905391,850,HC110395,Tann Synchronome Limited,201812,Schools,Premises-Related Expenditure
INSERTED DETAIL,20/03/2018,II,3905393,764.22,HC104882,K T Gooch,201812,Schools,Supplies & Services
INSERTED DETAIL,20/03/2018,II,3905405,"1,011.00",HC123950,Paces,201812,Schools,Supplies & Services
INSERTED DETAIL,20/03/2018,II,3905406,"1,065.63",HC105926,Mavis Russell Cleaning Ltd,201812,Schools,Premises-Related Expenditure
INSERTED DETAIL,20/03/2018,II,3905410,"2,160.00",HC114802,Malvern Hills Outdoor Education Co Ltd,201812,Schools,Supplies & Services
INSERTED DETAIL,20/03/2018,II,3905411,619.05,HC114749,Dell Financial Services,201812,Schools,Supplies & Services
INSERTED DETAIL,20/03/2018,II,3905420,688,HC110034,Superstars School Services Ltd,201812,Schools,Supplies & Services
INSERTED DETAIL,20/03/2018,II,3905421,462.36,HC109997,Spa Gas Ltd,201812,Schools,Premises-Related Expenditure
INSERTED DETAIL,20/03/2018,II,3905426,488,HC101472,Capita Business Services Ltd,201812,Schools,Supplies & Services
INSERTED DETAIL,20/03/2018,II,3905437,"40,150.00",HC111602,Worcestershire County Council ,201812,Corporate,Employees
INSERTED DETAIL,20/03/2018,II,3905441,"1,250.00",HC124428,Brendan Hickey Construction,201812,Schools,Premises-Related Expenditure
INSERTED DETAIL,20/03/2018,II,3905442,"1,342.50",HC124050,REDACTED,201812,Schools,Supplies & Services
INSERTED DETAIL,20/03/2018,II,3905445,"1,184.50",HC104352,J P Catering,201812,Schools,Supplies & Services
INSERTED DETAIL,20/03/2018,II,3905450,"13,049.99",HC118978,Taurus Healthcare,201812,Public Health,Supplies & Services
INSERTED DETAIL,20/03/2018,II,3905452,"10,028.00",HC106098,Millhouse Residential Care Home,201812,Learning Disabilities,Third Party Payments
INSERTED DETAIL,20/03/2018,II,3905454,720,HC116192,REDACTED,201812,Safeguarding and Family Support,Supplies & Services
INSERTED DETAIL,20/03/2018,II,3905458,"53,718.62",HC101815,Civica UK Limited,201812,Communities,Supplies & Services
INSERTED DETAIL,20/03/2018,II,3905460,480,HC119552,REDACTED,201812,Adults Operations,Supplies & Services
INSERTED DETAIL,20/03/2018,II,3905461,840,HC119552,REDACTED,201812,Adults Operations,Supplies & Services
INSERTED DETAIL,20/03/2018,II,3905463,841.93,HC101126,Bowyer's Coaches,201812,Environment and Place,Third Party Payments
INSERTED DETAIL,20/03/2018,II,3905464,"1,053.15",HC111924,Bromyard Community Transport Ltd,201812,Environment and Place,Transport-Related Expenditure
INSERTED DETAIL,20/03/2018,II,3905465,"1,369.35",HC111924,Bromyard Community Transport Ltd,201812,Environment and Place,Transport-Related Expenditure
INSERTED DETAIL,20/03/2018,II,3905470,550,HC103390,George Youngs Coaches Ltd (Factor A/C),201812,Schools,Transport-Related Expenditure
INSERTED DETAIL,20/03/2018,II,3905475,"2,500.00",HC111599,Life Cycle UK,201812,Environment and Place,Third Party Payments
INSERTED DETAIL,20/03/2018,II,3905477,830,HC110063,Z-Card Ltd,201812,Environment and Place,Supplies & Services
INSERTED DETAIL,20/03/2018,II,3905484,"1,831.00",HC122849,Histon House Ltd (Scholarpack),201812,Schools,Supplies & Services
INSERTED DETAIL,20/03/2018,II,3905485,683,HC112314,Book Life,201812,Schools,Supplies & Services
INSERTED DETAIL,20/03/2018,II,3905494,"1,220.76",HC103263,Future Industrial Services Ltd,201812,Environment and Place,Third Party Payments
INSERTED DETAIL,20/03/2018,II,3905496,"22,827.90",HC102595,DRM (Bromyard) Ltd,201812,Environment and Place,Transport-Related Expenditure
INSERTED DETAIL,20/03/2018,II,3905500,800,HC118296,Landmark Chambers,201812,Communities,Supplies & Services
INSERTED DETAIL,20/03/2018,II,3905501,427.53,HC103248,Fuelgenie Business Account,201812,Communities,Transport-Related Expenditure
INSERTED DETAIL,20/03/2018,II,3905503,"5,055.86",HC105171,Lambe Corner,201812,Communities,Employees
INSERTED DETAIL,20/03/2018,II,3905504,500,HC122822,J Jones & Sons,201812,Resources,Transfer Payments
INSERTED DETAIL,20/03/2018,II,3905505,"1,800.00",HC111175,REDACTED,201812,Environment and Place,Transport-Related Expenditure
INSERTED DETAIL,20/03/2018,II,3905516,"3,300.00",HC104882,K T Gooch,201812,Schools,Supplies & Services
INSERTED DETAIL,20/03/2018,II,3905518,"1,808.56",HC106003,Metric Group Ltd,201812,Environment and Place,Supplies & Services
INSERTED DETAIL,20/03/2018,II,3905519,"3,219.75",HC106003,Metric Group Ltd,201812,Environment and Place,Supplies & Services
INSERTED DETAIL,20/03/2018,II,3905523,"2,227.67",HC113877,Albion Computers PLC,201812,Schools,Supplies & Services
INSERTED DETAIL,20/03/2018,II,3905525,769,HC110424,Teachers2parents Ltd,201812,Schools,Supplies & Services
INSERTED DETAIL,20/03/2018,II,3905528,"1,000.42",HC105926,Mavis Russell Cleaning Ltd,201812,Schools,Premises-Related Expenditure
INSERTED DETAIL,20/03/2018,II,3905529,"1,243.55",HC112667,School Pupil Tracker Ltd,201812,Schools,Supplies & Services
INSERTED DETAIL,20/03/2018,II,3905533,940,HC113130,PPMA,201812,Directors,Supplies & Services
INSERTED DETAIL,20/03/2018,II,3905534,940,HC113130,PPMA,201812,Directors,Supplies & Services
INSERTED DETAIL,20/03/2018,II,3905535,420,HC120941,Hulse Yazdi Professional Services,201812,Communities,Supplies & Services
INSERTED DETAIL,20/03/2018,II,3905536,525,HC120660,REDACTED,201812,Communities,Supplies & Services
INSERTED DETAIL,20/03/2018,II,3905538,938.25,HC100385,Alliance In Partnership,201812,Schools,Supplies & Services
INSERTED DETAIL,20/03/2018,II,3905539,695.2,HC100385,Alliance In Partnership,201812,Schools,Supplies & Services
INSERTED DETAIL,20/03/2018,II,3905542,632.25,HC108646,PHS Group Plc,201812,Schools,Supplies & Services
INSERTED DETAIL,20/03/2018,II,3905543,450.5,HC110459,The Key Support Services Ltd,201812,Schools,Supplies & Services
INSERTED DETAIL,20/03/2018,II,3905546,"3,000.00",HC111363,Weightmans LLP,201812,Resources Capital,Capital Expenditure
INSERTED DETAIL,20/03/2018,II,3905547,"1,000.00",HC116790,REDACTED,201812,Environment and Place,Supplies & Services
INSERTED DETAIL,20/03/2018,II,3905548,"1,980.00",HC110079,Aerial - Cam Ltd,201812,Environment and Place,Supplies & Services
INSERTED DETAIL,20/03/2018,II,3905550,"3,416.55",HC112494,St Michael's Hospice,201812,Transformation and Safeguarding,Transfer Payments
INSERTED DETAIL,20/03/2018,II,3905552,"15,000.00",HC109622,Sargeants Brothers Ltd,201812,Environment and Place,Transport-Related Expenditure
INSERTED DETAIL,20/03/2018,II,3905553,"2,356.65",HC109622,Sargeants Brothers Ltd,201812,Environment and Place,Transport-Related Expenditure
INSERTED DETAIL,20/03/2018,II,3905554,"1,950.00",HC109622,Sargeants Brothers Ltd,201812,Environment and Place,Transport-Related Expenditure
INSERTED DETAIL,20/03/2018,II,3905561,483,HC111685,Yeomans Travel Ltd,201812,Schools,Supplies & Services
INSERTED DETAIL,20/03/2018,II,3905573,663,HC111941,Yorkshire Purchasing,201812,Schools,Premises-Related Expenditure
INSERTED DETAIL,20/03/2018,II,3905577,"1,035.71",HC100976,Bespoke Cleaning Services,201812,Schools,Premises-Related Expenditure
INSERTED DETAIL,20/03/2018,II,3905581,"1,994.60",HC109152,Relion Heating Services Ltd,201812,Schools,Premises-Related Expenditure
INSERTED DETAIL,20/03/2018,II,3905586,"1,575.30",HC100385,Alliance In Partnership,201812,Schools,Supplies & Services
INSERTED DETAIL,20/03/2018,II,3905593,"1,134.00",HC120611,REDACTED,201812,Schools,Supplies & Services
INSERTED DETAIL,20/03/2018,II,3905596,"1,694.38",HC105926,Mavis Russell Cleaning Ltd,201812,Schools,Premises-Related Expenditure
INSERTED DETAIL,20/03/2018,II,3905598,590,HC120683,Ser-Tec System Ltd,201812,Schools,Premises-Related Expenditure
INSERTED DETAIL,20/03/2018,II,3905599,892,HC108145,Novatech  Ltd,201812,Schools,Supplies & Services
INSERTED DETAIL,20/03/2018,II,3905608,"1,399.50",HC101969,CVA Ledbury & District,201812,Environment and Place,Transport-Related Expenditure
INSERTED DETAIL,20/03/2018,II,3905609,900,HC101969,CVA Ledbury & District,201812,Environment and Place,Transport-Related Expenditure
INSERTED DETAIL,20/03/2018,II,3905610,"1,260.50",HC104015,High Town Radio Taxi Group,201812,Environment and Place,Transport-Related Expenditure
INSERTED DETAIL,20/03/2018,II,3905614,859.1,HC104015,High Town Radio Taxi Group,201812,Environment and Place,Transport-Related Expenditure
INSERTED DETAIL,20/03/2018,II,3905616,"1,088.33",HC100617,REDACTED,201812,Safeguarding and Family Support,Supplies & Services
INSERTED DETAIL,20/03/2018,II,3905618,503.1,HC101060,REDACTED,201812,Safeguarding and Family Support,Transport-Related Expenditure
INSERTED DETAIL,20/03/2018,II,3905623,"1,526.00",HC111757,Sharpe Pritchard LLP,201812,Communities,Supplies & Services
INSERTED DETAIL,21/03/2018,II,3905627,"1,920.00",HC101060,Blue Line Taxis,201812,Environment and Place,Transport-Related Expenditure
INSERTED DETAIL,15/03/2018,II,3905628,"2,850.00",HC101060,Blue Line Taxis,201812,Environment and Place,Transport-Related Expenditure
INSERTED DETAIL,20/03/2018,II,3905630,"31,005.45",HC116406,Sustrans,201812,Environment and Place,Supplies & Services
INSERTED DETAIL,20/03/2018,II,3905637,"4,828.00",HC112885,Ian Williams Ltd,201812,Schools,Premises-Related Expenditure
INSERTED DETAIL,16/03/2018,II,3905640,671,HC122739,Elite Catering,201812,Schools,Supplies & Services
INSERTED DETAIL,19/03/2018,II,3905643,560,HC112240,You Time Counselling Trust,201812,Schools,Supplies & Services
INSERTED DETAIL,16/03/2018,II,3905645,"1,518.75",HC100385,Alliance In Partnership,201812,Schools,Supplies & Services
INSERTED DETAIL,27/03/2018,II,3905646,450.91,HC109792,REDACTED,201812,Adults Operations,Transport-Related Expenditure
INSERTED DETAIL,13/03/2018,II,3905647,"2,500.00",HC111195,HMRC on behalf of Valuation Office Agency,201812,Environment and Place,Supplies & Services
INSERTED DETAIL,06/03/2018,II,3905648,"1,274.70",HC101969,CVA Ledbury & District,201812,Environment and Place,Transport-Related Expenditure
INSERTED DETAIL,06/03/2018,II,3905652,"3,000.00",HC111195,HMRC on behalf of Valuation Office Agency,201812,Environment and Place,Supplies & Services
INSERTED DETAIL,20/03/2018,II,3905655,793.85,HC111941,Yorkshire Purchasing,201812,Schools,Supplies & Services
INSERTED DETAIL,02/03/2018,II,3905656,420,HC112891,Sports Plus Scheme Ltd,201812,Schools,Supplies & Services
INSERTED DETAIL,19/03/2018,II,3905657,"1,334.25",HC100385,Alliance In Partnership,201812,Schools,Supplies & Services
INSERTED DETAIL,20/03/2018,II,3905658,532.08,HC105926,Mavis Russell Cleaning Ltd,201812,Schools,Premises-Related Expenditure
INSERTED DETAIL,20/03/2018,II,3905669,687.4,HC105926,Mavis Russell Cleaning Ltd,201812,Schools,Premises-Related Expenditure
INSERTED DETAIL,20/03/2018,II,3905671,699.99,HC103087,Findel Education Limited,201812,Schools,Supplies & Services
INSERTED DETAIL,20/03/2018,II,3905673,420,HC124046,Susan Mills Cleaning,201812,Schools,Premises-Related Expenditure
INSERTED DETAIL,20/03/2018,II,3905681,"1,560.00",HC108045,OP Software Ltd,201812,Schools,Supplies & Services
INSERTED DETAIL,20/03/2018,II,3905685,600,HC122807,Freeths LLP,201812,Communities,Supplies & Services
INSERTED DETAIL,20/03/2018,II,3905686,600,HC103952,Herefordshire Group Training Assoc Ltd,201812,Environment and Place,Employees
INSERTED DETAIL,20/03/2018,II,3905687,600,HC103952,Herefordshire Group Training Assoc Ltd,201812,Environment and Place,Employees
INSERTED DETAIL,20/03/2018,II,3905690,"2,981.00",HC107522,Mrs M J Thomson (The Iron Rice Bowl Ltdl),201812,Schools,Supplies & Services
INSERTED DETAIL,20/03/2018,II,3905691,618.2,HC107522,Mrs M J Thomson (The Iron Rice Bowl Ltdl),201812,Schools,Supplies & Services
INSERTED DETAIL,05/03/2018,II,3905692,"78,851.12",HC108143,Nottingham Rehab Ltd,201812,Commissioning Adults,Supplies & Services
INSERTED DETAIL,05/03/2018,II,3905692,"11,434.20",HC108143,Nottingham Rehab Ltd,201812,Commissioning Adults,Transport-Related Expenditure
INSERTED DETAIL,20/03/2018,II,3905695,"1,000.00",HC200044,REDACTED,201812,Corporate,Supplies & Services
INSERTED DETAIL,20/03/2018,II,3905699,"2,415.50",HC105192,Ashfords LLP,201812,Communities,Supplies & Services
INSERTED DETAIL,20/03/2018,II,3905700,"4,000.00",HC111195,HMRC on behalf of Valuation Office Agency,201812,Environment and Place,Supplies & Services
INSERTED DETAIL,20/03/2018,II,3905701,480,HC110153,REDACTED,201812,Communities,Supplies & Services
INSERTED DETAIL,20/03/2018,II,3905702,"2,342.10",HC110743,The Plynlimon Trust Community Car Scheme,201812,Environment and Place,Transport-Related Expenditure
INSERTED DETAIL,20/03/2018,II,3905703,"1,495.80",HC110743,The Plynlimon Trust Community Car Scheme,201812,Environment and Place,Transport-Related Expenditure
INSERTED DETAIL,20/03/2018,II,3905704,"2,356.80",HC110743,The Plynlimon Trust Community Car Scheme,201812,Environment and Place,Transport-Related Expenditure
INSERTED DETAIL,20/03/2018,II,3905712,649,HC106398,Medrock Training Ltd,201812,Schools,Employees
INSERTED DETAIL,20/03/2018,II,3905715,693.7,HC111685,Yeomans Travel Ltd,201812,Environment and Place,Third Party Payments
INSERTED DETAIL,20/03/2018,II,3905721,"7,700.00",HC102995,Ewyas Harold Primary School,201812,Children & Young People Capital,Capital Expenditure
INSERTED DETAIL,20/03/2018,II,3905724,"2,050.07",HC113960,Barrs Court Academy,201812,Schools,Supplies & Services
INSERTED DETAIL,13/03/2018,II,3905725,"35,387.39",HC111332,Warwickshire County Council,201812,Communities,Supplies & Services
INSERTED DETAIL,12/03/2018,II,3905726,590.2,HC100656,Allstar Business Solutions Ltd (Arval),201812,Environment and Place,Transport-Related Expenditure
INSERTED DETAIL,14/03/2018,II,3905730,"42,525.68",HC111685,Yeomans Travel Ltd,201812,Environment and Place,Third Party Payments
INSERTED DETAIL,14/03/2018,II,3905732,"1,800.00",HC124167,d2 Digital by Design Ltd,201812,Environment and Place,Supplies & Services
INSERTED DETAIL,23/03/2018,II,3905733,"8,758.70",HC108812,Richfords Ltd,201812,Resources,Premises-Related Expenditure
INSERTED DETAIL,16/03/2018,II,3905742,"1,800.00",HC101060,Blue Line Taxis,201812,Environment and Place,Transport-Related Expenditure
INSERTED DETAIL,20/03/2018,II,3905747,780,HC101060,Blue Line Taxis,201812,Environment and Place,Transport-Related Expenditure
INSERTED DETAIL,19/03/2018,II,3905752,"328,078.89",HC103144,Fcc Environment Services (uk) Ltd,201812,Environment and Place,Third Party Payments
INSERTED DETAIL,20/03/2018,II,3905753,"1,800.00",HC101060,Blue Line Taxis,201812,Environment and Place,Transport-Related Expenditure
INSERTED DETAIL,20/03/2018,II,3905754,"1,645.00",HC101060,Blue Line Taxis,201812,Environment and Place,Transport-Related Expenditure
INSERTED DETAIL,07/03/2018,II,3905755,"2,400.00",HC101060,Blue Line Taxis,201812,Environment and Place,Transport-Related Expenditure
INSERTED DETAIL,14/03/2018,II,3905757,485.07,HC111426,West Mercia Supplies (The Consortium),201812,Schools,Supplies & Services
INSERTED DETAIL,14/03/2018,II,3905758,"1,027.00",HC111363,Weightmans LLP,201812,Communities,Supplies & Services
INSERTED DETAIL,14/03/2018,II,3905759,"2,088.40",HC105563,Lugg Valley Primrose Travel Ltd,201812,Environment and Place,Third Party Payments
INSERTED DETAIL,14/03/2018,II,3905765,519,HC109380,Royal Inst Of Chartered Surveyors (RICS),201812,Resources,Supplies & Services
INSERTED DETAIL,06/03/2018,II,3905770,"2,600.00",HC109458,S C Joseph Ltd,201812,Schools,Premises-Related Expenditure
INSERTED DETAIL,19/03/2018,II,3905772,810,HC108174,Oaker Wood Leisure Ltd,201812,Schools,Supplies & Services
INSERTED DETAIL,12/03/2018,II,3905773,599.25,HC101060,Blue Line Taxis,201812,Environment and Place,Transport-Related Expenditure
INSERTED DETAIL,01/03/2018,II,3905774,"1,540.00",HC101060,Blue Line Taxis,201812,Environment and Place,Transport-Related Expenditure
INSERTED DETAIL,22/03/2018,II,3905775,750,HC101060,Blue Line Taxis,201812,Environment and Place,Transport-Related Expenditure
INSERTED DETAIL,20/03/2018,II,3905776,"1,350.00",HC101060,Blue Line Taxis,201812,Environment and Place,Transport-Related Expenditure
INSERTED DETAIL,20/03/2018,II,3905777,"1,275.00",HC101060,Blue Line Taxis,201812,Environment and Place,Transport-Related Expenditure
INSERTED DETAIL,20/03/2018,II,3905778,"2,160.00",HC101060,Blue Line Taxis,201812,Environment and Place,Transport-Related Expenditure
INSERTED DETAIL,20/03/2018,II,3905779,"1,275.00",HC101060,Blue Line Taxis,201812,Environment and Place,Transport-Related Expenditure
INSERTED DETAIL,23/03/2018,II,3905782,666.67,HC102885,YHA England & Wales,201812,Schools,Supplies & Services
INSERTED DETAIL,12/03/2018,II,3905786,"1,350.00",HC101060,Blue Line Taxis,201812,Environment and Place,Transport-Related Expenditure
INSERTED DETAIL,20/03/2018,II,3905787,"1,948.50",HC101060,Blue Line Taxis,201812,Environment and Place,Transport-Related Expenditure
INSERTED DETAIL,20/03/2018,II,3905788,"1,080.00",HC101060,Blue Line Taxis,201812,Environment and Place,Transport-Related Expenditure
INSERTED DETAIL,20/03/2018,II,3905790,"1,725.00",HC101060,Blue Line Taxis,201812,Environment and Place,Transport-Related Expenditure
INSERTED DETAIL,20/03/2018,II,3905791,600,HC101060,Blue Line Taxis,201812,Environment and Place,Transport-Related Expenditure
INSERTED DETAIL,23/03/2018,II,3905792,"1,650.00",HC101060,Blue Line Taxis,201812,Environment and Place,Transport-Related Expenditure
INSERTED DETAIL,27/03/2018,II,3905793,"1,350.00",HC101060,Blue Line Taxis,201812,Environment and Place,Transport-Related Expenditure
INSERTED DETAIL,08/03/2018,II,3905796,"2,530.00",HC100385,Alliance In Partnership,201812,Schools,Supplies & Services
INSERTED DETAIL,09/03/2018,II,3905797,520,HC102298,REDACTED,201812,Schools,Supplies & Services
INSERTED DETAIL,13/03/2018,II,3905805,420,HC105202,REDACTED,201812,Schools,Supplies & Services
INSERTED DETAIL,14/03/2018,II,3905811,"3,900.00",HC118940,Earl Mortimer College & Sixth Form HCC,201812,Schools,Supplies & Services
INSERTED DETAIL,14/03/2018,II,3905815,"1,500.00",HC101060,Blue Line Taxis,201812,Environment and Place,Transport-Related Expenditure
INSERTED DETAIL,14/03/2018,II,3905816,"1,200.00",HC101060,Blue Line Taxis,201812,Environment and Place,Transport-Related Expenditure
INSERTED DETAIL,06/03/2018,II,3905822,544.25,HC101123,Boss,201812,Schools,Supplies & Services
INSERTED DETAIL,07/03/2018,II,3905829,710.84,HC102788,Halfords Ltd,201812,Holding Codes,Holding Codes
INSERTED DETAIL,21/03/2018,II,3905833,835,HC109765,REDACTED,201812,Schools,Supplies & Services
INSERTED DETAIL,20/03/2018,II,3905835,771.5,HC117119,Smart Payments Ltd,201812,Schools,Supplies & Services
INSERTED DETAIL,12/03/2018,II,3905836,735,HC109517,Safety Reflectives Ltd,201812,Environment and Place,Supplies & Services
INSERTED DETAIL,20/03/2018,II,3905841,"9,765.48",HC109458,S C Joseph Ltd,201812,Resources,Premises-Related Expenditure
INSERTED DETAIL,20/03/2018,II,3905842,805.4,HC124441,Ecological Landscape Ltd,201812,Children & Young People Capital,Capital Expenditure
INSERTED DETAIL,15/03/2018,II,3905843,"1,395.00",HC107737,MS & EM Patrick Ltd,201812,Environment and Place,Supplies & Services
INSERTED DETAIL,16/03/2018,II,3905845,"1,453.00",HC103935,Herefordshire & Ludlow College,201812,Education and Commissioning,Supplies & Services
INSERTED DETAIL,01/03/2018,II,3905851,"17,822.40",HC122526,MISL Ltd,201812,Communities,Supplies & Services
INSERTED DETAIL,13/03/2018,II,3905864,"1,200.00",HC105159,Wales Millennium Centre,201812,Schools,Supplies & Services
INSERTED DETAIL,15/03/2018,II,3905865,"1,926.00",HC111757,Sharpe Pritchard LLP,201812,Communities,Supplies & Services
INSERTED DETAIL,12/03/2018,II,3905866,625,HC111599,Life Cycle UK,201812,Environment and Place,Supplies & Services
INSERTED DETAIL,20/03/2018,II,3905868,431.02,HC103526,Gough Bailey Wright,201812,Environment and Place,Supplies & Services
INSERTED DETAIL,20/03/2018,II,3905869,716.79,HC103526,Gough Bailey Wright,201812,Environment and Place,Supplies & Services
INSERTED DETAIL,20/03/2018,II,3905871,"3,000.00",HC111603,Worcestershire County Council,201812,Growth,Supplies & Services
INSERTED DETAIL,20/03/2018,II,3905873,"2,275.00",HC105579,Lyn Bullock Catering,201812,Communities,Supplies & Services
INSERTED DETAIL,20/03/2018,II,3905877,"1,996.00",HC103869,Wye Valley NHS Trust,201812,Directors,Third Party Payments
INSERTED DETAIL,20/03/2018,II,3905878,"150,703.00",HC117682,Portakabin Ltd,201812,Children & Young People Capital,Capital Expenditure
INSERTED DETAIL,20/03/2018,II,3905880,"12,064.00",HC106941,Omnibus Solutions Ltd,201812,Environment and Place,Supplies & Services
INSERTED DETAIL,09/03/2018,II,3905881,"4,005.00",HC101305,Bubble Production Co.Ltd,201812,Director and Management,Supplies & Services
INSERTED DETAIL,16/03/2018,II,3905883,589.78,HC103526,Gough Bailey Wright,201812,Environment and Place,Supplies & Services
INSERTED DETAIL,08/03/2018,II,3905884,850,HC124430,Kemps Publishing Ltd,201812,Growth,Supplies & Services
INSERTED DETAIL,08/03/2018,II,3905885,500,HC124652,South Hereford & Ross Harriers Pony Club,201812,Communities,Supplies & Services
INSERTED DETAIL,20/03/2018,II,3905886,"10,917.23",HC117682,Portakabin Ltd,201812,Education and Commissioning,Premises-Related Expenditure
INSERTED DETAIL,05/03/2018,II,3905887,"1,071.53",HC113150,Edge Renewables Ltd,201812,Schools,Premises-Related Expenditure
INSERTED DETAIL,05/03/2018,II,3905891,"3,938.10",HC120247,Ann Skipper Planning,201812,Growth,Third Party Payments
INSERTED DETAIL,05/03/2018,II,3905892,"3,196.69",HC110117,Stagecoach Services Limited,201812,Environment and Place,Third Party Payments
INSERTED DETAIL,07/03/2018,II,3905897,653.28,HC103526,Gough Bailey Wright,201812,Environment and Place,Supplies & Services
INSERTED DETAIL,07/03/2018,II,3905915,581.5,HC102014,Coordination Group Publications Ltd,201812,Schools,Supplies & Services
INSERTED DETAIL,05/03/2018,II,3905923,"13,750.00",HC114072,TomHead Limited,201812,Resources,Premises-Related Expenditure
INSERTED DETAIL,05/03/2018,II,3905925,531.59,HC101123,Boss,201812,Schools,Supplies & Services
INSERTED DETAIL,15/03/2018,II,3905927,722.81,HC101123,Boss,201812,Schools,Supplies & Services
INSERTED DETAIL,20/03/2018,II,3905932,"1,104.10",HC100976,Bespoke Cleaning Services,201812,Schools,Premises-Related Expenditure
INSERTED DETAIL,20/03/2018,II,3905934,679.9,HC112412,Forward Products,201812,Schools,Supplies & Services
INSERTED DETAIL,20/03/2018,II,3905935,759.14,HC100976,Bespoke Cleaning Services,201812,Schools,Premises-Related Expenditure
INSERTED DETAIL,19/03/2018,II,3905936,"3,843.18",HC100976,Bespoke Cleaning Services,201812,Schools,Premises-Related Expenditure
INSERTED DETAIL,19/03/2018,II,3905942,960.48,HC111347,Watson Petroleum Limited,201812,Schools,Premises-Related Expenditure
INSERTED DETAIL,22/03/2018,II,3905954,503,HC108852,Provide Home Solutions Ltd,201812,Schools,Premises-Related Expenditure
INSERTED DETAIL,01/03/2018,II,3905959,640,HC122643,School Leadership Systems Ltd,201812,Schools,Supplies & Services
INSERTED DETAIL,23/03/2018,II,3905969,"1,000.00",HC103131,Values Based Leadership Ltd,201812,Education and Commissioning,Supplies & Services
INSERTED DETAIL,01/03/2018,II,3905970,583.7,HC105563,Lugg Valley Primrose Travel Ltd,201812,Environment and Place,Third Party Payments
INSERTED DETAIL,19/03/2018,II,3905971,"5,186.25",HC111685,Yeomans Travel Ltd,201812,Environment and Place,Third Party Payments
INSERTED DETAIL,12/03/2018,II,3905972,"4,533.39",HC109622,Sargeants Brothers Ltd,201812,Environment and Place,Third Party Payments
INSERTED DETAIL,19/03/2018,II,3905973,"10,216.45",HC110117,Stagecoach Services Limited,201812,Environment and Place,Third Party Payments
INSERTED DETAIL,19/03/2018,II,3905974,640.7,HC117492,Davitt Jones Bould,201812,Growth,Supplies & Services
INSERTED DETAIL,22/03/2018,II,3905976,552.39,HC111426,West Mercia Supplies (The Consortium),201812,Schools,Supplies & Services
INSERTED DETAIL,16/03/2018,II,3905985,"2,860.70",HC112168,Herefordshire 4x4 Response,201812,Communities,Transport-Related Expenditure
INSERTED DETAIL,22/03/2018,II,3905987,717.49,HC101382,G4S Cash Service (Direct Debit),201812,Resources,Third Party Payments
INSERTED DETAIL,08/03/2018,II,3905988,"4,905.49",HC101473,Capita Business Services Ltd (Direct Debit),201812,Resources,Supplies & Services
INSERTED DETAIL,20/03/2018,II,3905993,"1,277.69",HC114093,H G Clewer Ltd,201812,Public Health,Supplies & Services
INSERTED DETAIL,20/03/2018,II,3905995,660.83,HC108883,Chandos Pharmacy,201812,Public Health,Supplies & Services
INSERTED DETAIL,20/03/2018,II,3905999,"1,040.00",HC104015,High Town Radio Taxi Group,201812,Learning Disabilities,Transport-Related Expenditure
INSERTED DETAIL,20/03/2018,II,3906001,"2,842.00",HC104879,K S Harris Transport,201812,Environment and Place,Transport-Related Expenditure
INSERTED DETAIL,20/03/2018,II,3906002,697,HC122785,REDACTED,201812,Adults Operations,Premises-Related Expenditure
INSERTED DETAIL,20/03/2018,II,3906004,700,HC109622,Sargeants Brothers Ltd,201812,Environment and Place,Third Party Payments
INSERTED DETAIL,20/03/2018,II,3906005,"9,508.00",HC103268,G B Electrical And Building Services Ltd,201812,Integrated Commissioning,Capital Expenditure
INSERTED DETAIL,20/03/2018,II,3906015,"3,906.92",HC102366,BT Onebill (Direct Debit),201812,Communities,Supplies & Services
INSERTED DETAIL,20/03/2018,II,3906019,"6,696.32",HC112548,London Explorers Ltd,201812,Schools,Supplies & Services
INSERTED DETAIL,20/03/2018,II,3906021,"1,000.00",HC106106,Minibus Services,201812,Learning Disabilities,Transport-Related Expenditure
INSERTED DETAIL,20/03/2018,II,3906024,"1,620.00",HC111420,West Mercia Homes Ltd,201812,Communities,Supplies & Services
INSERTED DETAIL,20/03/2018,II,3906026,495,HC121984,Musiclusive,201812,Education and Commissioning,Supplies & Services
INSERTED DETAIL,20/03/2018,II,3906030,"57,916.00",HC105563,Lugg Valley Primrose Travel Ltd,201812,Environment and Place,Third Party Payments
INSERTED DETAIL,20/03/2018,II,3906033,535,HC124647,Cwmtawe Community School,201812,Dedicated Schools Grant,Support Services
INSERTED DETAIL,20/03/2018,II,3906034,741.16,HC124648,Andoversford Primary School,201812,Dedicated Schools Grant,Support Services
INSERTED DETAIL,20/03/2018,II,3906035,420,HC124644,Worcester Learning Zone,201812,Dedicated Schools Grant,Support Services
INSERTED DETAIL,20/03/2018,II,3906056,450,HC108361,Jones Coaches Ltd,201812,Schools,Supplies & Services
INSERTED DETAIL,20/03/2018,II,3906058,"8,974.10",HC100385,Alliance In Partnership,201812,Schools,Supplies & Services
INSERTED DETAIL,20/03/2018,II,3906059,"2,504.00",HC100385,Alliance In Partnership,201812,Schools,Supplies & Services
INSERTED DETAIL,20/03/2018,II,3906060,"9,791.00",HC111508,Wigmore High School (Academy),201812,Schools,Supplies & Services
INSERTED DETAIL,20/03/2018,II,3906066,"2,288.00",HC108604,PGL Travel Ltd,201812,Schools,Supplies & Services
INSERTED DETAIL,20/03/2018,II,3906071,"1,041.00",HC111332,Warwickshire County Council,201812,Environment and Place,Supplies & Services
INSERTED DETAIL,20/03/2018,II,3906072,"1,200.00",HC106106,Minibus Services,201812,Learning Disabilities,Transport-Related Expenditure
INSERTED DETAIL,20/03/2018,II,3906075,"58,684.00",HC110117,Stagecoach Services Limited,201812,Environment and Place,Third Party Payments
INSERTED DETAIL,20/03/2018,II,3906079,855.63,HC105926,Mavis Russell Cleaning Ltd,201812,Schools,Premises-Related Expenditure
INSERTED DETAIL,20/03/2018,II,3906080,"6,461.00",HC113877,Albion Computers PLC,201812,Schools,Supplies & Services
INSERTED DETAIL,20/03/2018,II,3906083,"1,860.00",HC114874,HCT Construction Consultants Ltd,201812,Growth,Supplies & Services
INSERTED DETAIL,20/03/2018,II,3906085,440.77,HC114281,H Carson Ltd  (DAY211),201812,Public Health,Supplies & Services
INSERTED DETAIL,20/03/2018,II,3906086,782.81,HC114088,Asda Stores Ltd,201812,Public Health,Supplies & Services
INSERTED DETAIL,20/03/2018,II,3906090,"3,474.90",HC120236,Planning and Management Ltd,201812,Growth,Third Party Payments
INSERTED DETAIL,20/03/2018,II,3906092,"10,920.00",HC111044,Truancy Call Ltd T/A Contact Group,201812,Dedicated Schools Grant,Support Services
INSERTED DETAIL,20/03/2018,II,3906093,"4,000.00",HC109094,RE Today,201812,Education and Commissioning,Supplies & Services
INSERTED DETAIL,20/03/2018,II,3906095,507.52,HC124646,Apollo Home Healthcare Ltd,201812,Dedicated Schools Grant,Third Party Payments
INSERTED DETAIL,20/03/2018,II,3906097,"3,445.83",HC110869,Three Counties Hotel,201812,Dedicated Schools Grant,Support Services
INSERTED DETAIL,20/03/2018,II,3906098,800,HC124466,First Class Tailored Solutions Ltd,201812,Dedicated Schools Grant,Support Services
INSERTED DETAIL,20/03/2018,II,3906101,450,HC103786,Association of Local Environmental Records Centres cic,201812,Environment and Place,Supplies & Services
INSERTED DETAIL,20/03/2018,II,3906102,"7,083.63",HC115217,NHS Herefordshire CCG,201812,Director and Management,Supplies & Services
INSERTED DETAIL,20/03/2018,II,3906104,"3,572.00",HC106975,Hoople Ltd,201812,Transformation and Safeguarding,Third Party Payments
INSERTED DETAIL,20/03/2018,II,3906111,938.3,HC101648,CF Roberts (Electrical Contractors) Plc,201812,Schools,Premises-Related Expenditure
INSERTED DETAIL,20/03/2018,II,3906120,990.74,HC108646,PHS Group Plc,201812,Schools,Supplies & Services
INSERTED DETAIL,20/03/2018,II,3906123,"2,257.89",HC120924,Euclid Limited,201812,Environment and Place,Supplies & Services
INSERTED DETAIL,20/03/2018,II,3906125,"1,798.62",HC106975,Hoople Ltd,201812,Communities,Supplies & Services
INSERTED DETAIL,20/03/2018,II,3906126,"1,320.00",HC106975,Hoople Ltd,201812,Communities,Supplies & Services
INSERTED DETAIL,20/03/2018,II,3906127,"1,855.00",HC106975,Hoople Ltd,201812,Education and Commissioning,Supplies & Services
INSERTED DETAIL,20/03/2018,II,3906132,"1,080.00",HC106106,Minibus Services,201812,Learning Disabilities,Transport-Related Expenditure
INSERTED DETAIL,20/03/2018,II,3906134,"7,324.00",HC100493,George Youngs Coaches Ltd,201812,Environment and Place,Third Party Payments
INSERTED DETAIL,20/03/2018,II,3906135,"69,430.00",HC111685,Yeomans Travel Ltd,201812,Environment and Place,Third Party Payments
INSERTED DETAIL,20/03/2018,II,3906136,"49,359.00",HC109622,Sargeants Brothers Ltd,201812,Environment and Place,Third Party Payments
INSERTED DETAIL,20/03/2018,II,3906137,622.5,HC124645,Wye Events,201812,Dedicated Schools Grant,Supplies & Services
INSERTED DETAIL,20/03/2018,II,3906138,"1,335.00",HC101509,Caretech Community Services,201812,Education and Commissioning,Third Party Payments
INSERTED DETAIL,20/03/2018,II,3906139,"1,335.00",HC101509,Caretech Community Services,201812,Education and Commissioning,Third Party Payments
INSERTED DETAIL,20/03/2018,II,3906143,693.35,HC105563,Lugg Valley Primrose Travel Ltd,201812,Environment and Place,Third Party Payments
INSERTED DETAIL,20/03/2018,II,3906146,"1,505.30",HC103981,Herefordshire Vision Links,201812,Commissioning Adults,Supplies & Services
INSERTED DETAIL,20/03/2018,II,3906147,"1,349.29",HC103981,Herefordshire Vision Links,201812,Commissioning Adults,Supplies & Services
INSERTED DETAIL,20/03/2018,II,3906149,"7,825.36",HC115217,NHS Herefordshire CCG,201812,Director and Management,Supplies & Services
INSERTED DETAIL,20/03/2018,II,3906152,"20,000.00",HC111603,Worcestershire County Council,201812,Education and Commissioning,Third Party Payments
INSERTED DETAIL,20/03/2018,II,3906156,675,HC105552,Luctonians Sports Club Ltd,201812,Schools,Supplies & Services
INSERTED DETAIL,20/03/2018,II,3906159,640.11,HC101861,Clearview Cleaning Services,201812,Schools,Premises-Related Expenditure
INSERTED DETAIL,20/03/2018,II,3906164,"1,393.09",HC102751,Edventure,201812,Schools,Supplies & Services
INSERTED DETAIL,20/03/2018,II,3906167,475,HC111685,Yeomans Travel Ltd,201812,Schools,Transport-Related Expenditure
INSERTED DETAIL,20/03/2018,II,3906173,580.08,HC111347,Watson Petroleum Limited,201812,Schools,Premises-Related Expenditure
INSERTED DETAIL,20/03/2018,II,3906176,"1,366.00",HC117586,Vince Mantle Flooring Ltd,201812,Schools,Premises-Related Expenditure
INSERTED DETAIL,20/03/2018,II,3906177,842,HC117586,Vince Mantle Flooring Ltd,201812,Schools,Premises-Related Expenditure
INSERTED DETAIL,20/03/2018,II,3906180,760,HC116254,Learning Support Partnership Ltd,201812,Schools,Supplies & Services
INSERTED DETAIL,20/03/2018,II,3906184,"8,945.00",HC110717,The NST Travel Group Plc,201812,Schools,Supplies & Services
INSERTED DETAIL,20/03/2018,II,3906187,710.54,HC109849,Signs & Labels Hereford,201812,Communities,Supplies & Services
INSERTED DETAIL,20/03/2018,II,3906191,"21,746.95",HC106975,Hoople Ltd,201812,Communities,Supplies & Services
INSERTED DETAIL,20/03/2018,II,3906192,485.13,HC101297,BT PLC,201812,Adults Operations,Supplies & Services
INSERTED DETAIL,20/03/2018,II,3906193,"2,755.25",HC118081,UK Container Maintenance Ltd,201812,Environment and Place,Supplies & Services
INSERTED DETAIL,20/03/2018,II,3906198,"2,111.16",HC106975,Hoople Ltd,201812,Communities,Supplies & Services
INSERTED DETAIL,20/03/2018,II,3906200,"27,000.00",HC103461,REDACTED,201812,Safeguarding and Family Support,Third Party Payments
INSERTED DETAIL,20/03/2018,II,3906215,463.47,HC101556,Rethink Printing Ltd,201812,Schools,Supplies & Services
INSERTED DETAIL,20/03/2018,II,3906220,678.45,HC104018,Highground Maintenance Limited,201812,Schools,Premises-Related Expenditure
INSERTED DETAIL,20/03/2018,II,3906227,640,HC102113,Crossroads Care-Forest Of Dean & Hfds,201812,Education and Commissioning,Third Party Payments
INSERTED DETAIL,20/03/2018,II,3906229,960,HC102113,Crossroads Care-Forest Of Dean & Hfds,201812,Education and Commissioning,Third Party Payments
INSERTED DETAIL,02/03/2018,II,3906237,"5,940.20",HC111685,Yeomans Travel Ltd,201812,Environment and Place,Third Party Payments
INSERTED DETAIL,05/03/2018,II,3906239,"10,577.00",HC103869,Wye Valley NHS Trust,201812,Director and Management,Third Party Payments
INSERTED DETAIL,20/03/2018,II,3906240,"99,465.00",HC103869,Wye Valley NHS Trust,201812,Director and Management,Third Party Payments
INSERTED DETAIL,13/03/2018,II,3906243,"3,412.20",HC107522,Mrs M J Thomson (The Iron Rice Bowl Ltdl),201812,Schools,Supplies & Services
INSERTED DETAIL,20/03/2018,II,3906249,650,HC102113,Crossroads Care-Forest Of Dean & Hfds,201812,Education and Commissioning,Third Party Payments
INSERTED DETAIL,14/03/2018,II,3906251,420,HC102113,Crossroads Care-Forest Of Dean & Hfds,201812,Education and Commissioning,Third Party Payments
INSERTED DETAIL,19/03/2018,II,3906255,458.8,HC122745,Front Foot Sports,201812,Schools,Supplies & Services
INSERTED DETAIL,01/03/2018,II,3906258,600,HC103827,Herdman Coaches Ltd,201812,Schools,Supplies & Services
INSERTED DETAIL,13/03/2018,II,3906261,960,HC102113,Crossroads Care-Forest Of Dean & Hfds,201812,Education and Commissioning,Third Party Payments
INSERTED DETAIL,22/03/2018,II,3906266,"58,380.00",HC103119,First Midland Red Bus Ltd,201812,Environment and Place,Third Party Payments
INSERTED DETAIL,09/03/2018,II,3906267,"58,380.00",HC103119,First Midland Red Bus Ltd,201812,Environment and Place,Third Party Payments
INSERTED DETAIL,13/03/2018,II,3906270,695,HC102113,Crossroads Care-Forest Of Dean & Hfds,201812,Education and Commissioning,Third Party Payments
INSERTED DETAIL,23/03/2018,II,3906273,480,HC102113,Crossroads Care-Forest Of Dean & Hfds,201812,Education and Commissioning,Third Party Payments
INSERTED DETAIL,16/03/2018,II,3906275,"1,380.00",HC102113,Crossroads Care-Forest Of Dean & Hfds,201812,Education and Commissioning,Third Party Payments
INSERTED DETAIL,23/03/2018,II,3906277,837,HC124120,Bobby's Domestic Services,201812,Schools,Premises-Related Expenditure
INSERTED DETAIL,16/03/2018,II,3906285,780,HC108319,Oxford University Press,201812,Schools,Supplies & Services
INSERTED DETAIL,15/03/2018,II,3906289,"1,215.02",HC109458,S C Joseph Ltd,201812,Schools Devolved Capital,Capital Expenditure
INSERTED DETAIL,14/03/2018,II,3906294,840,HC105552,Luctonians Sports Club Ltd,201812,Schools,Supplies & Services
INSERTED DETAIL,28/03/2018,II,3906299,"40,848.00",HC115217,NHS Herefordshire CCG,201812,Director and Management,Supplies & Services
INSERTED DETAIL,26/03/2018,II,3906300,"1,312.99",HC122509,Bridges Business Spaces LLP01 t/a Flexspace,201812,Growth,Premises-Related Expenditure
INSERTED DETAIL,08/03/2018,II,3906301,509,HC122509,Bridges Business Spaces LLP01 t/a Flexspace,201812,Growth,Premises-Related Expenditure
INSERTED DETAIL,09/03/2018,II,3906302,"10,000.00",HC102182,Telford & Wrekin Council,201812,Growth,Third Party Payments
INSERTED DETAIL,12/03/2018,II,3906303,"2,154.60",HC107522,Mrs M J Thomson (The Iron Rice Bowl Ltdl),201812,Schools,Supplies & Services
INSERTED DETAIL,20/03/2018,II,3906307,"3,131.00",HC108396,HAS Technology Limited,201812,Transformation and Safeguarding,Supplies & Services
INSERTED DETAIL,20/03/2018,II,3906308,"58,353.12",HC100413,Alun Griffiths  Contractors  Ltd,201812,Commissioning Capital,Capital Expenditure
INSERTED DETAIL,20/03/2018,II,3906312,"20,000.00",HC117239,Governing Body of Staunton on Wye Endowed Primary School,201812,Schools,Supplies & Services
INSERTED DETAIL,20/03/2018,II,3906313,"1,914.00",HC104055,HM Courts & Tribunals Service,201812,Corporate,Supplies & Services
INSERTED DETAIL,20/03/2018,II,3906328,511.38,HC104018,Highground Maintenance Limited,201812,Schools,Premises-Related Expenditure
INSERTED DETAIL,22/03/2018,II,3906329,"2,151.36",HC111685,Yeomans Travel Ltd,201812,Environment and Place,Transport-Related Expenditure
INSERTED DETAIL,12/03/2018,II,3906330,600,HC123446,GDR Gates & Doors Ltd,201812,Schools,Premises-Related Expenditure
INSERTED DETAIL,12/03/2018,II,3906331,"2,232.00",HC111339,In-Situ Europe Ltd,201812,Environment and Place,Premises-Related Expenditure
INSERTED DETAIL,21/03/2018,II,3906332,"1,150.00",HC119481,REDACTED,201812,Adults Operations,Supplies & Services
INSERTED DETAIL,01/03/2018,II,3906334,765.5,HC101542,REDACTED,201812,Adults Operations,Supplies & Services
INSERTED DETAIL,19/03/2018,II,3906335,"1,242.45",HC115388,Digital ID Ltd,201812,Resources,Supplies & Services
INSERTED DETAIL,16/03/2018,II,3906336,"2,750.00",HC124181,Butler Rose,201812,Resources,Employees
INSERTED DETAIL,12/03/2018,II,3906337,"2,750.00",HC124181,Butler Rose,201812,Resources,Employees
INSERTED DETAIL,06/03/2018,II,3906338,"2,750.00",HC124181,Butler Rose,201812,Resources,Employees
INSERTED DETAIL,06/03/2018,II,3906349,772.5,HC110976,Selectamark Security Systems PLC,201812,Environment and Place,Supplies & Services
INSERTED DETAIL,22/03/2018,II,3906350,"2,640.00",HC106975,Hoople Ltd,201812,Resources,Supplies & Services
INSERTED DETAIL,22/03/2018,II,3906351,"3,520.00",HC106975,Hoople Ltd,201812,Resources,Supplies & Services
INSERTED DETAIL,08/03/2018,II,3906372,"11,033.37",HC111420,West Mercia Homes Ltd,201812,Commissioning Adults,Supplies & Services
INSERTED DETAIL,15/03/2018,II,3906374,600,HC108797,Pricewaterhousecoopers LLP,201812,Resources,Employees
INSERTED DETAIL,15/03/2018,II,3906375,"1,062.10",HC118319,Johnston Oils Ltd,201812,Schools,Premises-Related Expenditure
INSERTED DETAIL,15/03/2018,II,3906377,"1,127.00",HC109826,Shropshire Council,201812,Schools,Supplies & Services
INSERTED DETAIL,28/02/2018,II,3906380,"3,190.73",HC117310,Level Access Bathrooms,201812,Housing & Independent Living Capital,Capital Expenditure
INSERTED DETAIL,12/03/2018,II,3906388,958.31,HC101878,Climb On Bikes,201812,Holding Codes,Holding Codes
INSERTED DETAIL,21/03/2018,II,3906391,"1,961.66",HC105563,Lugg Valley Primrose Travel Ltd,201812,Environment and Place,Transport-Related Expenditure
INSERTED DETAIL,21/03/2018,II,3906401,"2,125.00",HC103888,Hereford Pedicabs Ltd,201812,Communities,Supplies & Services
INSERTED DETAIL,14/03/2018,II,3906408,"1,108.05",HC110320,Sutton Parish Council,201812,Environment and Place,Third Party Payments
INSERTED DETAIL,14/03/2018,II,3906409,"4,000.00",HC111508,Wigmore High School (Academy),201812,Schools,Supplies & Services
INSERTED DETAIL,20/03/2018,II,3906415,"1,149.15",HC111347,Watson Petroleum Limited,201812,Schools,Premises-Related Expenditure
INSERTED DETAIL,12/03/2018,II,3906416,"1,717.51",HC107888,Mappenors Construction Limited,201812,Schools,Premises-Related Expenditure
INSERTED DETAIL,19/03/2018,II,3906417,"6,023.87",HC108260,Orange PLC (Airtime),201812,Communities,Supplies & Services
INSERTED DETAIL,01/03/2018,II,3906418,"4,916.58",HC120340,Adept Telecom PLC,201812,Communities,Supplies & Services
INSERTED DETAIL,12/03/2018,II,3906419,"1,587.84",HC120340,Adept Telecom PLC,201812,Communities,Supplies & Services
INSERTED DETAIL,13/03/2018,II,3906420,"7,771.80",HC104284,Insight Direct (UK) Ltd,201812,Communities,Supplies & Services
INSERTED DETAIL,14/03/2018,II,3906422,"1,781.50",HC103538,Alert-iT Care Alarms,201812,Integrated Commissioning,Capital Expenditure
INSERTED DETAIL,23/03/2018,II,3906425,480,HC105760,Marches IT Services Ltd,201812,Schools,Supplies & Services
INSERTED DETAIL,23/03/2018,II,3906428,490,HC116909,Butterflies Child Counselling & Play Therapy,201812,Schools,Supplies & Services
INSERTED DETAIL,23/03/2018,II,3906429,"5,000.00",HC107980,Neopost Limited,201812,Resources,Supplies & Services
INSERTED DETAIL,14/03/2018,II,3906434,895.4,HC110250,RJ & RB Mailes,201812,Schools,Supplies & Services
INSERTED DETAIL,22/03/2018,II,3906440,560,HC114202,Outstanding Education Sols Ltd -   Factor A/C,201812,Schools,Supplies & Services
INSERTED DETAIL,20/03/2018,II,3906441,"1,396.00",HC108283,Orleton School Meals,201812,Schools,Supplies & Services
INSERTED DETAIL,01/03/2018,II,3906442,"543,608.56",HC103831,Hereford & Worc Fire & Rescue Service,201812,Collection Fund,Collection Fund Accounts
INSERTED DETAIL,08/03/2018,II,3906443,"36,716.00",HC103831,Hereford & Worc Fire & Rescue Service,201812,Consolidated Revenue Account,Supplies & Services
INSERTED DETAIL,15/03/2018,II,3906444,595,HC108604,PGL Travel Ltd,201812,Schools,Supplies & Services
INSERTED DETAIL,22/03/2018,II,3906447,"2,514.00",HC100385,Alliance In Partnership,201812,Schools,Supplies & Services
INSERTED DETAIL,28/03/2018,II,3906448,"2,859.50",HC121145,TV Licensing (Group Licences Only),201812,Resources,Supplies & Services
INSERTED DETAIL,01/03/2018,II,3906449,442.3,HC108516,Pembridge School Fund,201812,Schools,Supplies & Services
INSERTED DETAIL,08/03/2018,II,3906454,"7,654.00",HC100385,Alliance In Partnership,201812,Schools,Supplies & Services
INSERTED DETAIL,01/03/2018,II,3906465,517.13,HC101444,Calor Gas Ltd,201812,Schools,Premises-Related Expenditure
INSERTED DETAIL,08/03/2018,II,3906467,973,HC110034,Superstars School Services Ltd,201812,Schools,Supplies & Services
INSERTED DETAIL,15/03/2018,II,3906469,996.98,HC104882,K T Gooch,201812,Schools,Supplies & Services
INSERTED DETAIL,22/03/2018,II,3906470,"1,800.00",HC110760,The Red Ridge Centre,201812,Schools,Supplies & Services
INSERTED DETAIL,28/03/2018,II,3906471,450,HC108548,123Comms Ltd,201812,Schools,Supplies & Services
INSERTED DETAIL,08/03/2018,II,3906474,"1,502.00",HC101472,Capita Business Services Ltd,201812,Schools,Supplies & Services
INSERTED DETAIL,15/03/2018,II,3906476,480,HC122847,NetSupport Software Ltd,201812,Schools,Supplies & Services
INSERTED DETAIL,22/03/2018,II,3906477,"2,026.30",HC104352,J P Catering,201812,Schools,Supplies & Services
INSERTED DETAIL,28/03/2018,II,3906478,622,HC110034,Superstars School Services Ltd,201812,Schools,Supplies & Services
INSERTED DETAIL,02/03/2018,II,3906481,886.75,HC102728,Education City Ltd,201812,Schools,Supplies & Services
INSERTED DETAIL,01/03/2018,II,3906484,613.46,HC111426,West Mercia Supplies (The Consortium),201812,Schools,Supplies & Services
INSERTED DETAIL,01/03/2018,II,3906515,"1,432.90",HC104352,J P Catering,201812,Schools,Supplies & Services
INSERTED DETAIL,05/03/2018,II,3906531,480,HC200057,Beacon Dyslexia Services,201812,Schools,Supplies & Services
INSERTED DETAIL,06/03/2018,II,3906546,765,HC105552,Luctonians Sports Club Ltd,201812,Schools,Supplies & Services
INSERTED DETAIL,20/03/2018,II,3906547,435,HC105552,Luctonians Sports Club Ltd,201812,Schools,Supplies & Services
INSERTED DETAIL,09/03/2018,II,3906549,"1,482.00",HC109832,Sico Europe Ltd,201812,Schools,Supplies & Services
INSERTED DETAIL,12/03/2018,II,3906554,"1,087.50",HC105926,Mavis Russell Cleaning Ltd,201812,Schools,Premises-Related Expenditure
INSERTED DETAIL,16/03/2018,II,3906556,"2,697.52",HC102453,District Surveyors Association Ltd (Labc),201812,Environment and Place,Supplies & Services
INSERTED DETAIL,23/03/2018,II,3906560,"8,687.50",HC118290,Primosec Ltd,201812,Communities,Supplies & Services
INSERTED DETAIL,06/03/2018,II,3906561,475,HC103935,Herefordshire & Ludlow College,201812,Communities,Supplies & Services
INSERTED DETAIL,09/03/2018,II,3906562,"18,000.00",HC124377,Action for Elders,201812,Director and Management,Third Party Payments
INSERTED DETAIL,06/03/2018,II,3906564,583.85,HC102444,Falcon Document Solutions Limited,201812,Schools,Supplies & Services
INSERTED DETAIL,19/03/2018,II,3906574,508.53,HC116277,Chelsea & Westminster Hosp NHS FT,201812,Public Health,Third Party Payments
INSERTED DETAIL,20/03/2018,II,3906581,730.5,HC103268,REDACTED,201812,Adults Operations,Supplies & Services
INSERTED DETAIL,20/03/2018,II,3906590,847.55,HC116277,Chelsea & Westminster Hosp NHS FT,201812,Public Health,Third Party Payments
INSERTED DETAIL,23/03/2018,II,3906591,430.38,HC110372,T S Matthews & Son (Bartonsham Farm Dairies),201812,Schools,Supplies & Services
INSERTED DETAIL,23/03/2018,II,3906592,999.5,HC101440,Callow Fuels,201812,Schools,Premises-Related Expenditure
INSERTED DETAIL,07/03/2018,II,3906593,"1,099.40",HC101440,Callow Fuels,201812,Schools,Premises-Related Expenditure
INSERTED DETAIL,09/03/2018,II,3906594,"3,880.10",HC120703,Black Pepper (Ledbury) Ltd,201812,Schools,Supplies & Services
INSERTED DETAIL,15/03/2018,II,3906595,671.6,HC120703,Black Pepper (Ledbury) Ltd,201812,Schools,Supplies & Services
INSERTED DETAIL,21/03/2018,II,3906598,732.73,HC100617,REDACTED,201812,Safeguarding and Family Support,Supplies & Services
INSERTED DETAIL,21/03/2018,II,3906603,486.52,HC109152,Relion Heating Services Ltd,201812,Schools,Premises-Related Expenditure
INSERTED DETAIL,20/03/2018,II,3906607,"1,000.00",HC101806,PEAC (UK) Ltd,201812,Schools,Supplies & Services
INSERTED DETAIL,08/03/2018,II,3906608,"1,145.70",HC103744,Printworks Direct Ltd,201812,Schools,Supplies & Services
INSERTED DETAIL,23/03/2018,II,3906611,734.09,HC109152,Relion Heating Services Ltd,201812,Schools,Premises-Related Expenditure
INSERTED DETAIL,19/03/2018,II,3906622,450,HC100328,Mackley Davies Associates Ltd,201812,Schools,Premises-Related Expenditure
INSERTED DETAIL,20/03/2018,II,3906624,532,HC124046,Susan Mills Cleaning,201812,Schools,Premises-Related Expenditure
INSERTED DETAIL,14/03/2018,II,3906636,540,HC120894,Rugby Tots Herefordshire,201812,Schools,Supplies & Services
INSERTED DETAIL,16/03/2018,II,3906639,562.15,HC104882,K T Gooch,201812,Schools,Supplies & Services
INSERTED DETAIL,23/03/2018,II,3906643,"4,775.77",HC122340,Zero Point Eight (Dudley) Ltd,201812,Communities Capital,Capital Expenditure
INSERTED DETAIL,13/03/2018,II,3906645,"3,423.91",HC122340,Zero Point Eight (Dudley) Ltd,201812,Communities Capital,Capital Expenditure
INSERTED DETAIL,07/03/2018,II,3906665,500,HC102949,Eteach UK Ltd,201812,Schools,Employees
INSERTED DETAIL,16/03/2018,II,3906666,"33,861.00",HC117191,Altogether Care,201812,Director and Management,Third Party Payments
INSERTED DETAIL,14/03/2018,II,3906667,"3,048.00",HC111757,Sharpe Pritchard LLP,201812,Commissioning Capital,Capital Expenditure
INSERTED DETAIL,22/03/2018,II,3906668,"4,000.00",HC124651,REDACTED,201812,Director and Management,Supplies & Services
INSERTED DETAIL,14/03/2018,II,3906673,"1,230.60",HC108283,Orleton School Meals,201812,Schools,Supplies & Services
INSERTED DETAIL,13/03/2018,II,3906674,"141,669.50",HC109962,Kier Construction - Central Div of Kier Construction Ltd,201812,Children & Young People Capital,Capital Expenditure
INSERTED DETAIL,21/03/2018,II,3906676,720.3,HC104102,Hope Under Dinmore G P C,201812,Environment and Place,Third Party Payments
INSERTED DETAIL,26/03/2018,II,3906678,476.7,HC111310,Walford Parish Council,201812,Environment and Place,Third Party Payments
INSERTED DETAIL,26/03/2018,II,3906687,"1,034.25",HC104879,K S Harris Transport,201812,Environment and Place,Transport-Related Expenditure
INSERTED DETAIL,19/03/2018,II,3906688,583.33,HC107704,National Childrens Bureau (NCB),201812,Safeguarding and Family Support,Supplies & Services
INSERTED DETAIL,23/03/2018,II,3906689,"24,000.00",HC103751,HCSS Education,201812,Dedicated Schools Grant,Supplies & Services
INSERTED DETAIL,12/03/2018,II,3906691,"3,500.00",HC113960,Barrs Court Academy,201812,Dedicated Schools Grant,Support Services
INSERTED DETAIL,02/03/2018,II,3906692,"15,427.78",HC120107,Hereford Integrated Behaviour Outreach Service,201812,Dedicated Schools Grant,Third Party Payments
INSERTED DETAIL,22/03/2018,II,3906699,738,HC101285,Broxap Limited,201812,Schools,Supplies & Services
INSERTED DETAIL,22/03/2018,II,3906700,"1,187.00",HC101285,Broxap Limited,201812,Schools,Supplies & Services
INSERTED DETAIL,08/03/2018,II,3906702,"2,494.70",HC100201,Acorn Adventure,201812,Schools,Supplies & Services
INSERTED DETAIL,15/03/2018,II,3906721,972.84,HC103660,Halo Leisure Services Ltd,201812,Schools,Supplies & Services
INSERTED DETAIL,23/03/2018,II,3906722,"1,149.72",HC103660,Halo Leisure Services Ltd,201812,Schools,Supplies & Services
INSERTED DETAIL,14/03/2018,II,3906727,964.35,HC105512,Lord Combustion Services Ltd,201812,Schools,Premises-Related Expenditure
INSERTED DETAIL,06/03/2018,II,3906730,599.18,HC108208,ESPO,201812,Schools,Supplies & Services
INSERTED DETAIL,20/03/2018,II,3906731,500,HC109631,The Visual Works,201812,Schools,Supplies & Services
INSERTED DETAIL,14/03/2018,II,3906732,869.95,HC109835,Siemens Financial Services Ltd,201812,Schools,Supplies & Services
INSERTED DETAIL,21/03/2018,II,3906733,650.57,HC101123,Boss,201812,Schools,Supplies & Services
INSERTED DETAIL,26/03/2018,II,3906738,600,HC110528,Mark Price (MWP Services),201812,Schools Devolved Capital,Capital Expenditure
INSERTED DETAIL,22/03/2018,II,3906740,986,HC124103,We The Curious,201812,Schools,Supplies & Services
INSERTED DETAIL,23/03/2018,II,3906744,"1,219.00",HC122849,Histon House Ltd (Scholarpack),201812,Schools,Supplies & Services
INSERTED DETAIL,23/03/2018,II,3906746,"13,695.00",HC123953,Encraft Limited,201812,Environment and Place,Supplies & Services
INSERTED DETAIL,07/03/2018,II,3906747,"2,252.04",HC102543,Dr M Hayes &  Dr E Wessels,201812,Communities,Supplies & Services
INSERTED DETAIL,06/03/2018,II,3906752,490,HC101789,Chartered Institute of Environmental Health,201812,Environment and Place,Supplies & Services
INSERTED DETAIL,09/03/2018,II,3906753,515.4,HC101060,REDACTED,201812,Safeguarding and Family Support,Transport-Related Expenditure
INSERTED DETAIL,14/03/2018,II,3906755,455,HC105985,Mercia Radiotelephones Ltd,201812,Environment and Place,Supplies & Services
INSERTED DETAIL,19/03/2018,II,3906756,820,HC107137,Allwag Promotions Ltd,201812,Environment and Place,Supplies & Services
INSERTED DETAIL,07/03/2018,II,3906757,"1,382.00",HC107137,Allwag Promotions Ltd,201812,Environment and Place,Supplies & Services
INSERTED DETAIL,23/03/2018,II,3906764,672.45,HC104879,K S Harris Transport,201812,Environment and Place,Transport-Related Expenditure
INSERTED DETAIL,12/03/2018,II,3906768,460,HC101309,Buchanans Coaches,201812,Schools,Supplies & Services
INSERTED DETAIL,07/03/2018,II,3906769,422.96,HC109388,Royal Mail,201812,Communities,Supplies & Services
INSERTED DETAIL,05/03/2018,II,3906773,896.33,HC100656,Allstar Business Solutions Ltd (Arval),201812,Environment and Place,Transport-Related Expenditure
INSERTED DETAIL,02/03/2018,II,3906774,505,HC113223,REDACTED,201812,Schools,Supplies & Services
INSERTED DETAIL,14/03/2018,II,3906784,548.42,HC111941,Yorkshire Purchasing,201812,Schools,Supplies & Services
INSERTED DETAIL,29/03/2018,II,3906802,476.6,HC108866,Education Property Partnership Ltd,201812,Schools,Supplies & Services
INSERTED DETAIL,29/03/2018,II,3906810,"1,500.00",HC100373,Architype Ltd,201812,Schools,Premises-Related Expenditure
INSERTED DETAIL,05/03/2018,II,3906820,"3,160.33",HC101878,Climb On Bikes,201812,Holding Codes,Holding Codes
INSERTED DETAIL,05/03/2018,II,3906821,800,HC116192,The Family Place Ltd,201812,Dedicated Schools Grant,Support Services
INSERTED DETAIL,05/03/2018,II,3906826,"1,500.00",HC111997,SMS Energy Services,201812,Growth Capital,Capital Expenditure
INSERTED DETAIL,07/03/2018,II,3906827,"1,500.00",HC111997,SMS Energy Services,201812,Growth Capital,Capital Expenditure
INSERTED DETAIL,14/03/2018,II,3906828,534.81,HC109997,Spa Gas Ltd,201812,Schools,Premises-Related Expenditure
INSERTED DETAIL,07/03/2018,II,3906831,445,HC109765,REDACTED,201812,Schools,Supplies & Services
INSERTED DETAIL,21/03/2018,II,3906836,518,HC111685,Yeomans Travel Ltd,201812,Schools,Transport-Related Expenditure
INSERTED DETAIL,20/03/2018,II,3906849,"1,788.80",HC109826,Shropshire Council,201812,Schools,Supplies & Services
INSERTED DETAIL,22/03/2018,II,3906851,"1,141.60",HC101861,Clearview Cleaning Services,201812,Schools,Premises-Related Expenditure
INSERTED DETAIL,19/03/2018,II,3906855,"1,120.00",HC101060,Blue Line Taxis,201812,Learning Disabilities,Transport-Related Expenditure
INSERTED DETAIL,20/03/2018,II,3906858,"1,537.50",HC123382,REDACTED,201812,Adults Operations,Supplies & Services
INSERTED DETAIL,15/03/2018,II,3906859,"8,655.00",HC124461,Gainsborough Baths Ltd,201812,Integrated Commissioning,Capital Expenditure
INSERTED DETAIL,08/03/2018,II,3906861,525.6,HC105926,Mavis Russell Cleaning Ltd,201812,Schools,Premises-Related Expenditure
INSERTED DETAIL,12/03/2018,II,3906866,442.36,HC105512,Lord Combustion Services Ltd,201812,Schools,Premises-Related Expenditure
INSERTED DETAIL,12/03/2018,II,3906867,672.76,HC103660,Halo Leisure Services Ltd,201812,Schools,Premises-Related Expenditure
INSERTED DETAIL,21/03/2018,II,3906868,"1,346.39",HC106071,Midshire Business Systems Ltd,201812,Schools,Supplies & Services
INSERTED DETAIL,02/03/2018,II,3906888,"2,495.50",HC111508,Wigmore High School (Academy),201812,Schools,Supplies & Services
INSERTED DETAIL,02/03/2018,II,3906889,"2,297.70",HC111508,Wigmore High School (Academy),201812,Schools,Supplies & Services
INSERTED DETAIL,01/03/2018,II,3906899,"2,093.00",HC111508,Wigmore High School (Academy),201812,Schools,Supplies & Services
INSERTED DETAIL,19/03/2018,II,3906901,"8,360.00",HC124461,Gainsborough Baths Ltd,201812,Integrated Commissioning,Capital Expenditure
INSERTED DETAIL,07/03/2018,II,3906902,450,HC121131,REDACTED,201812,Environment and Place,Supplies & Services
INSERTED DETAIL,01/03/2018,II,3906903,"1,590.00",HC104413,REDACTED,201812,Environment and Place,Supplies & Services
INSERTED DETAIL,02/03/2018,II,3906905,800,HC117824,REDACTED,201812,Environment and Place,Supplies & Services
INSERTED DETAIL,15/03/2018,II,3906906,"23,191.27",HC124261,Rawpixel Limited,201812,Communities,Transfer Payments
INSERTED DETAIL,21/03/2018,II,3906912,"2,351.00",HC124033,Curriculum Travel,201812,Schools,Supplies & Services
INSERTED DETAIL,21/03/2018,II,3906916,"1,510.79",HC118475,REDACTED,201812,Communities,Supplies & Services
INSERTED DETAIL,21/03/2018,II,3906917,"1,575.00",HC106975,Hoople Ltd,201812,Schools,Supplies & Services
INSERTED DETAIL,06/03/2018,II,3906918,"4,487.00",HC103794,Wessex Archaeology Ltd,201812,Environment and Place,Supplies & Services
INSERTED DETAIL,06/03/2018,II,3906922,"2,521.20",HC107522,Mrs M J Thomson (The Iron Rice Bowl Ltdl),201812,Schools,Supplies & Services
INSERTED DETAIL,06/03/2018,II,3906924,600,HC105740,Manor Adventure,201812,Schools,Supplies & Services
INSERTED DETAIL,08/03/2018,II,3906930,"1,233.20",HC107522,Mrs M J Thomson (The Iron Rice Bowl Ltdl),201812,Schools,Supplies & Services
INSERTED DETAIL,22/03/2018,II,3906933,550,HC122142,Ace Health,201812,Schools,Supplies & Services
INSERTED DETAIL,23/03/2018,II,3906940,"1,090.00",HC101123,Boss,201812,Resources,Premises-Related Expenditure
INSERTED DETAIL,09/03/2018,II,3906941,"2,997.47",HC122526,MISL Ltd,201812,Communities,Supplies & Services
INSERTED DETAIL,20/03/2018,II,3906942,749.25,HC101878,Climb On Bikes,201812,Holding Codes,Holding Codes
INSERTED DETAIL,06/03/2018,II,3906943,"28,665.71",HC105968,Melcon Hereford Ltd,201812,Resources,Premises-Related Expenditure
INSERTED DETAIL,08/03/2018,II,3906944,"12,480.00",HC117406,SSI Schaefer Ltd,201812,Environment and Place,Supplies & Services
INSERTED DETAIL,08/03/2018,II,3906945,950,HC122877,Hereford Racecourse Ltd,201812,Growth,Supplies & Services
INSERTED DETAIL,14/03/2018,II,3906946,"2,116.67",HC111420,REDACTED,201812,Safeguarding and Family Support,Supplies & Services
INSERTED DETAIL,15/03/2018,II,3906947,"1,995.83",HC101878,Climb On Bikes,201812,Holding Codes,Holding Codes
INSERTED DETAIL,22/03/2018,II,3906948,450,HC120941,Hulse Yazdi Professional Services,201812,Directors,Supplies & Services
INSERTED DETAIL,15/03/2018,II,3906951,875,HC103304,REDACTED,201812,Communities,Supplies & Services
INSERTED DETAIL,15/03/2018,II,3906952,"1,760.00",HC120103,The Plynlimon Trust-Horizon Training,201812,Dedicated Schools Grant,Support Services
INSERTED DETAIL,27/03/2018,II,3906953,535,HC124429,Southam College,201812,Dedicated Schools Grant,Support Services
INSERTED DETAIL,22/03/2018,II,3906954,"5,330.00",HC104727,John Kyrle High School,201812,Dedicated Schools Grant,Support Services
INSERTED DETAIL,23/03/2018,II,3906957,"1,487.50",HC122805,Priory Hospital School,201812,Dedicated Schools Grant,Supplies & Services
INSERTED DETAIL,19/03/2018,II,3906958,"1,487.50",HC122805,Priory Hospital School,201812,Dedicated Schools Grant,Supplies & Services
INSERTED DETAIL,26/03/2018,II,3906959,900,HC111024,Trinity Primary School (Imprest/Petty Cash),201812,Schools,Employees
INSERTED DETAIL,08/03/2018,II,3906959,508,HC111024,Trinity Primary School (Imprest/Petty Cash),201812,Schools,Premises-Related Expenditure
INSERTED DETAIL,08/03/2018,II,3906959,503.02,HC111024,Trinity Primary School (Imprest/Petty Cash),201812,Schools,Supplies & Services
INSERTED DETAIL,01/03/2018,II,3906959,750,HC111024,Trinity Primary School (Imprest/Petty Cash),201812,Schools,Supplies & Services
INSERTED DETAIL,01/03/2018,II,3906959,505.37,HC111024,Trinity Primary School (Imprest/Petty Cash),201812,Schools,Supplies & Services
INSERTED DETAIL,01/03/2018,II,3906959,654.25,HC111024,Trinity Primary School (Imprest/Petty Cash),201812,Schools,Supplies & Services
INSERTED DETAIL,02/03/2018,II,3906960,507.52,HC124646,Apollo Home Healthcare Ltd,201812,Dedicated Schools Grant,Third Party Payments
INSERTED DETAIL,06/03/2018,II,3906961,450,HC122897,Shakespeare Martineau LLP Solicitors,201812,Communities,Supplies & Services
INSERTED DETAIL,13/03/2018,II,3906962,"1,309.30",HC122897,Shakespeare Martineau LLP Solicitors,201812,Communities,Supplies & Services
INSERTED DETAIL,16/03/2018,II,3906963,600,HC107487,Mr Timothy Jones ,201812,Communities,Supplies & Services
INSERTED DETAIL,19/03/2018,II,3906964,566.67,HC107487,Mr Timothy Jones,201812,Communities,Supplies & Services
INSERTED DETAIL,19/03/2018,II,3906965,"1,980.00",HC101284,Browne Jacobson LLP,201812,Communities,Supplies & Services
INSERTED DETAIL,22/03/2018,II,3906972,"1,164.00",HC115657,Powys County Council,201812,Schools,Supplies & Services
INSERTED DETAIL,16/03/2018,II,3906975,"1,934.00",HC100054,Absence Protection Ltd,201812,Schools,Employees
INSERTED DETAIL,16/03/2018,II,3906978,"5,372.05",HC100969,Bertram Trading Ltd,201812,Communities,Supplies & Services
INSERTED DETAIL,21/03/2018,II,3906982,"4,473.00",HC107858,MVF Builders Ltd,201812,Housing & Independent Living Capital,Capital Expenditure
INSERTED DETAIL,15/03/2018,II,3906983,"4,850.77",HC117310,Level Access Bathrooms,201812,Housing & Independent Living Capital,Capital Expenditure
INSERTED DETAIL,27/03/2018,II,3906984,"3,540.00",HC104726,J & W Kostorz Ltd,201812,Housing & Independent Living Capital,Capital Expenditure
INSERTED DETAIL,08/03/2018,II,3906985,"4,323.96",HC106749,D M Gray Plumbing,201812,Housing & Independent Living Capital,Capital Expenditure
INSERTED DETAIL,26/03/2018,II,3906986,"3,606.23",HC100792,B & B Services Ltd,201812,Housing & Independent Living Capital,Capital Expenditure
INSERTED DETAIL,15/03/2018,II,3906989,"1,200.00",HC107970,Distinctive Publishing Limited,201812,Growth,Supplies & Services
INSERTED DETAIL,20/03/2018,II,3906992,"2,609.00",HC110046,SRJ Plumbing & Heating,201812,Housing & Independent Living Capital,Capital Expenditure
INSERTED DETAIL,22/03/2018,II,3906993,"4,185.51",HC103268,G B Electrical And Building Services Ltd,201812,Housing & Independent Living Capital,Capital Expenditure
INSERTED DETAIL,26/03/2018,II,3906994,"4,431.20",HC103268,G B Electrical And Building Services Ltd,201812,Housing & Independent Living Capital,Capital Expenditure
detail,27/03/2018,II,3906995,"4,223.05",HC103268,G B Electrical And Building Services Ltd,201812,Housing & Independent Living Capital,Capital Expenditure
,05/03/2018,II,3906996,"6,193.60",HC103268,G B Electrical And Building Services Ltd,201812,Housing & Independent Living Capital,Capital Expenditure
,16/03/2018,II,3907006,"4,121.00",HC110717,The NST Travel Group Plc,201812,Schools,Supplies & Services
,21/03/2018,II,3907013,"1,360.00",HC200080,Leading Edge Projects Consulting Ltd,201812,Environment and Place,Employees
,15/03/2018,II,3907023,450,HC106975,Hoople Ltd,201812,Schools,Supplies & Services
,21/03/2018,II,3907035,"4,500.00",HC103660,Halo Leisure Services Ltd,201812,Communities,Premises-Related Expenditure
,13/03/2018,II,3907036,849.99,HC101657,Hfds & Worcs Chamber of Commerce,201812,Communities,Supplies & Services
,19/03/2018,II,3907041,"1,184.50",HC104352,J P Catering,201812,Schools,Supplies & Services
,21/03/2018,II,3907053,"1,135.60",HC102156,D & D Network Services Ltd,201812,Schools,Supplies & Services
,19/03/2018,II,3907067,422.01,HC105512,Lord Combustion Services Ltd,201812,Schools,Premises-Related Expenditure
,27/03/2018,II,3907071,700,HC111508,Wigmore High School (Academy),201812,Dedicated Schools Grant,Support Services
,12/03/2018,II,3907072,700,HC102152,Ashperton Primary Academy,201812,Dedicated Schools Grant,Support Services
,12/03/2018,II,3907080,468,HC120941,Hulse Yazdi Professional Services,201812,Schools,Supplies & Services
,12/03/2018,II,3907084,946,HC100385,Alliance In Partnership,201812,Schools,Supplies & Services
,12/03/2018,II,3907085,897.21,HC105926,Mavis Russell Cleaning Ltd,201812,Schools,Premises-Related Expenditure
,12/03/2018,II,3907091,700,HC106103,Holmer C of E Academy,201812,Dedicated Schools Grant,Support Services
,12/03/2018,II,3907093,700,HC122767,"H3 (The Hub, Hospital & Home Teaching Team)",201812,Dedicated Schools Grant,Support Services
,13/03/2018,II,3907094,700,HC105572,Lady Hawkins School (Academy),201812,Dedicated Schools Grant,Support Services
,06/03/2018,II,3907095,700,HC104870,Kingstone High School (Academy),201812,Dedicated Schools Grant,Support Services
,12/03/2018,II,3907097,550.65,HC107758,Onside Independent Advocacy,201812,Safeguarding and Family Support,Supplies & Services
,15/03/2018,II,3907098,"120,000.00",HC124478,MLL Telecom Ltd,201812,Communities,Supplies & Services
,12/03/2018,II,3907103,"1,366.00",HC121246,REDACTED,201812,Adults Operations,Supplies & Services
,12/03/2018,II,3907107,444.17,HC108887,Puzzlewood,201812,Schools,Supplies & Services
,27/03/2018,II,3907108,725,HC124312,Alex Bound Plumbing & Heating,201812,Schools,Premises-Related Expenditure
,15/03/2018,II,3907109,"3,021.75",HC100385,Alliance In Partnership,201812,Schools,Supplies & Services
,12/03/2018,II,3907110,599,HC108803,PrimarySite Ltd,201812,Schools,Supplies & Services
,12/03/2018,II,3907117,460.78,HC101444,Calor Gas Ltd,201812,Schools,Premises-Related Expenditure
,12/03/2018,II,3907118,"2,498.60",HC108283,Orleton School Meals,201812,Schools,Supplies & Services
,13/03/2018,II,3907123,"10,590.00",HC123606,HM Courts & Tribunals Service (Direct Debit),201812,Communities,Supplies & Services
,13/03/2018,II,3907126,480.15,HC109655,School Trends,201812,Schools,Supplies & Services
,01/03/2018,II,3907127,579.17,HC110869,Three Counties Hotel,201812,Learning Disabilities,Supplies & Services
,13/03/2018,II,3907133,"7,857.65",HC118939,Riverside Primary School - HCC,201812,Dedicated Schools Grant,Support Services
,13/03/2018,II,3907134,"1,940.55",HC102076,Herefordshire Marches Federation Sutton Primary Academy,201812,Dedicated Schools Grant,Support Services
,13/03/2018,II,3907135,677.26,HC105571,Wigmore Primary School (Academy),201812,Dedicated Schools Grant,Support Services
,22/03/2018,II,3907136,"1,556.31",HC101473,Capita Business Services Ltd (Direct Debit),201812,Resources,Supplies & Services
,07/03/2018,II,3907140,801.72,HC113733,Canon Pyon CE Academy,201812,Dedicated Schools Grant,Support Services
,28/03/2018,II,3907141,"6,545.34",HC121892,Colwall C of E Primary School,201812,Dedicated Schools Grant,Support Services
,12/03/2018,II,3907142,"4,164.25",HC115716,Mordiford Church of England Primary School,201812,Dedicated Schools Grant,Support Services
,14/03/2018,II,3907143,"4,842.80",HC108716,Stretton Sugwas CE Academy,201812,Dedicated Schools Grant,Support Services
,12/03/2018,II,3907145,"2,368.35",HC115884,St Thomas Cantilupe CE Academy,201812,Dedicated Schools Grant,Support Services
,28/03/2018,II,3907162,486.19,HC104018,Highground Maintenance Limited,201812,Schools,Premises-Related Expenditure
,12/03/2018,II,3907164,"3,600.00",HC114802,Malvern Hills Outdoor Education Co Ltd,201812,Schools,Supplies & Services
,28/03/2018,II,3907165,"2,404.45",HC108319,Oxford University Press,201812,Schools,Supplies & Services
,19/03/2018,II,3907171,"1,037.80",HC122141,Web Oil Ltd,201812,Schools,Premises-Related Expenditure
,15/03/2018,II,3907198,769.7,HC122814,Cabinco Structures Ltd,201812,Schools,Premises-Related Expenditure
,15/03/2018,II,3907199,"1,941.37",HC104018,Highground Maintenance Limited,201812,Schools,Premises-Related Expenditure
,14/03/2018,II,3907207,"1,126.00",HC118785,Gary Wilson Raising Boys Achievement Ltd,201812,Schools,Employees
,27/03/2018,II,3907208,588,HC120941,Hulse Yazdi Professional Services,201812,Schools,Support Services
,01/03/2018,II,3907210,"4,330.00",HC122488,Scholarpack,201812,Schools,Supplies & Services
,08/03/2018,II,3907211,710,HC110480,Testbase/ Exampro,201812,Schools,Supplies & Services
,15/03/2018,II,3907217,"847,129.30",HC111603,Worcestershire County Council,201812,Environment and Place,Third Party Payments
,22/03/2018,II,3907219,549.7,HC200096,Catercater Limited,201812,Schools,Supplies & Services
,28/03/2018,II,3907226,"3,220.00",HC119417,Hereford FC Ltd,201812,Growth,Supplies & Services
,02/03/2018,II,3907230,"3,869.25",HC105358,Lexia Uk,201812,Schools,Supplies & Services
,26/03/2018,II,3907236,666.6,HC122739,Elite Catering,201812,Schools,Supplies & Services
,12/03/2018,II,3907237,"3,750.00",HC113880,Stephen Price Roofing Contractor,201812,Schools,Premises-Related Expenditure
,12/03/2018,II,3907238,673.2,HC122739,Elite Catering,201812,Schools,Supplies & Services
,12/03/2018,II,3907258,430,HC105365,LLG Legal Training,201812,Communities,Supplies & Services
,12/03/2018,II,3907261,566.67,HC107487,Mr Timothy Jones,201812,Communities,Supplies & Services
,16/03/2018,II,3907262,"35,775.00",HC200037,Coopers Gourmet Foods,201812,Growth Capital,Capital Expenditure
,12/03/2018,II,3907263,"10,500.00",HC122855,Eversheds Sutherland (International) LLP,201812,Resources,Supplies & Services
,27/03/2018,II,3907264,450.83,HC110869,Three Counties Hotel,201812,Learning Disabilities,Supplies & Services
